Department,Entity, Transaction Date, Expense Type, Expense Area, Supplier Name,Transaction number, Amount, Invoice Description
DFID,DFID,03/05/2016,Air fares ,Asia  Caribbean and Overseas Territories ,Supplier Name withheld ,100011-110 ,"2,141.38",
DFID,DFID,03/05/2016,Air fares ,East and Central Africa ,Corporate travel provider,100016-107 ,"1,826.23",
DFID,DFID,03/05/2016,Air fares ,East and Central Africa ,Corporate travel provider,100016-107 ,"2,875.52",
DFID,DFID,03/05/2016,Air fares ,Research and Evidence Division ,Corporate travel provider,100039-108 ,"1,910.95",
DFID,DFID,03/05/2016,Air fares ,Research and Evidence Division ,Corporate travel provider,100039-110 ,788.92,
DFID,DFID,03/05/2016,Air fares ,Research and Evidence Division ,Corporate travel provider,100039-111 ,502.25,
DFID,DFID,03/05/2016,Air fares ,Research and Evidence Division ,Corporate travel provider,100039-111 ,"1,868.20",
DFID,DFID,03/05/2016,Air fares ,Research and Evidence Division ,Corporate travel provider,100039-111 ,704.50,
DFID,DFID,03/05/2016,Air fares ,Conflict  Humanitarian  Security & Stabilisation Division ,Corporate travel provider,100049-133 ,"1,030.35",
DFID,DFID,03/05/2016,Air fares ,Conflict  Humanitarian  Security & Stabilisation Division ,Corporate travel provider,100049-134 ,"1,594.95",
DFID,DFID,03/05/2016,Air fares ,Global Funds ,Corporate travel provider,100098-101 ,903.95,
DFID,DFID,31/05/2016,Postage Costs ,Group Operations ,Neopost ,100106-101 ,510.00,
DFID,DFID,31/05/2016,Postage Costs ,Group Operations ,Neopost ,100106-101 ,510.00,
DFID,DFID,03/05/2016,Air fares ,Economic Development Division ,Corporate travel provider,100111-101 ,571.65,
DFID,DFID,03/05/2016,Air fares ,Economic Development Division ,Corporate travel provider,100111-101 ,783.05,
DFID,DFID,03/05/2016,Air fares ,Economic Development Division ,Corporate travel provider,100111-101 ,571.65,
DFID,DFID,03/05/2016,Air fares ,Economic Development Division ,Corporate travel provider,100111-101 ,865.25,
DFID,DFID,03/05/2016,Air fares ,Internal Audit ,Corporate travel provider,100121-101 ,"2,688.20",
DFID,DFID,03/05/2016,Air fares ,Internal Audit ,Corporate travel provider,100121-101 ,"2,688.20",
DFID,DFID,03/05/2016,Air fares ,Internal Audit ,Corporate travel provider,100121-101 ,639.13,
DFID,DFID,03/05/2016,Air fares ,Internal Audit ,Corporate travel provider,100121-101 ,639.13,
DFID,DFID,03/05/2016,Air fares ,Internal Audit ,Corporate travel provider,100121-101 ,523.77,
DFID,DFID,03/05/2016,Air fares ,Internal Audit ,Corporate travel provider,100121-101 ,523.77,
DFID,DFID,03/05/2016,Air fares ,Internal Audit ,Corporate travel provider,100121-101 ,523.77,
DFID,DFID,03/05/2016,Air fares ,Internal Audit ,Corporate travel provider,100121-101 ,523.77,
DFID,DFID,03/05/2016,Air fares ,Internal Audit ,Corporate travel provider,100121-101 ,523.77,
DFID,DFID,03/05/2016,Air fares ,Internal Audit ,Corporate travel provider,100121-101 ,"1,009.03",
DFID,DFID,31/05/2016,Subscriptions ,Internal Audit , ACFE,100121-101 ,600.00,
DFID,DFID,31/05/2016,Subscriptions ,Internal Audit ,ACFE,100121-101 ,"2,160.00",
DFID,DFID,03/05/2016,Air fares ,Internal Audit ,Corporate travel provider,100121-101 ,854.87,
DFID,DFID,03/05/2016,Air fares ,Internal Audit ,Corporate travel provider,100121-101 ,854.87,
DFID,DFID,03/05/2016,Air fares ,Middle East and North Africa Division ,Corporate travel provider,100146-101 ,613.80,
DFID,DFID,03/05/2016,Air fares ,Middle East and North Africa Division ,Corporate travel provider,100146-101 ,691.75,
DFID,DFID,03/05/2016,Air fares ,Middle East and North Africa Division ,Corporate travel provider,100146-101 ,524.41,
DFID,DFID,03/05/2016,Air fares ,Economic Development Division ,Corporate travel provider,100124-101 ,681.95,
DFID,DFID,03/05/2016,Air fares ,Economic Development Division ,Corporate travel provider,100124-101 ,734.71,
DFID,DFID,03/05/2016,Air fares ,Communications Division ,Corporate travel provider,100154-101 ,"1,177.00",
DFID,DFID,03/05/2016,Air fares ,Communications Division ,Corporate travel provider,100154-101 ,"1,177.00",
DFID,DFID,03/05/2016,Air fares ,Communications Division ,Corporate travel provider,100154-101 ,589.85,
DFID,DFID,03/05/2016,Hotels - Accommodation only ,Policy Division ,Corporate travel provider,100191-101 ,500.80,
DFID,DFID,03/05/2016,Air fares ,Policy Division ,Corporate travel provider,100191-101 ,"1,036.25",
DFID,DFID,03/05/2016,Air fares ,Top Management Group ,Corporate travel provider,100232-102 ,976.15,
DFID,DFID,03/05/2016,Air fares ,Top Management Group ,Corporate travel provider,100232-102 ,"2,629.75",
DFID,DFID,03/05/2016,Air fares ,Top Management Group ,Corporate travel provider,100232-102 ,"3,725.75",
DFID,DFID,05/05/2016,Hotels - Accommodation only ,Top Management Group ,Foreign & Commonwealth Office ,100232-102 ,581.40,
DFID,DFID,03/05/2016,Air fares ,Top Management Group ,Corporate travel provider,100232-103 ,"2,629.75",
DFID,DFID,03/05/2016,Air fares ,Top Management Group ,Corporate travel provider,100232-103 ,"1,518.45",
DFID,DFID,31/05/2016,Hotels - Accommodation only ,Top Management Group ,"State Plaza Hotel, Washington DC",100232-104 ,596.89,
DFID,DFID,03/05/2016,Air fares ,Top Management Group ,Corporate travel provider,100232-105 ,"1,804.65",
DFID,DFID,03/05/2016,Air fares ,Top Management Group ,Corporate travel provider,100232-105 ,"1,800.40",
DFID,DFID,03/05/2016,Air fares ,Top Management Group ,Corporate travel provider,100232-105 ,"3,609.05",
DFID,DFID,03/05/2016,Air fares ,Top Management Group ,Corporate travel provider,100232-105 ,"2,658.91",
DFID,DFID,03/05/2016,Air fares ,Top Management Group ,Corporate travel provider,100232-105 ,"1,113.50",
DFID,DFID,03/05/2016,Air fares ,Top Management Group ,Corporate travel provider,100232-105 ,"1,850.65",
DFID,DFID,03/05/2016,Air fares ,Top Management Group ,Corporate travel provider,100232-107 ,"3,039.42",
DFID,DFID,03/05/2016,Air fares ,Top Management Group ,Corporate travel provider,100232-107 ,"2,348.42",
DFID,DFID,03/05/2016,Air fares ,Top Management Group ,Corporate travel provider,100232-108 ,"1,313.95",
DFID,DFID,03/05/2016,Air fares ,Top Management Group ,Corporate travel provider,100232-108 ,"2,802.55",
DFID,DFID,03/05/2016,Air fares ,Top Management Group ,Corporate travel provider,100232-108 ,"3,067.65",
DFID,DFID,03/05/2016,Air fares ,Top Management Group ,Corporate travel provider,100232-108 ,"1,579.50",
DFID,DFID,03/05/2016,Air fares ,Top Management Group ,Corporate travel provider,100232-108 ,"1,518.45",
DFID,DFID,03/05/2016,Air fares ,Top Management Group ,Corporate travel provider,100232-108 ,"6,267.85",
DFID,DFID,19/05/2016,Office equipment - Rental ,International Relations Division ,Foreign & Commonwealth Office ,100236-101 ,652.88,
DFID,DFID,19/05/2016,Office equipment - Rental ,International Relations Division ,Foreign & Commonwealth Office ,100236-101 ,641.04,
DFID,DFID,03/05/2016,Air fares ,International Relations Division ,Corporate travel provider,100240-101 ,"1,111.55",
DFID,DFID,03/05/2016,Air fares ,International Relations Division ,Corporate travel provider,100240-101 ,"1,076.55",
DFID,DFID,03/05/2016,Air fares ,International Relations Division ,Corporate travel provider,100262-101 ,708.61,
DFID,DFID,03/05/2016,Air fares ,International Relations Division ,Corporate travel provider,100262-101 ,503.18,
DFID,DFID,03/05/2016,Air fares ,Human Resources ,Corporate travel provider,100266-103 ,568.62,
DFID,DFID,03/05/2016,Hotels - Accommodation only ,Human Resources ,Corporate travel provider,100268-101 ,533.76,
DFID,DFID,03/05/2016,Air fares ,Central Department Division ,Corporate travel provider,100259-101 ,"1,045.35",
DFID,DFID,03/05/2016,Air fares ,Human Resources ,Corporate travel provider,100261-101 ,568.62,
DFID,DFID,03/05/2016,Air fares ,Policy Division ,Corporate travel provider,100274-111 ,"2,714.85",
DFID,DFID,03/05/2016,Hotels - Accommodation only ,Policy Division ,Corporate travel provider,100274-111 ,577.31,
DFID,DFID,03/05/2016,Air fares ,Policy Division ,Corporate travel provider,100275-105 ,"1,064.05",
DFID,DFID,03/05/2016,Hotels - Accommodation only ,Policy Division ,Corporate travel provider,100275-105 ,612.00,
DFID,DFID,03/05/2016,Air fares ,Policy Division ,Corporate travel provider,100275-111 ,630.47,
DFID,DFID,03/05/2016,Air fares ,Policy Division ,Corporate travel provider,100275-111 ,801.70,
DFID,DFID,03/05/2016,Air fares ,Economic Development Division ,Corporate travel provider,100276-101 ,522.41,
DFID,DFID,03/05/2016,Air fares ,Economic Development Division ,Corporate travel provider,100276-101 ,"1,576.35",
DFID,DFID,03/05/2016,Air fares ,Policy Division ,Corporate travel provider,100277-101 ,"1,728.35",
DFID,DFID,03/05/2016,Air fares ,Policy Division ,Corporate travel provider,100277-101 ,685.95,
DFID,DFID,03/05/2016,Air fares ,Policy Division ,Corporate travel provider,100277-101 ,592.05,
DFID,DFID,05/05/2016,Cleaning Costs ,Middle East and North Africa Division ,Foreign & Commonwealth Office ,100303-101 ,714.12,
DFID,DFID,05/05/2016,Other passenger transport ,Asia  Caribbean and Overseas Territories ,Foreign & Commonwealth Office ,101601-110 ,968.99,
DFID,DFID,05/05/2016,Contract Catering Services ,Asia  Caribbean and Overseas Territories ,Foreign & Commonwealth Office ,101601-110 ,"1,678.49",
DFID,DFID,03/05/2016,Air fares ,Asia  Caribbean and Overseas Territories ,Supplier Name withheld ,101601-110 ,"1,964.91",
DFID,DFID,03/05/2016,Air fares ,Asia  Caribbean and Overseas Territories ,Supplier Name withheld ,101601-110 ,"2,086.55",
DFID,DFID,03/05/2016,Air fares ,Asia  Caribbean and Overseas Territories ,Supplier Name withheld ,101601-110 ,872.41,
DFID,DFID,03/05/2016,Air fares ,Asia  Caribbean and Overseas Territories ,Supplier Name withheld ,101601-110 ,"1,234.90",
DFID,DFID,03/05/2016,Air fares ,Asia  Caribbean and Overseas Territories ,Supplier Name withheld ,101601-110 ,"2,040.78",
DFID,DFID,03/05/2016,Air fares ,Asia  Caribbean and Overseas Territories ,Corporate travel provider,101604-101 ,801.95,
DFID,DFID,13/05/2016,Training - Travel & Subsistence ,Asia  Caribbean and Overseas Territories ,Foreign & Commonwealth Office ,101604-101 ,955.42,
DFID,DFID,13/05/2016,Air fares ,Asia  Caribbean and Overseas Territories ,Foreign & Commonwealth Office ,101604-101 ,526.80,
DFID,DFID,18/05/2016,Air fares ,East and Central Africa ,Foreign & Commonwealth Office ,101612-101 ,529.41,
DFID,DFID,18/05/2016,Air fares ,East and Central Africa ,Foreign & Commonwealth Office ,101612-101 ,647.03,
DFID,DFID,18/05/2016,Air fares ,East and Central Africa ,Foreign & Commonwealth Office ,101612-101 ,647.04,
DFID,DFID,18/05/2016,Hotels - Accommodation only ,East and Central Africa ,Foreign & Commonwealth Office ,101612-101 ,678.87,
DFID,DFID,18/05/2016,Hotels - Accommodation only ,East and Central Africa ,Foreign & Commonwealth Office ,101612-101 ,543.61,
DFID,DFID,18/05/2016,Air fares ,East and Central Africa ,Foreign & Commonwealth Office ,101612-101 ,508.22,
DFID,DFID,18/05/2016,Hotels - Accommodation only ,East and Central Africa ,Foreign & Commonwealth Office ,101612-101 ,"2,425.76",
DFID,DFID,18/05/2016,Air fares ,East and Central Africa ,Foreign & Commonwealth Office ,101612-101 ,660.11,
DFID,DFID,18/05/2016,Medical/Health Services ,East and Central Africa ,Foreign & Commonwealth Office ,101612-101 ,775.01,
DFID,DFID,05/05/2016,Hotels - Accommodation only ,East and Central Africa ,Foreign & Commonwealth Office ,101612-101 ,"1,112.65",
DFID,DFID,03/05/2016,Air fares ,East and Central Africa ,Corporate travel provider,101612-101 ,502.25,
DFID,DFID,05/05/2016,Hotels - Accommodation only ,East and Central Africa ,Foreign & Commonwealth Office ,101612-101 ,732.03,
DFID,DFID,05/05/2016,Hotels - Accommodation only ,East and Central Africa ,Foreign & Commonwealth Office ,101612-101 ,941.58,
DFID,DFID,05/05/2016,Hotels - Accommodation only ,East and Central Africa ,Foreign & Commonwealth Office ,101612-101 ,"2,894.02",
DFID,DFID,03/05/2016,Air fares ,West and Southern Africa ,Corporate travel provider,101613-101 ,621.83,
DFID,DFID,03/05/2016,Air fares ,West and Southern Africa ,Corporate travel provider,101613-101 ,552.53,
DFID,DFID,03/05/2016,Air fares ,West and Southern Africa ,Corporate travel provider,101613-101 ,637.63,
DFID,DFID,03/05/2016,Air fares ,Asia  Caribbean and Overseas Territories ,Corporate travel provider,101605-101 ,961.25,
DFID,DFID,03/05/2016,Air fares ,Middle East and North Africa Division ,Corporate travel provider,101619-101 ,"1,028.95",
DFID,DFID,03/05/2016,Air fares ,West and Southern Africa ,Corporate travel provider,101620-101 ,976.85,
DFID,DFID,03/05/2016,Air fares ,West and Southern Africa ,Corporate travel provider,101620-101 ,"1,264.75",
DFID,DFID,03/05/2016,Air fares ,Asia  Caribbean and Overseas Territories ,Corporate travel provider,101621-101 ,611.97,
DFID,DFID,03/05/2016,Air fares ,Asia  Caribbean and Overseas Territories ,Corporate travel provider,101621-101 ,538.25,
DFID,DFID,03/05/2016,Air fares ,Asia  Caribbean and Overseas Territories ,Corporate travel provider,101621-101 ,538.25,
DFID,DFID,03/05/2016,Air fares ,Asia  Caribbean and Overseas Territories ,Corporate travel provider,101621-101 ,723.25,
DFID,DFID,03/05/2016,Air fares ,Asia  Caribbean and Overseas Territories ,Corporate travel provider,101621-101 ,723.25,
DFID,DFID,05/05/2016,Hotels - Accommodation only ,West and Southern Africa ,Supplier Name withheld ,101622-105 ,593.29,
DFID,DFID,05/05/2016,Hotels - Accommodation only ,West and Southern Africa ,Supplier Name withheld ,101622-106 ,819.54,
DFID,DFID,03/05/2016,Air fares ,West and Southern Africa ,Supplier Name withheld ,101622-106 ,611.80,
DFID,DFID,03/05/2016,Air fares ,West and Southern Africa ,Supplier Name withheld ,101622-106 ,"1,063.52",
DFID,DFID,03/05/2016,Air fares ,West and Southern Africa ,Supplier Name withheld ,101622-106 ,"1,082.42",
DFID,DFID,03/05/2016,Air fares ,West and Southern Africa ,Supplier Name withheld ,101622-106 ,"1,039.85",
DFID,DFID,03/05/2016,Air fares ,West and Southern Africa ,Supplier Name withheld ,101622-106 ,888.45,
DFID,DFID,03/05/2016,Air fares ,West and Southern Africa ,Supplier Name withheld ,101622-106 ,732.80,
DFID,DFID,03/05/2016,Air fares ,West and Southern Africa ,Supplier Name withheld ,101622-106 ,879.85,
DFID,DFID,03/05/2016,Air fares ,West and Southern Africa ,Supplier Name withheld ,101622-106 ,687.91,
DFID,DFID,03/05/2016,Air fares ,West and Southern Africa ,Corporate travel provider,101629-101 ,944.31,
DFID,DFID,03/05/2016,Air fares ,West and Southern Africa ,Corporate travel provider,101629-101 ,"1,116.21",
DFID,DFID,03/05/2016,Air fares ,West and Southern Africa ,Corporate travel provider,101629-101 ,611.82,
DFID,DFID,03/05/2016,Air fares ,West and Southern Africa ,Corporate travel provider,101629-101 ,996.41,
DFID,DFID,03/05/2016,Air fares ,West and Southern Africa ,Corporate travel provider,101629-101 ,887.93,
DFID,DFID,03/05/2016,Air fares ,West and Southern Africa ,Corporate travel provider,101629-101 ,607.32,
DFID,DFID,03/05/2016,Air fares ,West and Southern Africa ,Corporate travel provider,101629-101 ,816.83,
DFID,DFID,03/05/2016,Air fares ,Asia  Caribbean and Overseas Territories ,Corporate travel provider,101624-101 ,511.57,
DFID,DFID,03/05/2016,Air fares ,Asia  Caribbean and Overseas Territories ,Corporate travel provider,101624-101 ,710.15,
DFID,DFID,03/05/2016,Air fares ,East and Central Africa ,Corporate travel provider,101625-104 ,620.31,
DFID,DFID,03/05/2016,Air fares ,East and Central Africa ,Corporate travel provider,101625-107 ,862.41,
DFID,DFID,03/05/2016,Air fares ,East and Central Africa ,Corporate travel provider,101625-108 ,793.45,
DFID,DFID,03/05/2016,Air fares ,West and Southern Africa ,Corporate travel provider,101631-101 ,551.75,
DFID,DFID,05/05/2016,Hotels - Accommodation only ,East and Central Africa ,Foreign & Commonwealth Office ,101633-101 ,625.22,
DFID,DFID,03/05/2016,Air fares ,East and Central Africa ,Corporate travel provider,101634-101 ,627.65,
DFID,DFID,03/05/2016,Air fares ,East and Central Africa ,Corporate travel provider,101635-101 ,"1,305.41",
DFID,DFID,03/05/2016,Air fares ,West and Southern Africa ,Corporate travel provider,101638-105 ,585.40,
DFID,DFID,18/05/2016,Project delivery costs – supplier services ,West and Southern Africa ,Foreign & Commonwealth Office ,104223-101 ,"6,867.13",
DFID,DFID,18/05/2016,Project delivery costs – supplier services ,West and Southern Africa ,Foreign & Commonwealth Office ,104229-101 ,"2,270.04",
DFID,DFID,18/05/2016,Project delivery costs – supplier services ,West and Southern Africa ,Foreign & Commonwealth Office ,104229-101 ,"2,058.17",
DFID,DFID,18/05/2016,Project delivery costs – supplier services ,West and Southern Africa ,Foreign & Commonwealth Office ,104229-101 ,"6,058.92",
DFID,DFID,05/05/2016,Project delivery costs – supplier services ,West and Southern Africa ,Foreign & Commonwealth Office ,104229-101 ,"3,212.32",
DFID,DFID,04/05/2016,Research and development costs - supplier services ,Asia  Caribbean and Overseas Territories ,Foreign & Commonwealth Office ,114450-101 ,"2,422.48",
DFID,DFID,04/05/2016,Research and development costs - supplier services ,Asia  Caribbean and Overseas Territories ,Foreign & Commonwealth Office ,114450-101 ,"2,214.84",
DFID,DFID,19/05/2016,Project delivery costs – supplier services ,Asia  Caribbean and Overseas Territories ,Foreign & Commonwealth Office ,114450-101 ,"2,602.93",
DFID,DFID,19/05/2016,Research and development costs - supplier services ,Asia  Caribbean and Overseas Territories ,Foreign & Commonwealth Office ,114450-101 ,"2,401.37",
DFID,DFID,19/05/2016,Research and development costs - supplier services ,Asia  Caribbean and Overseas Territories ,Foreign & Commonwealth Office ,114450-101 ,"2,195.54",
DFID,DFID,31/05/2016,Conferences  Seminars & Meeting/Event Resource ,Business Solutions Division Level ,Wilmington ,200001-101 ,954.00,
DFID,DFID,31/05/2016,Conferences  Seminars & Meeting/Event Resource ,Business Solutions Division Level , Service Desk Institute,200001-101 ,738.00,
DFID,DFID,19/05/2016,Data network- remote working ,Business Solutions Division Level ,Foreign & Commonwealth Office ,200002-121 ,512.38,
DFID,DFID,19/05/2016,Data network- remote working ,Business Solutions Division Level ,Foreign & Commonwealth Office ,200002-121 ,512.38,
DFID,DFID,31/05/2016,Hardware -Laptop PCs ,Business Solutions Division Level ,Laptop Adaptors ,200002-153 ,653.50,
DFID,DFID,03/05/2016,Air fares ,West and Southern Africa ,Corporate travel provider,200469-117 ,931.75,
DFID,DFID,05/05/2016,Hotels - Accommodation only ,Middle East and North Africa Division ,Foreign & Commonwealth Office ,201701-101 ,518.20,
DFID,DFID,03/05/2016,Air fares ,Middle East and North Africa Division ,Corporate travel provider,201701-101 ,"1,395.85",
DFID,DFID,05/05/2016,Air fares ,Middle East and North Africa Division ,Foreign & Commonwealth Office ,201705-101 ,747.51,
DFID,DFID,03/05/2016,Air fares ,Economic Development Division ,Corporate travel provider,201723-102 ,822.35,
DFID,DFID,05/05/2016,Project delivery costs – supplier services ,Policy Division ,Foreign & Commonwealth Office ,201724-124 ,720.08,
DFID,DFID,05/05/2016,Project delivery costs – supplier services ,Policy Division ,Foreign & Commonwealth Office ,201724-124 ,668.55,
DFID,DFID,05/05/2016,Project delivery costs – supplier services ,Policy Division ,Foreign & Commonwealth Office ,201724-124 ,"2,140.97",
DFID,DFID,03/05/2016,Air fares ,Asia  Caribbean and Overseas Territories ,Corporate travel provider,201724-154 ,522.80,
DFID,DFID,03/05/2016,Air fares ,Economic Development Division ,Corporate travel provider,202259-101 ,886.75,
DFID,DFID,03/05/2016,Air fares ,Economic Development Division ,Corporate travel provider,202373-101 ,898.95,
DFID,DFID,03/05/2016,Air fares ,Economic Development Division ,Corporate travel provider,202373-101 ,542.51,
DFID,DFID,03/05/2016,Air fares ,Economic Development Division ,Corporate travel provider,202373-101 ,680.95,
DFID,DFID,03/05/2016,Air fares ,Research and Evidence Division ,Corporate travel provider,202392-102 ,532.15,
DFID,DFID,03/05/2016,Air fares ,Research and Evidence Division ,Corporate travel provider,202392-102 ,533.25,
DFID,DFID,03/05/2016,Air fares ,Research and Evidence Division ,Corporate travel provider,202392-102 ,531.95,
DFID,DFID,03/05/2016,Air fares ,Research and Evidence Division ,Corporate travel provider,202392-103 ,"1,123.35",
DFID,DFID,18/05/2016,Air fares ,Research and Evidence Division ,Foreign & Commonwealth Office ,202392-111 ,506.60,
DFID,DFID,03/05/2016,Air fares ,Policy Division ,Corporate travel provider,202396-101 ,777.85,
DFID,DFID,03/05/2016,Hotels - Accommodation only ,Policy Division ,Corporate travel provider,202396-101 ,534.44,
DFID,DFID,03/05/2016,Hotels - Accommodation only ,Policy Division ,Corporate travel provider,202396-101 ,543.44,
DFID,DFID,03/05/2016,Air fares ,Policy Division ,Corporate travel provider,202396-101 ,570.06,
DFID,DFID,03/05/2016,Air fares ,Policy Division ,Corporate travel provider,202419-101 ,709.35,
DFID,DFID,03/05/2016,Air fares ,Policy Division ,Corporate travel provider,202419-101 ,697.75,
DFID,DFID,03/05/2016,Air fares ,Policy Division ,Corporate travel provider,202419-101 ,701.59,
DFID,DFID,03/05/2016,Air fares ,Policy Division ,Corporate travel provider,202419-101 ,763.25,
DFID,DFID,03/05/2016,Air fares ,Economic Development Division ,Corporate travel provider,202432-101 ,898.95,
DFID,DFID,31/05/2016,Conferences  Seminars & Meeting/Event Resource ,Economic Development Division ,Eventbrite,202432-101 ,707.03,
DFID,DFID,31/05/2016,Hotels - Accommodation only ,Economic Development Division ,Booking.com,202432-101 ,593.35,
DFID,DFID,03/05/2016,Air fares ,Conflict  Humanitarian  Security & Stabilisation Division ,Corporate travel provider,202410-109 ,"1,169.35",
DFID,DFID,03/05/2016,Air fares ,Conflict  Humanitarian  Security & Stabilisation Division ,Corporate travel provider,202410-109 ,"1,107.35",
DFID,DFID,03/05/2016,Air fares ,Conflict  Humanitarian  Security & Stabilisation Division ,Corporate travel provider,202410-109 ,"3,441.45",
DFID,DFID,03/05/2016,Air fares ,East and Central Africa ,Corporate travel provider,202594-101 ,632.85,
DFID,DFID,03/05/2016,Air fares ,East and Central Africa ,Corporate travel provider,202594-101 ,600.40,
DFID,DFID,03/05/2016,Air fares ,East and Central Africa ,Corporate travel provider,202594-101 ,610.37,
DFID,DFID,03/05/2016,Air fares ,East and Central Africa ,Corporate travel provider,202594-101 ,755.90,
DFID,DFID,03/05/2016,Air fares ,East and Central Africa ,Corporate travel provider,202594-101 ,626.97,
DFID,DFID,03/05/2016,Air fares ,East and Central Africa ,Corporate travel provider,202594-101 ,683.15,
DFID,DFID,03/05/2016,Air fares ,East and Central Africa ,Corporate travel provider,202594-101 ,987.24,
DFID,DFID,03/05/2016,Air fares ,East and Central Africa ,Corporate travel provider,202594-101 ,638.00,
DFID,DFID,03/05/2016,Air fares ,East and Central Africa ,Corporate travel provider,202594-101 ,599.15,
DFID,DFID,03/05/2016,Air fares ,East and Central Africa ,Corporate travel provider,202594-101 ,920.05,
DFID,DFID,03/05/2016,Air fares ,East and Central Africa ,Corporate travel provider,202594-101 ,"1,728.35",
DFID,DFID,18/05/2016,Hotels - Accommodation only ,East and Central Africa ,Foreign & Commonwealth Office ,202594-101 ,512.43,
DFID,DFID,18/05/2016,Air fares ,East and Central Africa ,Foreign & Commonwealth Office ,202594-101 ,504.83,
DFID,DFID,03/05/2016,Air fares ,East and Central Africa ,Corporate travel provider,202594-101 ,630.35,
DFID,DFID,03/05/2016,Air fares ,East and Central Africa ,Corporate travel provider,202594-101 ,"1,972.30",
DFID,DFID,03/05/2016,Air fares ,East and Central Africa ,Corporate travel provider,202586-101 ,599.45,
DFID,DFID,18/05/2016,Medical Equipment ,West and Southern Africa ,Foreign & Commonwealth Office ,202694-103 ,"5,408.03",
DFID,DFID,05/05/2016,Project delivery costs – supplier services ,East and Central Africa ,Foreign & Commonwealth Office ,202989-102 ,575.85,
DFID,DFID,05/05/2016,Aid Programme - Humanitarian Material Relief Assistance and Services ,East and Central Africa ,Foreign & Commonwealth Office ,203071-103 ,"3,477.58",
DFID,DFID,18/05/2016,Aid Programme - Humanitarian Material Relief Assistance and Services ,East and Central Africa ,Foreign & Commonwealth Office ,203071-103 ,"3,593.28",
DFID,DFID,18/05/2016,Aid Programme - Humanitarian Material Relief Assistance and Services ,East and Central Africa ,Foreign & Commonwealth Office ,203071-103 ,"3,865.53",
DFID,DFID,06/05/2016,Project delivery costs – supplier services ,Asia  Caribbean and Overseas Territories ,Foreign & Commonwealth Office ,203101-102 ,"1,728.75",
DFID,DFID,19/05/2016,Data Network - land lines ,Business Solutions Division Level ,Foreign & Commonwealth Office ,203329-102 ,"1,463.37",
DFID,DFID,03/05/2016,Air fares ,Business Solutions Division Level ,Corporate travel provider,203329-104 ,926.52,
DFID,DFID,13/05/2016,Project delivery costs – supplier services ,Asia  Caribbean and Overseas Territories ,Foreign & Commonwealth Office ,203454-104 ,"3,201.14",
DFID,DFID,13/05/2016,Project delivery costs – supplier services ,Asia  Caribbean and Overseas Territories ,Foreign & Commonwealth Office ,203454-104 ,"4,415.84",
DFID,DFID,03/05/2016,Air fares ,West and Southern Africa ,Corporate travel provider,203536-103 ,705.35,
DFID,DFID,31/05/2016,Other Building Products ,Group Operations ,Office needs direct,203717-101 ,504.96,
DFID,DFID,31/05/2016,Office Supplies ,Group Operations ,EurekaDirect,203717-101 ,"2,610.00",
DFID,DFID,31/05/2016,Office Supplies ,Group Operations ,Bathrooms and showers direct ,203717-101 ,755.86,
DFID,DFID,31/05/2016,Office Supplies ,Group Operations ,Clearence solutions Ltd ,203717-101 ,713.39,
DFID,DFID,18/05/2016,Aid Programme - Accountable Grant Payments ,East and Central Africa ,Foreign & Commonwealth Office ,203928-104 ,"34,404.29",
DFID,DFID,18/05/2016,Project delivery costs – supplier services ,East and Central Africa ,Foreign & Commonwealth Office ,203961-114 ,"3,578.02",
DFID,DFID,18/05/2016,Aid Programme - Humanitarian Material Relief Assistance and Services ,East and Central Africa ,Foreign & Commonwealth Office ,203961-114 ,"1,852.70",
DFID,DFID,18/05/2016,Aid Programme - Humanitarian Material Relief Assistance and Services ,East and Central Africa ,Foreign & Commonwealth Office ,203961-114 ,"1,678.20",
DFID,DFID,03/05/2016,Air fares ,Asia  Caribbean and Overseas Territories ,Corporate travel provider,204053-101 ,"1,245.55",
DFID,DFID,03/05/2016,Air fares ,Middle East and North Africa Division ,Corporate travel provider,204055-101 ,524.21,
DFID,DFID,03/05/2016,Air fares ,Middle East and North Africa Division ,Corporate travel provider,204055-101 ,699.11,
DFID,DFID,03/05/2016,Air fares ,Global Funds ,Corporate travel provider,204452-101 ,"1,306.31",
DFID,DFID,03/05/2016,Air fares ,Global Funds ,Corporate travel provider,204452-101 ,988.25,
DFID,DFID,05/05/2016,Aid Programme - Humanitarian Material Relief Assistance and Services ,Middle East and North Africa Division ,Foreign & Commonwealth Office ,204516-102 ,968.92,
DFID,DFID,05/05/2016,Aid Programme - Humanitarian Material Relief Assistance and Services ,Middle East and North Africa Division ,Foreign & Commonwealth Office ,204516-102 ,"1,076.58",
DFID,DFID,05/05/2016,Aid Programme - Humanitarian Material Relief Assistance and Services ,Middle East and North Africa Division ,Foreign & Commonwealth Office ,204516-102 ,"1,076.58",
DFID,DFID,05/05/2016,Aid Programme - Humanitarian Material Relief Assistance and Services ,Middle East and North Africa Division ,Foreign & Commonwealth Office ,204516-102 ,"3,057.41",
DFID,DFID,04/05/2016,Project delivery costs – supplier services ,Middle East and North Africa Division ,Foreign & Commonwealth Office ,204516-103 ,941.76,
DFID,DFID,04/05/2016,Hotels - Accommodation only ,Asia  Caribbean and Overseas Territories ,Foreign & Commonwealth Office ,204792-104 ,"2,332.89",
DFID,DFID,04/05/2016,Hotels - Accommodation only ,Asia  Caribbean and Overseas Territories ,Foreign & Commonwealth Office ,204792-104 ,"1,624.66",
DFID,DFID,19/05/2016,Hotels - Accommodation only ,Asia  Caribbean and Overseas Territories ,Foreign & Commonwealth Office ,204791-101 ,"2,570.19",
DFID,DFID,06/05/2016,Project delivery costs – supplier services ,Asia  Caribbean and Overseas Territories ,Foreign & Commonwealth Office ,204791-101 ,"1,493.99",
DFID,DFID,03/05/2016,Air fares ,Regional Directorate ,Corporate travel provider,204832-101 ,561.35,
DFID,DFID,06/05/2016,Project delivery costs – supplier services ,Asia  Caribbean and Overseas Territories ,Foreign & Commonwealth Office ,204887-101 ,"1,376.66",
DFID,DFID,04/05/2016,Research and development costs - supplier services ,Asia  Caribbean and Overseas Territories ,Foreign & Commonwealth Office ,204887-101 ,"3,633.72",
DFID,DFID,06/05/2016,Project delivery costs – supplier services ,Asia  Caribbean and Overseas Territories ,Foreign & Commonwealth Office ,204887-101 ,761.35,
DFID,DFID,19/05/2016,Project delivery costs – supplier services ,Asia  Caribbean and Overseas Territories ,Foreign & Commonwealth Office ,204879-101 ,867.86,
DFID,DFID,03/05/2016,Air fares ,Regional Directorate ,Corporate travel provider,204891-101 ,896.03,
DFID,DFID,03/05/2016,Air fares ,Regional Directorate ,Corporate travel provider,204892-101 ,"1,488.53",
DFID,DFID,04/05/2016,Air fares ,Middle East and North Africa Division ,Foreign & Commonwealth Office ,204981-101 ,"3,702.94",
DFID,DFID,03/05/2016,Air fares ,Conflict  Humanitarian  Security & Stabilisation Division ,Corporate travel provider,300042-101 ,"1,169.65",
DFID,DFID,03/05/2016,Air fares ,Conflict  Humanitarian  Security & Stabilisation Division ,Corporate travel provider,300042-101 ,"1,169.65",
DFID,DFID,03/05/2016,Hotels - Accommodation only ,Conflict  Humanitarian  Security & Stabilisation Division ,Corporate travel provider,300042-101 ,540.60,
DFID,DFID,03/05/2016,Hotels - Accommodation only ,Conflict  Humanitarian  Security & Stabilisation Division ,Corporate travel provider,300042-101 ,540.60,
DFID,DFID,30/05/2016,Aid Programme - Accountable Grant Payments ,Research and Evidence Division ,ASSOCIATION OF COMMONWEALTH UNIVER ,201871-101 ,"486,249.00",
DFID,DFID,30/05/2016,Aid Programme - Accountable Grant Payments ,Research and Evidence Division ,ASSOCIATION OF COMMONWEALTH UNIVER ,201871-103 ,"2,900.00",
DFID,DFID,19/05/2016,Project delivery costs – supplier services ,Asia  Caribbean and Overseas Territories ,ADAM SMITH INTERNATIONAL  LTD ,202328-102 ,"607,911.18",
DFID,DFID,24/05/2016,Project delivery costs – supplier services ,Asia  Caribbean and Overseas Territories ,Supplier Name withheld ,202112-102 ,"151,309.71",
DFID,DFID,20/05/2016,Project delivery costs – supplier services ,West and Southern Africa ,ADAM SMITH INTERNATIONAL  LTD ,201433-102 ,"1,246,347.64",
DFID,DFID,04/05/2016,Project delivery costs – supplier services ,West and Southern Africa ,ADAM SMITH INTERNATIONAL  LTD ,104190-102 ,"565,611.06",
DFID,DFID,04/05/2016,Project delivery costs – supplier services ,West and Southern Africa ,ADAM SMITH INTERNATIONAL  LTD ,104190-102 ,"16,560.00",
DFID,DFID,06/05/2016,Project delivery costs – supplier services ,West and Southern Africa ,ADAM SMITH INTERNATIONAL  LTD ,203824-103 ,"90,000.00",
DFID,DFID,06/05/2016,Project delivery costs – supplier services ,West and Southern Africa ,ADAM SMITH INTERNATIONAL  LTD ,203824-103 ,"79,526.16",
DFID,DFID,31/05/2016,Project delivery costs – supplier services ,West and Southern Africa ,ADAM SMITH INTERNATIONAL  LTD ,203839-101 ,"180,782.89",
DFID,DFID,23/05/2016,Project delivery costs – supplier services ,West and Southern Africa ,ADAM SMITH INTERNATIONAL  LTD ,203839-101 ,"158,548.00",
DFID,DFID,26/05/2016,Project delivery costs – supplier services ,West and Southern Africa ,ADAM SMITH INTERNATIONAL  LTD ,203839-101 ,"158,548.00",
DFID,DFID,03/05/2016,Project delivery costs – supplier services ,West and Southern Africa ,ADAM SMITH INTERNATIONAL  LTD ,203719-101 ,"110,794.72",
DFID,DFID,24/05/2016,Project delivery costs – supplier services ,West and Southern Africa ,ADAM SMITH INTERNATIONAL  LTD ,203674-102 ,"55,781.74",
DFID,DFID,24/05/2016,Project delivery costs – supplier services ,West and Southern Africa ,ADAM SMITH INTERNATIONAL  LTD ,203674-102 ,"161,129.42",
DFID,DFID,25/05/2016,Project delivery costs – supplier services ,Asia  Caribbean and Overseas Territories ,ADAM SMITH INTERNATIONAL  LTD ,203508-103 ,"69,976.00",
DFID,DFID,03/05/2016,Project delivery costs – supplier services ,West and Southern Africa ,ADAM SMITH INTERNATIONAL  LTD ,203161-103 ,"567,580.11",
DFID,DFID,23/05/2016,Project delivery costs – supplier services ,West and Southern Africa ,ADAM SMITH INTERNATIONAL  LTD ,203161-103 ,"529,250.41",
DFID,DFID,09/05/2016,Project delivery costs – supplier services ,East and Central Africa ,ADAM SMITH INTERNATIONAL  LTD ,203153-103 ,"120,384.00",
DFID,DFID,19/05/2016,Project delivery costs – supplier services ,East and Central Africa ,ADAM SMITH INTERNATIONAL  LTD ,202974-113 ,"184,931.00",
DFID,DFID,06/05/2016,Project delivery costs – supplier services ,Middle East and North Africa Division ,ADAM SMITH INTERNATIONAL  LTD ,202564-103 ,"3,160.00",
DFID,DFID,20/05/2016,Project delivery costs – supplier services ,West and Southern Africa ,ADAM SMITH INTERNATIONAL  LTD ,202541-106 ,"335,088.50",
DFID,DFID,05/05/2016,Project delivery costs – supplier services ,West and Southern Africa ,ADAM SMITH INTERNATIONAL  LTD ,202541-106 ,"363,632.00",
DFID,DFID,03/05/2016,Contract & Agency Staff ,Business Solutions Division Level ,ALLEGIS GROUP LIMITED ,200001-101 ,"5,772.00",
DFID,DFID,03/05/2016,Project delivery costs � supplier services,Business Solutions Division Level ,ALLEGIS GROUP LIMITED ,200001-101 ,"2,250.00",
DFID,DFID,06/05/2016,Project delivery costs � supplier services,Business Solutions Division Level ,ALLEGIS GROUP LIMITED ,200001-101 ,"1,980.00",
DFID,DFID,11/05/2016,Project delivery costs – supplier services ,West and Southern Africa ,ATOS IT Services UK Ltd ,203230-101 ,"37,671.40",
DFID,DFID,11/05/2016,Project delivery costs – supplier services ,West and Southern Africa ,ATOS IT Services UK Ltd ,203230-101 ,"242,431.92",
DFID,DFID,26/05/2016,Encashment of Promissory Notes ,Economic Development Division ,AFRICAN  DEVELOPMENT BANK GROUP ,203546-101 ,"22,234,460.09",
DFID,DFID,26/05/2016,Encashment of Promissory Notes ,Economic Development Division ,AFRICAN  DEVELOPMENT BANK GROUP ,203546-101 ,"22,234,460.09",
DFID,DFID,26/05/2016,Encashment of Promissory Notes ,Economic Development Division ,AFRICAN  DEVELOPMENT BANK GROUP ,200147-104 ,"8,757,000.00",
DFID,DFID,26/05/2016,Encashment of Promissory Notes ,Economic Development Division ,AFRICAN  DEVELOPMENT BANK GROUP ,202278-102 ,"15,833,314.13",
DFID,DFID,10/05/2016,Project delivery costs – supplier services ,Business Solutions Division Level ,Unit 4 ,200005-132 ,"4,860.00",
DFID,DFID,24/05/2016,Computer software maintenance ,Business Solutions Division Level ,Unit 4 ,200002-107 ,"62,663.78",Maintenance and support costs for the  DFID Financial Management System for the period March to June 2016 
DFID,DFID,23/05/2016,Project delivery costs – supplier services ,West and Southern Africa ,BRITISH COUNCIL (UK) ,114161-101 ,"563,776.81",
DFID,DFID,04/05/2016,Aid Programme - Accountable Grant Payments ,East and Central Africa ,Supplier Name withheld ,203928-102 ,"420,938.96",
DFID,DFID,09/05/2016,Aid Programme - Accountable Grant Payments ,Policy Division ,BRITISH COUNCIL (UK) ,205033-101 ,"1,222,139.00",
DFID,DFID,16/05/2016,Aid Programme - Accountable Grant Payments ,Research and Evidence Division ,Natural Environment Research Council ,201884-107 ,"38,547.25",
DFID,DFID,12/05/2016,Training Providers/Facilitation Services ,Human Resources ,BOND ,100269-153 ,"1,984.55",
DFID,DFID,13/05/2016,Aid Programme - Accountable Grant Payments ,Policy Division ,BOND ,203953-101 ,"300,662.00",
DFID,DFID,12/05/2016,Project delivery costs – supplier services ,Middle East and North Africa Division ,BOND ,205244-101 ,"103,879.00",
DFID,DFID,23/05/2016,Aid Programme - Voluntary contributions ,East and Central Africa ,Supplier Name withheld ,203768-101 ,"114,395.00",
DFID,DFID,10/05/2016,Telephone Usage & services ,Business Solutions Division Level ,BT BACS PAYMENTS ,200002-130 ,"1,344.52",
DFID,DFID,20/05/2016,Project delivery costs – supplier services ,West and Southern Africa ,BRITISH COUNCIL ,201625-101 ,"430,977.45",
DFID,DFID,03/05/2016,Project delivery costs – supplier services ,West and Southern Africa ,BRITISH COUNCIL ,203851-102 ,"39,655.59",
DFID,DFID,31/05/2016,Project delivery costs – supplier services ,West and Southern Africa ,BRITISH COUNCIL ,203816-102 ,"55,109.55",
DFID,DFID,19/05/2016,Project delivery costs – supplier services ,Middle East and North Africa Division ,BRITISH COUNCIL ,203726-101 ,"239,459.45",
DFID,DFID,10/05/2016,Project delivery costs – supplier services ,East and Central Africa ,BRITISH COUNCIL ,203396-103 ,"858,311.71",
DFID,DFID,10/05/2016,Aid Programme - Accountable Grant Payments ,Policy Division ,CAFOD ,203559-138 ,"402,556.00",
DFID,DFID,10/05/2016,Aid Programme - Accountable Grant Payments ,West and Southern Africa ,CHRISTIAN AID ,202352-105 ,"8,427.71",
DFID,DFID,26/05/2016,Aid Programme - Accountable Grant Payments ,West and Southern Africa ,CHRISTIAN AID ,201196-112 ,"633,138.53",
DFID,DFID,12/05/2016,Project delivery costs – supplier services ,Policy Division ,CHRISTIAN AID ,204333-104 ,"61,576.35",
DFID,DFID,23/05/2016,Fund monies to be managed and dispersed by the supplier ,Research and Evidence Division ,Crown Agents. ,204415-103 ,"12,432.00",
DFID,DFID,23/05/2016,Fund monies to be managed and dispersed by the supplier ,Research and Evidence Division ,Crown Agents. ,204415-103 ,900.00,
DFID,DFID,05/05/2016,Project delivery costs – supplier services ,Middle East and North Africa Division ,Crown Agents. ,204267-101 ,"17,293.80",
DFID,DFID,04/05/2016,Project delivery costs – supplier services ,Middle East and North Africa Division ,Crown Agents. ,204267-103 ,"10,419.30",
DFID,DFID,20/05/2016,Project delivery costs – supplier services ,Middle East and North Africa Division ,Crown Agents. ,204267-103 ,525.01,
DFID,DFID,13/05/2016,Project delivery costs – supplier services ,Middle East and North Africa Division ,Crown Agents. ,204267-103 ,"17,161.20",
DFID,DFID,17/05/2016,Aid Programme - Humanitarian Material Relief Assistance and Services ,Middle East and North Africa Division ,Crown Agents. ,204516-103 ,"1,263.00",
DFID,DFID,12/05/2016,Aid Programme - Humanitarian Material Relief Assistance and Services ,Middle East and North Africa Division ,Crown Agents. ,204516-103 ,"14,865.60",
DFID,DFID,20/05/2016,Aid Programme - Humanitarian Material Relief Assistance and Services ,Middle East and North Africa Division ,Crown Agents. ,204516-102 ,"66,682.20",
DFID,DFID,03/05/2016,Aid Programme - Humanitarian Material Relief Assistance and Services ,Middle East and North Africa Division ,Crown Agents. ,204516-102 ,"2,584.88",
DFID,DFID,03/05/2016,Aid Programme - Humanitarian Material Relief Assistance and Services ,Middle East and North Africa Division ,Crown Agents. ,204516-102 ,"17,121.38",
DFID,DFID,25/05/2016,Aid Programme - Humanitarian Material Relief Assistance and Services ,Middle East and North Africa Division ,Crown Agents. ,204516-102 ,"3,810.48",
DFID,DFID,25/05/2016,Aid Programme - Humanitarian Material Relief Assistance and Services ,Middle East and North Africa Division ,Crown Agents. ,204516-102 ,"20,630.56",
DFID,DFID,26/05/2016,Aid Programme - Humanitarian Material Relief Assistance and Services ,Middle East and North Africa Division ,Crown Agents. ,204516-102 ,"48,904.20",
DFID,DFID,17/05/2016,Aid Programme - Humanitarian Material Relief Assistance and Services ,Middle East and North Africa Division ,Crown Agents. ,204516-102 ,"51,599.40",
DFID,DFID,23/05/2016,Project delivery costs – supplier services ,East and Central Africa ,Crown Agents. ,204439-103 ,"10,937.12",
DFID,DFID,23/05/2016,Project delivery costs – supplier services ,East and Central Africa ,Crown Agents. ,204439-103 ,"3,089.31",
DFID,DFID,17/05/2016,Project delivery costs – supplier services ,East and Central Africa ,Crown Agents. ,204439-103 ,"11,378.40",
DFID,DFID,16/05/2016,Project delivery costs – supplier services ,East and Central Africa ,Crown Agents. ,204439-103 ,"10,656.00",
DFID,DFID,23/05/2016,Fund monies to be managed and dispersed by the supplier ,Research and Evidence Division ,Crown Agents. ,204571-106 ,"267,968.59",
DFID,DFID,06/05/2016,Bank Charges/Services ,Group Operations ,Crown Agents. ,204664-101 ,"3,000.00",
DFID,DFID,16/05/2016,Project delivery costs – supplier services ,West and Southern Africa ,Crown Agents. ,205122-101 ,"11,718.00",
DFID,DFID,12/05/2016,DFID Purchased Relief Supplies ,Conflict  Humanitarian  Security & Stabilisation Division ,Crown Agents. ,205141-106 ,"440,551.88",
DFID,DFID,12/05/2016,DFID Purchased Relief Supplies ,Conflict  Humanitarian  Security & Stabilisation Division ,Crown Agents. ,205141-106 ,"1,593.37",
DFID,DFID,12/05/2016,DFID Purchased Relief Supplies ,Conflict  Humanitarian  Security & Stabilisation Division ,Crown Agents. ,205141-106 ,"269,123.21",
DFID,DFID,17/05/2016,DFID Purchased Relief Supplies ,Conflict  Humanitarian  Security & Stabilisation Division ,Crown Agents. ,205141-106 ,"28,416.07",
DFID,DFID,18/05/2016,DFID Purchased Relief Supplies ,Conflict  Humanitarian  Security & Stabilisation Division ,Crown Agents. ,205141-106 ,"275,249.44",
DFID,DFID,10/05/2016,DFID Purchased Relief Supplies ,Conflict  Humanitarian  Security & Stabilisation Division ,Crown Agents. ,205141-106 ,"6,871.80",
DFID,DFID,24/05/2016,Project delivery costs – supplier services ,East and Central Africa ,Crown Agents. ,205064-106 ,544.95,
DFID,DFID,24/05/2016,Project delivery costs – supplier services ,East and Central Africa ,Crown Agents. ,205064-106 ,"4,876.80",
DFID,DFID,19/05/2016,Project delivery costs – supplier services ,East and Central Africa ,Crown Agents. ,205064-106 ,"13,502.40",
DFID,DFID,04/05/2016,Project delivery costs – supplier services ,East and Central Africa ,Crown Agents. ,205064-106 ,"20,360.38",
DFID,DFID,04/05/2016,Project delivery costs – supplier services ,East and Central Africa ,Crown Agents. ,205064-106 ,"30,175.20",
DFID,DFID,04/05/2016,Project delivery costs – supplier services ,East and Central Africa ,Crown Agents. ,205070-105 ,"20,116.80",
DFID,DFID,19/05/2016,Project delivery costs – supplier services ,East and Central Africa ,Crown Agents. ,205070-105 ,"2,499.60",
DFID,DFID,24/05/2016,Project delivery costs – supplier services ,East and Central Africa ,Crown Agents. ,205070-105 ,"2,499.60",
DFID,DFID,18/05/2016,Aid Programme - Humanitarian Material Relief Assistance and Services ,Asia  Caribbean and Overseas Territories ,Crown Agents. ,205028-101 ,"14,859.00",
DFID,DFID,23/05/2016,Aid Programme - Humanitarian Material Relief Assistance and Services ,Asia  Caribbean and Overseas Territories ,Crown Agents. ,205028-101 ,"16,764.00",
DFID,DFID,19/05/2016,Aid Programme - Humanitarian Material Relief Assistance and Services ,Asia  Caribbean and Overseas Territories ,Crown Agents. ,205028-101 ,"1,101.13",
DFID,DFID,12/05/2016,Project delivery costs – supplier services ,Regional Directorate ,Crown Agents. ,204902-103 ,"31,843.93",
DFID,DFID,12/05/2016,Project delivery costs – supplier services ,Regional Directorate ,Crown Agents. ,204902-103 ,"42,003.44",
DFID,DFID,12/05/2016,Project delivery costs – supplier services ,Regional Directorate ,Crown Agents. ,204902-103 ,825.36,
DFID,DFID,18/05/2016,Project delivery costs – supplier services ,Regional Directorate ,Crown Agents. ,204902-103 ,"16,228.80",
DFID,DFID,09/05/2016,Project delivery costs – supplier services ,Regional Directorate ,Crown Agents. ,204902-103 ,"22,881.60",
DFID,DFID,09/05/2016,Project delivery costs – supplier services ,Regional Directorate ,Crown Agents. ,204902-103 ,"19,185.60",
DFID,DFID,03/05/2016,Project delivery costs – supplier services ,Regional Directorate ,Crown Agents. ,204967-106 ,"21,240.00",
DFID,DFID,03/05/2016,Project delivery costs – supplier services ,Regional Directorate ,Crown Agents. ,204967-106 ,"10,668.00",
DFID,DFID,25/05/2016,Aid Programme - Humanitarian Material Relief Assistance and Services ,Middle East and North Africa Division ,Crown Agents. ,204968-103 ,"9,576.00",
DFID,DFID,19/05/2016,Aid Programme - Humanitarian Material Relief Assistance and Services ,Middle East and North Africa Division ,Crown Agents. ,204968-103 ,674.39,
DFID,DFID,06/05/2016,Aid Programme - Humanitarian Material Relief Assistance and Services ,Middle East and North Africa Division ,Crown Agents. ,204968-103 ,"18,458.91",
DFID,DFID,05/05/2016,Aid Programme - Humanitarian Material Relief Assistance and Services ,Middle East and North Africa Division ,Crown Agents. ,204968-103 ,"2,941.04",
DFID,DFID,12/05/2016,Project delivery costs – supplier services ,East and Central Africa ,Crown Agents. ,204851-105 ,"11,430.00",
DFID,DFID,19/05/2016,Project delivery costs – supplier services ,Asia  Caribbean and Overseas Territories ,Crown Agents. ,204792-104 ,"9,525.00",
DFID,DFID,19/05/2016,Project delivery costs – supplier services ,Asia  Caribbean and Overseas Territories ,Crown Agents. ,204792-104 ,"3,810.00",
DFID,DFID,25/05/2016,Project delivery costs – supplier services ,Conflict  Humanitarian  Security & Stabilisation Division ,Crown Agents. ,300042-101 ,"5,568.00",
DFID,DFID,12/05/2016,Project delivery costs – supplier services ,East and Central Africa ,Crown Agents. ,200221-107 ,"249,488.43",
DFID,DFID,12/05/2016,Fund monies to be managed and dispersed by the supplier ,East and Central Africa ,Crown Agents. ,200349-102 ,"1,000,000.00",
DFID,DFID,31/05/2016,Project delivery costs – supplier services ,East and Central Africa ,Crown Agents. ,200349-102 ,"336,209.92",
DFID,DFID,25/05/2016,Project delivery costs – supplier services ,West and Southern Africa ,Crown Agents. ,200625-105 ,"13,151.57",
DFID,DFID,19/05/2016,Project delivery costs – supplier services ,West and Southern Africa ,Crown Agents. ,200625-105 ,"15,064.10",
DFID,DFID,17/05/2016,Project delivery costs – supplier services ,Policy Division ,Crown Agents. ,200706-102 ,"143,034.10",
DFID,DFID,10/05/2016,Aid Programme - Accountable Grant Payments ,Policy Division ,Crown Agents. ,201101-108 ,"399,119.14",
DFID,DFID,13/05/2016,Fund monies to be managed and dispersed by the supplier ,Economic Development Division ,Crown Agents. ,202089-101 ,"12,553.25",
DFID,DFID,20/05/2016,Fund monies to be managed and dispersed by the supplier ,Economic Development Division ,Crown Agents. ,202089-102 ,"208,579.32",
DFID,DFID,13/05/2016,DFID Purchased Relief Supplies ,West and Southern Africa ,Crown Agents. ,104229-102 ,"6,853.40",
DFID,DFID,13/05/2016,DFID Purchased Relief Supplies ,West and Southern Africa ,Crown Agents. ,104229-102 ,642.51,
DFID,DFID,13/05/2016,DFID Purchased Relief Supplies ,West and Southern Africa ,Crown Agents. ,104229-102 ,"34,151.81",
DFID,DFID,13/05/2016,DFID Purchased Relief Supplies ,West and Southern Africa ,Crown Agents. ,104229-102 ,"238,561.07",
DFID,DFID,26/05/2016,DFID Purchased Relief Supplies ,West and Southern Africa ,Crown Agents. ,104229-102 ,"15,723.82",
DFID,DFID,26/05/2016,DFID Purchased Relief Supplies ,West and Southern Africa ,Crown Agents. ,104229-102 ,"8,394.28",
DFID,DFID,26/05/2016,DFID Purchased Relief Supplies ,West and Southern Africa ,Crown Agents. ,104229-102 ,"55,315.11",
DFID,DFID,13/05/2016,DFID Purchased Relief Supplies ,West and Southern Africa ,Crown Agents. ,104229-102 ,"31,234.00",
DFID,DFID,13/05/2016,DFID Purchased Relief Supplies ,West and Southern Africa ,Crown Agents. ,104229-102 ,"2,801.62",
DFID,DFID,31/05/2016,DFID Purchased Relief Supplies ,West and Southern Africa ,Crown Agents. ,104229-102 ,"1,141.07",
DFID,DFID,31/05/2016,DFID Purchased Relief Supplies ,West and Southern Africa ,Crown Agents. ,104229-102 ,"8,577.41",
DFID,DFID,31/05/2016,DFID Purchased Relief Supplies ,West and Southern Africa ,Crown Agents. ,104229-102 ,"16,278.35",
DFID,DFID,03/05/2016,DFID Purchased Relief Supplies ,West and Southern Africa ,Crown Agents. ,104229-102 ,"22,238.41",
DFID,DFID,18/05/2016,Project delivery costs – supplier services ,West and Southern Africa ,Crown Agents. ,202349-103 ,"125,000.00",
DFID,DFID,26/05/2016,Hostile Environment Training ,Conflict  Humanitarian  Security & Stabilisation Division ,Crown Agents. ,202410-108 ,"3,400.00",
DFID,DFID,12/05/2016,Project delivery costs – supplier services ,Asia  Caribbean and Overseas Territories ,Crown Agents. ,202433-103 ,"3,339.98",
DFID,DFID,12/05/2016,Project delivery costs – supplier services ,Asia  Caribbean and Overseas Territories ,Crown Agents. ,202393-103 ,"29,498.26",
DFID,DFID,10/05/2016,Project delivery costs – supplier services ,Asia  Caribbean and Overseas Territories ,Crown Agents. ,202393-108 ,"1,175,907.00",
DFID,DFID,17/05/2016,Fund monies to be managed and dispersed by the supplier ,West and Southern Africa ,Crown Agents. ,202531-104 ,"63,768.35",
DFID,DFID,12/05/2016,Fund monies to be managed and dispersed by the supplier ,Policy Division ,Crown Agents. ,202628-101 ,"87,026.00",
DFID,DFID,16/05/2016,Fund monies to be managed and dispersed by the supplier ,Policy Division ,Crown Agents. ,202628-101 ,"28,123.00",
DFID,DFID,05/05/2016,Fund monies to be managed and dispersed by the supplier ,Policy Division ,Crown Agents. ,202628-101 ,"403,424.00",
DFID,DFID,03/05/2016,Medicines & Drugs ,West and Southern Africa ,Crown Agents. ,202992-102 ,"26,596.90",
DFID,DFID,31/05/2016,DFID Purchased Relief Supplies ,West and Southern Africa ,Crown Agents. ,202992-102 ,"12,368.08",
DFID,DFID,03/05/2016,Medicines & Drugs ,West and Southern Africa ,Crown Agents. ,202992-102 ,"20,964.65",
DFID,DFID,03/05/2016,Medicines & Drugs ,West and Southern Africa ,Crown Agents. ,202992-102 ,"19,054.04",
DFID,DFID,03/05/2016,Medicines & Drugs ,West and Southern Africa ,Crown Agents. ,202992-102 ,"1,959.25",
DFID,DFID,03/05/2016,DFID Purchased Relief Supplies ,West and Southern Africa ,Crown Agents. ,202992-102 ,"4,264.51",
DFID,DFID,03/05/2016,Medicines & Drugs ,West and Southern Africa ,Crown Agents. ,202992-102 ,"13,962.91",
DFID,DFID,05/05/2016,Project delivery costs – supplier services ,West and Southern Africa ,Crown Agents. ,203001-103 ,"436,371.30",
DFID,DFID,17/05/2016,DFID Purchased Relief Supplies ,East and Central Africa ,Crown Agents. ,202900-107 ,"241,842.00",
DFID,DFID,19/05/2016,Aid Programme - Humanitarian Material Relief Assistance and Services ,West and Southern Africa ,Crown Agents. ,202909-115 ,"15,720.00",
DFID,DFID,06/05/2016,Fund monies to be managed and dispersed by the supplier ,East and Central Africa ,Crown Agents. ,202946-107 ,"1,041,738.39",
DFID,DFID,06/05/2016,Fund monies to be managed and dispersed by the supplier ,East and Central Africa ,Crown Agents. ,202974-101 ,"30,315.98",
DFID,DFID,09/05/2016,Fund monies to be managed and dispersed by the supplier ,East and Central Africa ,Crown Agents. ,202974-101 ,"7,130.69",
DFID,DFID,09/05/2016,DFID Purchased Relief Supplies ,West and Southern Africa ,Crown Agents. ,202694-103 ,"30,451.63",
DFID,DFID,19/05/2016,DFID Purchased Relief Supplies ,West and Southern Africa ,Crown Agents. ,202694-103 ,"17,165.93",
DFID,DFID,26/05/2016,DFID Purchased Relief Supplies ,West and Southern Africa ,Crown Agents. ,202694-103 ,"6,470.32",
DFID,DFID,17/05/2016,Project delivery costs – supplier services ,Conflict  Humanitarian  Security & Stabilisation Division ,Crown Agents. ,202741-106 ,"4,118.40",
DFID,DFID,18/05/2016,Project delivery costs – supplier services ,Conflict  Humanitarian  Security & Stabilisation Division ,Crown Agents. ,202741-106 ,"327,590.40",
DFID,DFID,18/05/2016,Project delivery costs – supplier services ,Conflict  Humanitarian  Security & Stabilisation Division ,Crown Agents. ,202741-107 ,"2,040.00",
DFID,DFID,16/05/2016,Project delivery costs – supplier services ,Conflict  Humanitarian  Security & Stabilisation Division ,Crown Agents. ,202741-107 ,948.00,
DFID,DFID,16/05/2016,Project delivery costs – supplier services ,Conflict  Humanitarian  Security & Stabilisation Division ,Crown Agents. ,202741-107 ,"7,510.25",
DFID,DFID,25/05/2016,Aid Programme - Humanitarian Material Relief Assistance and Services ,Conflict  Humanitarian  Security & Stabilisation Division ,Crown Agents. ,202878-103 ,"14,769.27",
DFID,DFID,25/05/2016,Aid Programme - Humanitarian Material Relief Assistance and Services ,Conflict  Humanitarian  Security & Stabilisation Division ,Crown Agents. ,202878-103 ,"14,122.03",
DFID,DFID,18/05/2016,Aid Programme - Humanitarian Material Relief Assistance and Services ,Conflict  Humanitarian  Security & Stabilisation Division ,Crown Agents. ,202878-103 ,"9,264.00",
DFID,DFID,18/05/2016,Aid Programme - Humanitarian Material Relief Assistance and Services ,Conflict  Humanitarian  Security & Stabilisation Division ,Crown Agents. ,202878-103 ,"3,061.80",
DFID,DFID,10/05/2016,Aid Programme - Humanitarian Material Relief Assistance and Services ,East and Central Africa ,Crown Agents. ,202890-104 ,"1,317.30",
DFID,DFID,25/05/2016,Aid Programme - Humanitarian Material Relief Assistance and Services ,East and Central Africa ,Crown Agents. ,202890-104 ,"13,416.00",
DFID,DFID,13/05/2016,DFID Purchased Relief Supplies ,West and Southern Africa ,Crown Agents. ,203674-103 ,"1,776.60",
DFID,DFID,25/05/2016,DFID Purchased Relief Supplies ,West and Southern Africa ,Crown Agents. ,203674-103 ,"78,262.81",
DFID,DFID,25/05/2016,Project delivery costs – supplier services ,West and Southern Africa ,Crown Agents. ,203674-103 ,"1,956.57",
DFID,DFID,04/05/2016,DFID Purchased Relief Supplies ,West and Southern Africa ,Crown Agents. ,203674-103 ,"9,564.50",
DFID,DFID,19/05/2016,DFID Purchased Relief Supplies ,West and Southern Africa ,Crown Agents. ,203674-103 ,"461,184.55",
DFID,DFID,16/05/2016,Project delivery costs – supplier services ,Conflict  Humanitarian  Security & Stabilisation Division ,Crown Agents. ,203815-106 ,"6,444.88",
DFID,DFID,23/05/2016,Aid Programme - Accountable Grant Payments ,East and Central Africa ,Crown Agents. ,203961-114 ,"1,559.51",
DFID,DFID,24/05/2016,Project delivery costs – supplier services ,Middle East and North Africa Division ,Crown Agents. ,204016-103 ,"7,756.80",
DFID,DFID,12/05/2016,Project delivery costs – supplier services ,Middle East and North Africa Division ,Crown Agents. ,204016-103 ,"1,970.10",
DFID,DFID,13/05/2016,Project delivery costs – supplier services ,East and Central Africa ,Crown Agents. ,204019-107 ,"17,164.80",
DFID,DFID,19/05/2016,Project delivery costs – supplier services ,East and Central Africa ,Crown Agents. ,204019-107 ,"3,675.00",
DFID,DFID,16/05/2016,DFID Purchased Relief Supplies ,Asia  Caribbean and Overseas Territories ,Crown Agents. ,203400-109 ,"13,455.06",
DFID,DFID,26/05/2016,DFID Purchased Relief Supplies ,Asia  Caribbean and Overseas Territories ,Crown Agents. ,203400-109 ,"52,690.55",
DFID,DFID,09/05/2016,DFID Purchased Relief Supplies ,Asia  Caribbean and Overseas Territories ,Crown Agents. ,203400-109 ,"28,587.99",
DFID,DFID,18/05/2016,Project delivery costs – supplier services ,West and Southern Africa ,Crown Agents. ,203330-103 ,"967,503.71",
DFID,DFID,03/05/2016,DFID Purchased Relief Supplies ,East and Central Africa ,Crown Agents. ,203363-103 ,"7,184.17",
DFID,DFID,24/05/2016,Project delivery costs – supplier services ,Economic Development Division ,Crown Agents. ,203375-101 ,"370,636.00",
DFID,DFID,10/05/2016,Project delivery costs – supplier services ,Conflict  Humanitarian  Security & Stabilisation Division ,Crown Agents. ,203416-102 ,"405,335.00",
DFID,DFID,19/05/2016,Project delivery costs – supplier services ,Conflict  Humanitarian  Security & Stabilisation Division ,Crown Agents. ,203416-102 ,"34,039.20",
DFID,DFID,19/05/2016,Project delivery costs – supplier services ,Conflict  Humanitarian  Security & Stabilisation Division ,Crown Agents. ,203416-102 ,"93,102.68",
DFID,DFID,19/05/2016,Project delivery costs – supplier services ,Conflict  Humanitarian  Security & Stabilisation Division ,Crown Agents. ,203416-102 ,"4,632.00",
DFID,DFID,23/05/2016,Project delivery costs – supplier services ,Conflict  Humanitarian  Security & Stabilisation Division ,Crown Agents. ,203416-102 ,"5,088.00",
DFID,DFID,12/05/2016,Project delivery costs – supplier services ,Conflict  Humanitarian  Security & Stabilisation Division ,Crown Agents. ,203416-102 ,"2,721.60",
DFID,DFID,12/05/2016,Aid Programme - Humanitarian Material Relief Assistance and Services ,Conflict  Humanitarian  Security & Stabilisation Division ,Crown Agents. ,203419-105 ,"5,011.20",
DFID,DFID,24/05/2016,Aid Programme - Accountable Grant Payments ,Policy Division ,CONCERN WORLDWIDE ,203559-120 ,"559,640.00",
DFID,DFID,05/05/2016,AV conferencing systms -service & usage ,Business Solutions Division Level ,COMPUTACENTER (UK) LTD ,200002-135 ,"238,186.58",Annual Video Conference Maintenance and Support costs for 2016/2017
DFID,DFID,13/05/2016,Computer Consumables ,Business Solutions Division Level ,COMPUTACENTER (UK) LTD ,200002-153 ,"3,900.00",
DFID,DFID,16/05/2016,Hardware - networking equipment ,Business Solutions Division Level ,COMPUTACENTER (UK) LTD ,200002-153 ,"5,518.79",
DFID,DFID,03/05/2016,Hardware - desktop PCs ,Business Solutions Division Level ,COMPUTACENTER (UK) LTD ,200004-101 ,"5,872.34",
DFID,DFID,10/05/2016,Aid Programme - Accountable Grant Payments ,Policy Division ,SEND A COW ,203559-113 ,"60,980.00",
DFID,DFID,24/05/2016,Aid Programme - Accountable Grant Payments ,West and Southern Africa ,CAMFED ,202493-101 ,"421,641.25",
DFID,DFID,18/05/2016,Aid Programme - Accountable Grant Payments ,West and Southern Africa ,CARE INTERNATIONAL UK ,205040-101 ,"2,994,375.67",
DFID,DFID,18/05/2016,Aid Programme - Accountable Grant Payments ,Middle East and North Africa Division ,CARE INTERNATIONAL UK ,204512-101 ,"249,683.68",
DFID,DFID,10/05/2016,Aid Programme - Accountable Grant Payments ,Research and Evidence Division ,CENTRE FOR ECONOMIC POLICY RESEARCH ,202835-101 ,"168,623.35",
DFID,DFID,18/05/2016,Training Providers/Facilitation Services ,Finance and Corporate Performance Division ,CRANFIELD MANAGEMENT DEVELOPMENT LTD ,204846-101 ,"6,565.83",
DFID,DFID,12/05/2016,Training Providers/Facilitation Services ,Finance and Corporate Performance Division ,CRANFIELD MANAGEMENT DEVELOPMENT LTD ,204846-101 ,"6,565.83",
DFID,DFID,16/05/2016,Training Providers/Facilitation Services ,Finance and Corporate Performance Division ,CRANFIELD MANAGEMENT DEVELOPMENT LTD ,204846-101 ,"6,565.83",
DFID,DFID,26/05/2016,Aid Programme - Partnership Programme Arrangements ,Policy Division ,COMIC RELIEF ,200645-101 ,"248,733.00",
DFID,DFID,18/05/2016,Property rates ,Group Operations ,CITY OF WESTMINSTER ,203717-101 ,"256,432.00",Two tenth of the 2016/17 Whitehall headquarters rateable value (April and May instalments)
DFID,DFID,05/05/2016,Aid Programme - Accountable Grant Payments ,Research and Evidence Division ,UNIVERSITY OF CAMBRIDGE ,201884-104 ,"24,946.61",
DFID,DFID,05/05/2016,Aid Programme - Accountable Grant Payments ,Research and Evidence Division ,UNIVERSITY OF CAMBRIDGE ,201884-104 ,"28,220.13",
DFID,DFID,10/05/2016,Project delivery costs – supplier services ,East and Central Africa ,CHARLES KENDALL & PARTNERS LIMITED (PROCUREMENT) ,202874-104 ,780.00,
DFID,DFID,10/05/2016,DFID Purchased Relief Supplies ,East and Central Africa ,CHARLES KENDALL & PARTNERS LIMITED (PROCUREMENT) ,202874-104 ,"15,600.00",
DFID,DFID,10/05/2016,Project delivery costs – supplier services ,East and Central Africa ,CHARLES KENDALL & PARTNERS LIMITED (PROCUREMENT) ,202874-104 ,"1,120.02",
DFID,DFID,10/05/2016,DFID Purchased Relief Supplies ,East and Central Africa ,CHARLES KENDALL & PARTNERS LIMITED (PROCUREMENT) ,202874-104 ,"22,400.45",
DFID,DFID,10/05/2016,DFID Purchased Relief Supplies ,East and Central Africa ,CHARLES KENDALL & PARTNERS LIMITED (PROCUREMENT) ,202874-104 ,"1,185.43",
DFID,DFID,13/05/2016,Training - Course Fees ,Human Resources ,CABINET OFFICE ,100269-155 ,"1,500.00",
DFID,DFID,05/05/2016,Aid Programme - Accountable Grant Payments ,West and Southern Africa ,CLEEN FOUNDATION ,203851-112 ,"28,595.27",
DFID,DFID,23/05/2016,Training - Course Fees ,Research and Evidence Division ,Capita  Business Services ,202392-105 ,963.00,
DFID,DFID,25/05/2016,Training Providers/Facilitation Services ,Human Resources ,Capita  Business Services ,100269-153 ,792.68,
DFID,DFID,25/05/2016,Training Providers/Facilitation Services ,Human Resources ,Capita  Business Services ,100269-153 ,525.15,
DFID,DFID,09/05/2016,Training Providers/Facilitation Services ,Human Resources ,Capita  Business Services ,100269-153 ,"2,970.00",
DFID,DFID,26/05/2016,Training Providers/Facilitation Services ,Finance and Corporate Performance Division ,Capita  Business Services ,204846-101 ,"3,990.88",
DFID,DFID,25/05/2016,Staff Travel - Air Fares ,West and Southern Africa ,CONCERN WORLDWIDE ,101610-101 ,"1,133.72",
DFID,DFID,05/05/2016,Project delivery costs – supplier services ,Asia  Caribbean and Overseas Territories ,Nathan Associates London Ltd ,202180-102 ,"2,454.25",
DFID,DFID,05/05/2016,Project delivery costs – supplier services ,Asia  Caribbean and Overseas Territories ,Nathan Associates London Ltd ,202180-102 ,"66,806.21",
DFID,DFID,31/05/2016,Project delivery costs – supplier services ,Policy Division ,COFFEY INTERNATIONAL DEVELOPMENT LTD ,202194-102 ,"3,200.77",
DFID,DFID,03/05/2016,Project delivery costs – supplier services ,Middle East and North Africa Division ,COFFEY INTERNATIONAL DEVELOPMENT LTD ,202241-103 ,"65,040.91",
DFID,DFID,17/05/2016,Project delivery costs – supplier services ,Policy Division ,COFFEY INTERNATIONAL DEVELOPMENT LTD ,201724-130 ,"276,930.03",
DFID,DFID,31/05/2016,Project delivery costs – supplier services ,Policy Division ,COFFEY INTERNATIONAL DEVELOPMENT LTD ,202035-101 ,"17,875.06",
DFID,DFID,11/05/2016,Project delivery costs – supplier services ,East and Central Africa ,COFFEY INTERNATIONAL DEVELOPMENT LTD ,200842-112 ,"29,150.00",
DFID,DFID,03/05/2016,Project delivery costs – supplier services ,West and Southern Africa ,COFFEY INTERNATIONAL DEVELOPMENT LTD ,104190-109 ,"315,904.60",
DFID,DFID,24/05/2016,Project delivery costs – supplier services ,Asia  Caribbean and Overseas Territories ,COFFEY INTERNATIONAL DEVELOPMENT LTD ,108538-107 ,"5,500.00",
DFID,DFID,12/05/2016,Project delivery costs – supplier services ,Asia  Caribbean and Overseas Territories ,COFFEY INTERNATIONAL DEVELOPMENT LTD ,202368-102 ,"50,211.59",
DFID,DFID,20/05/2016,Project delivery costs – supplier services ,Asia  Caribbean and Overseas Territories ,COFFEY INTERNATIONAL DEVELOPMENT LTD ,202368-102 ,"206,807.00",
DFID,DFID,12/05/2016,Project delivery costs – supplier services ,Policy Division ,COFFEY INTERNATIONAL DEVELOPMENT LTD ,202372-104 ,"52,062.79",
DFID,DFID,25/05/2016,Project delivery costs – supplier services ,West and Southern Africa ,COFFEY INTERNATIONAL DEVELOPMENT LTD ,202455-104 ,"13,832.24",
DFID,DFID,20/05/2016,Project delivery costs – supplier services ,West and Southern Africa ,COFFEY INTERNATIONAL DEVELOPMENT LTD ,202455-107 ,"3,276.02",
DFID,DFID,20/05/2016,Project delivery costs – supplier services ,West and Southern Africa ,COFFEY INTERNATIONAL DEVELOPMENT LTD ,202455-107 ,"2,822.60",
DFID,DFID,03/05/2016,Project delivery costs – supplier services ,West and Southern Africa ,COFFEY INTERNATIONAL DEVELOPMENT LTD ,202468-102 ,"15,487.04",
DFID,DFID,24/05/2016,Project delivery costs – supplier services ,East and Central Africa ,COFFEY INTERNATIONAL DEVELOPMENT LTD ,202509-102 ,"5,000.00",
DFID,DFID,06/05/2016,Project delivery costs – supplier services ,East and Central Africa ,COFFEY INTERNATIONAL DEVELOPMENT LTD ,202509-102 ,"1,400,000.00",
DFID,DFID,25/05/2016,Project delivery costs – supplier services ,Asia  Caribbean and Overseas Territories ,COFFEY INTERNATIONAL DEVELOPMENT LTD ,202958-102 ,"78,750.00",
DFID,DFID,11/05/2016,Project delivery costs – supplier services ,East and Central Africa ,COFFEY INTERNATIONAL DEVELOPMENT LTD ,203603-105 ,"3,401.39",
DFID,DFID,26/05/2016,Project delivery costs – supplier services ,Asia  Caribbean and Overseas Territories ,COFFEY INTERNATIONAL DEVELOPMENT LTD ,203508-104 ,"1,380.00",
DFID,DFID,16/05/2016,Project delivery costs – supplier services ,Research and Evidence Division ,COFFEY INTERNATIONAL DEVELOPMENT LTD ,203193-101 ,"9,071.33",
DFID,DFID,04/05/2016,Project delivery costs – supplier services ,Research and Evidence Division ,COFFEY INTERNATIONAL DEVELOPMENT LTD ,203193-101 ,"10,742.01",
DFID,DFID,11/05/2016,Project delivery costs – supplier services ,East and Central Africa ,COFFEY INTERNATIONAL DEVELOPMENT LTD ,204882-104 ,"37,483.10",
DFID,DFID,12/05/2016,Project delivery costs – supplier services ,West and Southern Africa ,COFFEY INTERNATIONAL DEVELOPMENT LTD ,205062-101 ,"28,100.00",
DFID,DFID,12/05/2016,Project delivery costs – supplier services ,West and Southern Africa ,COFFEY INTERNATIONAL DEVELOPMENT LTD ,205062-101 ,"7,875.54",
DFID,DFID,06/05/2016,Project delivery costs – supplier services ,Asia  Caribbean and Overseas Territories ,COFFEY INTERNATIONAL DEVELOPMENT LTD ,204469-101 ,"3,750.00",
DFID,DFID,20/05/2016,Project delivery costs – supplier services ,West and Southern Africa ,COFFEY INTERNATIONAL DEVELOPMENT LTD ,204483-101 ,"38,132.13",
DFID,DFID,17/05/2016,Project delivery costs – supplier services ,East and Central Africa ,COFFEY INTERNATIONAL DEVELOPMENT LTD ,204334-102 ,"55,893.95",
DFID,DFID,18/05/2016,Project delivery costs – supplier services ,East and Central Africa ,COFFEY INTERNATIONAL DEVELOPMENT LTD ,205225-101 ,"44,495.09",
DFID,DFID,25/05/2016,Project delivery costs – supplier services ,West and Southern Africa ,COFFEY INTERNATIONAL DEVELOPMENT LTD ,300037-101 ,"27,650.91",
DFID,DFID,04/05/2016,Repairs  Maintenance and Alterations – Other Building Costs ,Group Operations ,ENERGY FITNESS PROFESSIONALS LTD ,100106-101 ,"2,208.96",
DFID,DFID,10/05/2016,Aid Programme - Accountable Grant Payments ,Policy Division ,FARM-Africa ,203559-103 ,"36,282.00",
DFID,DFID,04/05/2016,FCO shared service charges ,Group Operations ,FCO SERVICES ,203717-101 ,951.85,
DFID,DFID,04/05/2016,Repairs  Maint  Alter - Property & Constrct. Services ,Central Department Division ,FCO SERVICES ,204994-143 ,"16,917.87",
DFID,DFID,25/05/2016,Gas ,Group Operations ,CORONA ENERGY ,100106-101 ,"2,433.08",
DFID,DFID,25/05/2016,Gas ,Group Operations ,CORONA ENERGY ,100106-101 ,"1,044.97",
DFID,DFID,06/05/2016,Gas ,Group Operations ,CORONA ENERGY ,100106-101 ,"1,619.56",
DFID,DFID,11/05/2016,Gas ,Group Operations ,CORONA ENERGY ,100106-101 ,"1,126.03",
DFID,DFID,17/05/2016,Project delivery costs – supplier services ,West and Southern Africa ,PALLADIUM ,114230-101 ,"883,184.42",
DFID,DFID,23/05/2016,Project delivery costs – supplier services ,Asia  Caribbean and Overseas Territories ,PALLADIUM ,201851-101 ,"195,854.05",
DFID,DFID,23/05/2016,Project delivery costs – supplier services ,West and Southern Africa ,PALLADIUM ,202098-101 ,"332,657.86",
DFID,DFID,13/05/2016,Project delivery costs – supplier services ,East and Central Africa ,PALLADIUM ,204012-106 ,"82,641.23",
DFID,DFID,13/05/2016,Project delivery costs – supplier services ,East and Central Africa ,PALLADIUM ,204012-106 ,"28,098.83",
DFID,DFID,12/05/2016,Project delivery costs – supplier services ,East and Central Africa ,PALLADIUM ,203539-102 ,"149,113.22",
DFID,DFID,12/05/2016,Fund monies to be managed and dispersed by the supplier ,East and Central Africa ,PALLADIUM ,203539-102 ,"1,344,651.76",
DFID,DFID,19/05/2016,Project delivery costs – supplier services ,West and Southern Africa ,PALLADIUM ,203429-103 ,"239,565.85",
DFID,DFID,17/05/2016,Project delivery costs – supplier services ,East and Central Africa ,PALLADIUM ,202900-108 ,676.33,
DFID,DFID,19/05/2016,Project delivery costs – supplier services ,Policy Division ,PALLADIUM ,202745-104 ,"258,073.15",
DFID,DFID,12/05/2016,Project delivery costs – supplier services ,East and Central Africa ,PALLADIUM ,202577-104 ,"473,460.05",
DFID,DFID,05/05/2016,Project delivery costs – supplier services ,East and Central Africa ,PALLADIUM ,202596-108 ,"4,853.71",
DFID,DFID,23/05/2016,Project delivery costs – supplier services ,East and Central Africa ,PALLADIUM ,202596-108 ,"15,822.61",
DFID,DFID,19/05/2016,Project delivery costs – supplier services ,West and Southern Africa ,PALLADIUM ,202352-102 ,"334,634.10",
DFID,DFID,23/05/2016,Project delivery costs – supplier services ,West and Southern Africa ,PALLADIUM ,202370-102 ,"620,040.06",
DFID,DFID,17/05/2016,Aid Programme - Accountable Grant Payments ,Research and Evidence Division ,GALVmed ,203188-103 ,"158,399.00",
DFID,DFID,10/05/2016,Project delivery costs – supplier services ,Regional Directorate ,Supplier Name withheld ,204929-103 ,"13,091.00",
DFID,DFID,17/05/2016,Aid Programme - Accountable Grant Payments ,Asia  Caribbean and Overseas Territories ,Supplier Name withheld ,203400-115 ,"66,454.00",
DFID,DFID,13/05/2016,Project delivery costs – supplier services ,Conflict  Humanitarian  Security & Stabilisation Division ,THE HALO TRUST ,203243-118 ,"37,900.00",
DFID,DFID,03/05/2016,Project delivery costs – supplier services ,Conflict  Humanitarian  Security & Stabilisation Division ,THE HALO TRUST ,203243-118 ,"37,900.00",
DFID,DFID,05/05/2016,Project delivery costs – supplier services ,Conflict  Humanitarian  Security & Stabilisation Division ,THE HALO TRUST ,203243-119 ,"122,301.00",
DFID,DFID,13/05/2016,Project delivery costs – supplier services ,Conflict  Humanitarian  Security & Stabilisation Division ,THE HALO TRUST ,203243-119 ,"122,301.00",
DFID,DFID,18/05/2016,Project delivery costs – supplier services ,Conflict  Humanitarian  Security & Stabilisation Division ,THE HALO TRUST ,203243-126 ,"1,487,806.00",
DFID,DFID,18/05/2016,Project delivery costs – supplier services ,Conflict  Humanitarian  Security & Stabilisation Division ,THE HALO TRUST ,203243-121 ,"17,033.27",
DFID,DFID,26/05/2016,Project delivery costs – supplier services ,Research and Evidence Division ,HTSPE LTD ,203193-101 ,"33,824.45",
DFID,DFID,26/05/2016,Project delivery costs – supplier services ,Research and Evidence Division ,HTSPE LTD ,203193-101 ,"5,637.41",
DFID,DFID,26/05/2016,Project delivery costs – supplier services ,Research and Evidence Division ,HTSPE LTD ,203193-101 ,"7,516.54",
DFID,DFID,26/05/2016,Project delivery costs – supplier services ,West and Southern Africa ,HTSPE LTD ,203164-103 ,"73,797.45",
DFID,DFID,09/05/2016,Project delivery costs – supplier services ,Asia  Caribbean and Overseas Territories ,HTSPE LTD ,202491-102 ,"539,438.26",
DFID,DFID,10/05/2016,Project delivery costs – supplier services ,East and Central Africa ,HTSPE LTD ,202619-112 ,"3,407.18",
DFID,DFID,18/05/2016,Project delivery costs – supplier services ,Economic Development Division ,HTSPE LTD ,202817-105 ,"3,757.57",
DFID,DFID,06/05/2016,Project delivery costs – supplier services ,East and Central Africa ,HTSPE LTD ,202900-102 ,"554,694.24",
DFID,DFID,25/05/2016,Project delivery costs – supplier services ,East and Central Africa ,HTSPE LTD ,202900-102 ,"441,506.51",
DFID,DFID,04/05/2016,Project delivery costs – supplier services ,West and Southern Africa ,HTSPE LTD ,201944-104 ,"75,118.14",
DFID,DFID,18/05/2016,Project delivery costs – supplier services ,Asia  Caribbean and Overseas Territories ,HTSPE LTD ,114320-120 ,"28,115.00",
DFID,DFID,20/05/2016,Project delivery costs – supplier services ,Asia  Caribbean and Overseas Territories ,HTSPE LTD ,114058-101 ,"15,396.54",
DFID,DFID,16/05/2016,Project delivery costs – supplier services ,West and Southern Africa ,HTSPE LTD ,104189-101 ,"588,670.79",
DFID,DFID,24/05/2016,Project delivery costs – supplier services ,Policy Division ,HTSPE LTD ,204789-102 ,"1,932.01",
DFID,DFID,26/05/2016,Project delivery costs – supplier services ,Asia  Caribbean and Overseas Territories ,HTSPE LTD ,204825-102 ,"39,169.85",
DFID,DFID,13/05/2016,Project delivery costs – supplier services ,West and Southern Africa ,HTSPE LTD ,205171-101 ,"2,925.00",
DFID,DFID,13/05/2016,Project delivery costs – supplier services ,West and Southern Africa ,HTSPE LTD ,205171-101 ,"2,925.00",
DFID,DFID,16/05/2016,Project delivery costs – supplier services ,West and Southern Africa ,HTSPE LTD ,205188-101 ,"15,176.00",
DFID,DFID,23/05/2016,Project delivery costs – supplier services ,East and Central Africa ,HTSPE LTD ,204258-101 ,"40,214.82",
DFID,DFID,25/05/2016,Aid Programme - Accountable Grant Payments ,Conflict  Humanitarian  Security & Stabilisation Division ,HANDICAP INTERNATIONAL UK ,202878-102 ,"78,956.00",
DFID,DFID,06/05/2016,Contract & Agency Staff ,Business Solutions Division Level ,Hays Specialist Recruitment Ltd ,200005-116 ,"1,560.00",
DFID,DFID,11/05/2016,Contract & Agency Staff ,Business Solutions Division Level ,Hays Specialist Recruitment Ltd ,200005-116 ,"1,248.00",
DFID,DFID,11/05/2016,Contract & Agency Staff ,Business Solutions Division Level ,Hays Specialist Recruitment Ltd ,200005-116 ,"1,404.00",
DFID,DFID,11/05/2016,Contract & Agency Staff ,Business Solutions Division Level ,Hays Specialist Recruitment Ltd ,200005-116 ,"1,560.00",
DFID,DFID,11/05/2016,Contract & Agency Staff ,Business Solutions Division Level ,Hays Specialist Recruitment Ltd ,200005-116 ,"1,404.00",
DFID,DFID,18/05/2016,Contract & Agency Staff ,Business Solutions Division Level ,Hays Specialist Recruitment Ltd ,200005-116 ,"1,404.00",
DFID,DFID,10/05/2016,Contract & Agency Staff ,Finance and Corporate Performance Division ,Hays Specialist Recruitment Ltd ,100201-101 ,"1,168.68",
DFID,DFID,09/05/2016,Contract & Agency Staff ,Finance and Corporate Performance Division ,Hays Specialist Recruitment Ltd ,100201-101 ,"1,168.68",
DFID,DFID,09/05/2016,Contract & Agency Staff ,Finance and Corporate Performance Division ,Hays Specialist Recruitment Ltd ,100201-101 ,"1,168.68",
DFID,DFID,06/05/2016,Contract & Agency Staff ,Finance and Corporate Performance Division ,Hays Specialist Recruitment Ltd ,100201-101 ,"1,157.16",
DFID,DFID,06/05/2016,Contract & Agency Staff ,Finance and Corporate Performance Division ,Hays Specialist Recruitment Ltd ,100201-101 ,"1,168.68",
DFID,DFID,06/05/2016,Contract & Agency Staff ,Finance and Corporate Performance Division ,Hays Specialist Recruitment Ltd ,100201-101 ,"1,157.16",
DFID,DFID,05/05/2016,Contract & Agency Staff ,Finance and Corporate Performance Division ,Hays Specialist Recruitment Ltd ,100201-101 ,"1,168.68",
DFID,DFID,05/05/2016,Contract & Agency Staff ,Finance and Corporate Performance Division ,Hays Specialist Recruitment Ltd ,100201-101 ,892.92,
DFID,DFID,20/05/2016,Contract & Agency Staff ,Finance and Corporate Performance Division ,Hays Specialist Recruitment Ltd ,100201-101 ,535.75,
DFID,DFID,19/05/2016,Contract & Agency Staff ,Finance and Corporate Performance Division ,Hays Specialist Recruitment Ltd ,100201-101 ,"1,168.68",
DFID,DFID,13/05/2016,Contract & Agency Staff ,Finance and Corporate Performance Division ,Hays Specialist Recruitment Ltd ,100201-101 ,934.94,
DFID,DFID,26/05/2016,Contract & Agency Staff ,Finance and Corporate Performance Division ,Hays Specialist Recruitment Ltd ,100201-101 ,714.34,
DFID,DFID,26/05/2016,Contract & Agency Staff ,Finance and Corporate Performance Division ,Hays Specialist Recruitment Ltd ,100201-101 ,973.90,
DFID,DFID,12/05/2016,Contract & Agency Staff ,Finance and Corporate Performance Division ,Hays Specialist Recruitment Ltd ,100201-101 ,714.34,
DFID,DFID,12/05/2016,Contract & Agency Staff ,Finance and Corporate Performance Division ,Hays Specialist Recruitment Ltd ,100201-101 ,934.94,
DFID,DFID,12/05/2016,Contract & Agency Staff ,Finance and Corporate Performance Division ,Hays Specialist Recruitment Ltd ,100201-101 ,934.94,
DFID,DFID,19/05/2016,Contract & Agency Staff ,Finance and Corporate Performance Division ,Hays Specialist Recruitment Ltd ,100201-101 ,"1,168.68",
DFID,DFID,19/05/2016,Contract & Agency Staff ,Finance and Corporate Performance Division ,Hays Specialist Recruitment Ltd ,100201-101 ,803.63,
DFID,DFID,10/05/2016,Recruitment costs ,Finance and Corporate Performance Division ,HUDSON GLOBAL RESOURCES LTD ,100201-101 ,"6,182.70",
DFID,DFID,03/05/2016,Contract & Agency Staff ,Finance and Corporate Performance Division ,HUDSON GLOBAL RESOURCES LTD ,100201-101 ,"4,975.87",
DFID,DFID,09/05/2016,Contract & Agency Staff ,Human Resources ,HUDSON GLOBAL RESOURCES LTD ,100261-101 ,"3,262.22",
DFID,DFID,12/05/2016,Aid Programme - Accountable Grant Payments ,Policy Division ,HOPE & HOMES FOR CHILDREN ,203559-125 ,"315,974.00",
DFID,DFID,11/05/2016,Project delivery costs – supplier services ,Asia  Caribbean and Overseas Territories ,HOME OFFICE ,203274-101 ,"40,324.00",
DFID,DFID,04/05/2016,Aid Programme - Partnership Programme Arrangements ,Policy Division ,International Planned Parent ,114146-101 ,"2,150,000.00",
DFID,DFID,04/05/2016,Project delivery costs – supplier services ,West and Southern Africa ,ITAD LTD ,202482-102 ,"24,487.20",
DFID,DFID,10/05/2016,Project delivery costs – supplier services ,Asia  Caribbean and Overseas Territories ,THE INSTITUTE OF DEVELOPMENT STUDIE ,202744-101 ,"91,176.11",
DFID,DFID,09/05/2016,Project delivery costs – supplier services ,Asia  Caribbean and Overseas Territories ,THE INSTITUTE OF DEVELOPMENT STUDIE ,202744-101 ,"54,601.20",
DFID,DFID,05/05/2016,Research and development costs - supplier services ,Research and Evidence Division ,THE INSTITUTE OF DEVELOPMENT STUDIE ,204570-103 ,"10,831.20",
DFID,DFID,05/05/2016,Research and development costs - supplier services ,Research and Evidence Division ,THE INSTITUTE OF DEVELOPMENT STUDIE ,204570-103 ,"2,455.76",
DFID,DFID,17/05/2016,Aid Programme - Accountable Grant Payments ,Research and Evidence Division ,INSTITUTE OF DEV  STUDIES UNIVER ,204451-101 ,"106,534.43",
DFID,DFID,10/05/2016,Aid Programme - Accountable Grant Payments ,Research and Evidence Division ,INSTITUTE OF DEV  STUDIES UNIVER ,202008-101 ,"507,127.72",
DFID,DFID,10/05/2016,Training - Course Fees ,Internal Audit ,INSTITUTE OF INTERNAL AUDITORS-UK ,100121-101 ,540.00,
DFID,DFID,10/05/2016,Training - Course Fees ,Internal Audit ,INSTITUTE OF INTERNAL AUDITORS-UK ,100121-101 ,540.00,
DFID,DFID,18/05/2016,Aid Programme - Humanitarian Material Relief Assistance and Services ,Conflict  Humanitarian  Security & Stabilisation Division ,INTERNATIONAL RESCUE COMMITTEE UK ,204987-101 ,"779,133.00",
DFID,DFID,12/05/2016,Aid Programme - Accountable Grant Payments ,Policy Division ,INSTITUTE OF DEVELOPMENT STUDIES ,202830-101 ,"557,089.60",
DFID,DFID,06/05/2016,Aid Programme - Trust Funds contributions ,West and Southern Africa ,IBRD HSBC T ,202854-101 ,"1,600,000.00",
DFID,DFID,13/05/2016,Aid Programme - Trust Funds contributions ,Economic Development Division ,IBRD HSBC T ,203808-110 ,"200,000.00",
DFID,DFID,24/05/2016,Aid Programme - Trust Funds contributions ,East and Central Africa ,IBRD HSBC T ,204788-107 ,"555,500.00",
DFID,DFID,24/05/2016,Aid Programme - Pooled/Basket funding ,East and Central Africa ,IBRD HSBC T ,204788-103 ,"244,500.00",
DFID,DFID,03/05/2016,Project delivery costs – supplier services ,Research and Evidence Division ,IOD PARC ,203197-101 ,"31,710.00",
DFID,DFID,20/05/2016,Aid Programme - Trust Funds contributions ,West and Southern Africa ,IBRD (HSBC)  C/O THE WORLD BANK ,203312-101 ,"935,000.00",
DFID,DFID,19/05/2016,Aid Programme - Trust Funds contributions ,East and Central Africa ,IBRD (HSBC)  C/O THE WORLD BANK ,203439-101 ,"3,439,846.19",
DFID,DFID,24/05/2016,Aid Programme - Core contributions ,West and Southern Africa ,IBRD (HSBC)  C/O THE WORLD BANK ,203674-105 ,"560,000.00",
DFID,DFID,10/05/2016,Aid Programme - Trust Funds contributions ,Policy Division ,IBRD (HSBC)  C/O THE WORLD BANK ,203034-103 ,"1,290,000.00",
DFID,DFID,23/05/2016,Aid Programme - Voluntary contributions ,Asia  Caribbean and Overseas Territories ,IBRD (HSBC)  C/O THE WORLD BANK ,205101-106 ,"500,000.00",
DFID,DFID,20/05/2016,Aid Programme - Trust Funds contributions ,East and Central Africa ,IBRD (HSBC)  C/O THE WORLD BANK ,204656-102 ,"300,000.00",
DFID,DFID,17/05/2016,Aid Programme - Trust Funds contributions ,West and Southern Africa ,IBRD (HSBC)  C/O THE WORLD BANK ,204253-102 ,"300,000.00",
DFID,DFID,17/05/2016,Aid Programme - Trust Funds contributions ,East and Central Africa ,IBRD (HSBC)  C/O THE WORLD BANK ,204436-102 ,"400,000.00",
DFID,DFID,12/05/2016,Aid Programme - Joint programme contribution ,Asia  Caribbean and Overseas Territories ,INTERNATIONAL TRADE CENTRE ,202762-101 ,"602,220.00",
DFID,DFID,12/05/2016,Aid Programme - Joint programme contribution ,Asia  Caribbean and Overseas Territories ,INTERNATIONAL TRADE CENTRE ,202762-101 ,"253,248.00",
DFID,DFID,19/05/2016,Aid Programme - Accountable Grant Payments ,Middle East and North Africa Division ,Supplier Name withheld ,204525-101 ,"3,270,775.00",
DFID,DFID,19/05/2016,Aid Programme - Accountable Grant Payments ,Middle East and North Africa Division ,Supplier Name withheld ,204525-102 ,"703,146.00",
DFID,DFID,19/05/2016,Aid Programme - Accountable Grant Payments ,Middle East and North Africa Division ,Supplier Name withheld ,204525-103 ,"256,736.00",
DFID,DFID,19/05/2016,Aid Programme - Accountable Grant Payments ,Middle East and North Africa Division ,Supplier Name withheld ,204525-104 ,"324,897.00",
DFID,DFID,12/05/2016,Subscriptions ,Top Management Group ,MENZIES DISTRIBUTION LTD TRADING AS JONES YARRELL LEADENHALL ,100232-106 ,820.20,
DFID,DFID,23/05/2016,Training Providers/Facilitation Services ,Communications Division ,KELLOGG BROWN & ROOT LIMITED ,100138-101 ,726.20,
DFID,DFID,23/05/2016,Hostile Environment Training ,Internal Audit ,KELLOGG BROWN & ROOT LIMITED ,100121-101 ,638.10,
DFID,DFID,20/05/2016,Hostile Environment Training ,East and Central Africa ,KELLOGG BROWN & ROOT LIMITED ,100016-106 ,550.00,
DFID,DFID,23/05/2016,Hostile Environment Training ,West and Southern Africa ,KELLOGG BROWN & ROOT LIMITED ,101610-101 ,660.00,
DFID,DFID,25/05/2016,Hostile Environment Training ,Asia  Caribbean and Overseas Territories ,KELLOGG BROWN & ROOT LIMITED ,101624-101 ,"3,264.00",
DFID,DFID,25/05/2016,Hostile Environment Training ,Research and Evidence Division ,KELLOGG BROWN & ROOT LIMITED ,202392-103 ,660.00,
DFID,DFID,25/05/2016,Hostile Environment Training ,Middle East and North Africa Division ,KELLOGG BROWN & ROOT LIMITED ,204981-101 ,816.00,
DFID,DFID,23/05/2016,Hostile Environment Training ,Middle East and North Africa Division ,KELLOGG BROWN & ROOT LIMITED ,204982-101 ,660.00,
DFID,DFID,04/05/2016,Aid Programme - Accountable Grant Payments ,Policy Division ,THE LEPROSY MISSION ,203559-140 ,"83,284.00",
DFID,DFID,06/05/2016,Research and development costs - supplier services ,Research and Evidence Division ,LIVERPOOL SCHOOL OF TROPICAL MEDICINE ,203089-101 ,"283,174.65",
DFID,DFID,10/05/2016,Aid Programme - Accountable Grant Payments ,Policy Division ,LIVERPOOL SCHOOL OF TROPICAL MEDICINE ,202945-101 ,"150,000.00",
DFID,DFID,13/05/2016,Training - Course Fees ,Top Management Group ,LONDON BUSINESS SCHOOL ,100232-105 ,"27,200.00",Senior executive�s development management training � May 2016
DFID,DFID,10/05/2016,Project delivery costs – supplier services ,Research and Evidence Division ,London School of Hygiene and Tropical Medicine ,203806-101 ,"71,913.35",
DFID,DFID,03/05/2016,Project delivery costs – supplier services ,Research and Evidence Division ,London School of Hygiene and Tropical Medicine ,203806-101 ,"124,150.51",
DFID,DFID,10/05/2016,Project delivery costs – supplier services ,Research and Evidence Division ,London School of Hygiene and Tropical Medicine ,203806-102 ,"74,796.29",
DFID,DFID,17/05/2016,Project delivery costs – supplier services ,Research and Evidence Division ,London School of Hygiene and Tropical Medicine ,203806-102 ,"30,140.00",
DFID,DFID,04/05/2016,Aid Programme - Accountable Grant Payments ,Research and Evidence Division ,London School of Hygiene and Tropical Medicine ,204046-102 ,"275,388.00",
DFID,DFID,04/05/2016,Electricity ,Group Operations ,EDF ENERGY ,203717-101 ,"15,737.14",
DFID,DFID,04/05/2016,Electricity ,Group Operations ,EDF ENERGY ,203717-101 ,"7,250.76",
DFID,DFID,19/05/2016,Electricity ,Group Operations ,EDF ENERGY ,100106-101 ,"15,448.07",
DFID,DFID,13/05/2016,Electricity ,Group Operations ,EDF ENERGY ,100106-101 ,"17,003.30",
DFID,DFID,18/05/2016,Project delivery costs – supplier services ,East and Central Africa ,Supplier Name withheld ,203641-103 ,"195,075.88",
DFID,DFID,03/05/2016,Project delivery costs – supplier services ,East and Central Africa ,Supplier Name withheld ,203641-103 ,"34,177.32",
DFID,DFID,11/05/2016,Project delivery costs – supplier services ,Asia  Caribbean and Overseas Territories ,Supplier Name withheld ,204023-104 ,"189,535.00",
DFID,DFID,03/05/2016,Project delivery costs – supplier services ,East and Central Africa ,Supplier Name withheld ,203871-102 ,"44,715.70",
DFID,DFID,18/05/2016,Project delivery costs – supplier services ,East and Central Africa ,Supplier Name withheld ,203363-103 ,"569,539.63",
DFID,DFID,19/05/2016,Project delivery costs – supplier services ,East and Central Africa ,Supplier Name withheld ,202893-102 ,"94,557.87",
DFID,DFID,23/05/2016,Project delivery costs – supplier services ,Policy Division ,Supplier Name withheld ,203148-101 ,"396,835.64",
DFID,DFID,09/05/2016,Project delivery costs – supplier services ,Policy Division ,Supplier Name withheld ,203148-101 ,"306,646.55",
DFID,DFID,23/05/2016,Project delivery costs – supplier services ,Asia  Caribbean and Overseas Territories ,Supplier Name withheld ,202488-107 ,"269,532.27",
DFID,DFID,19/05/2016,Project delivery costs – supplier services ,West and Southern Africa ,Supplier Name withheld ,202678-101 ,"86,529.33",
DFID,DFID,17/05/2016,Project delivery costs – supplier services ,West and Southern Africa ,Supplier Name withheld ,202678-101 ,"45,162.78",
DFID,DFID,13/05/2016,Project delivery costs – supplier services ,Asia  Caribbean and Overseas Territories ,Supplier Name withheld ,204277-102 ,"84,258.52",
DFID,DFID,10/05/2016,Project delivery costs – supplier services ,East and Central Africa ,Supplier Name withheld ,204288-103 ,"88,069.48",
DFID,DFID,05/05/2016,Telephone Usage & services ,Business Solutions Division Level ,VODAFONE LIMITED ,203329-103 ,"7,025.99",
DFID,DFID,03/05/2016,Data Network - land lines ,Business Solutions Division Level ,VODAFONE LIMITED ,203329-103 ,"2,076.05",
DFID,DFID,04/05/2016,Data Network - land lines ,Business Solutions Division Level ,VODAFONE LIMITED ,203329-103 ,"94,592.42",ECHO - rental charges for telecommunications links in sites out with European Union  for February 2016 -Part  1 of 2 
DFID,DFID,03/05/2016,Data Network - land lines ,Business Solutions Division Level ,VODAFONE LIMITED ,203329-103 ,"7,026.15",
DFID,DFID,04/05/2016,Telephone Usage & services ,Business Solutions Division Level ,VODAFONE LIMITED ,203329-103 ,"7,057.78",
DFID,DFID,17/05/2016,Data Network - land lines ,Business Solutions Division Level ,VODAFONE LIMITED ,203329-103 ,"2,219.22",
DFID,DFID,30/05/2016,Data Network - land lines ,Business Solutions Division Level ,VODAFONE LIMITED ,203329-103 ,"7,023.42",
DFID,DFID,20/05/2016,Telephone Usage & services ,Business Solutions Division Level ,VODAFONE LIMITED ,203329-103 ,"7,077.04",
DFID,DFID,17/05/2016,Data Network - land lines ,Business Solutions Division Level ,VODAFONE LIMITED ,203329-103 ,"129,611.44",ECHO - rental charges for telecommunications links in sites out with European Union for March 2016 Part 1 of 2 
DFID,DFID,04/05/2016,Data Network - land lines ,Business Solutions Division Level ,VODAFONE LIMITED ,200002-185 ,"94,592.43",ECHO - rental charges for telecommunications links in sites out with European Union FOR February 2016 - Part 2  of 2 
DFID,DFID,03/05/2016,Data Network - land lines ,Business Solutions Division Level ,VODAFONE LIMITED ,200002-185 ,"2,076.05",
DFID,DFID,05/05/2016,Telephone Usage & services ,Business Solutions Division Level ,VODAFONE LIMITED ,200002-185 ,"7,025.99",
DFID,DFID,17/05/2016,Data Network - land lines ,Business Solutions Division Level ,VODAFONE LIMITED ,200002-185 ,"68,613.62",ECHO - rental charges for telecommunications links in sites out with European for March 2016  Union Part 2 of 2 
DFID,DFID,20/05/2016,Telephone Usage & services ,Business Solutions Division Level ,VODAFONE LIMITED ,200002-185 ,"7,077.03",
DFID,DFID,30/05/2016,Data Network - land lines ,Business Solutions Division Level ,VODAFONE LIMITED ,200002-185 ,"7,023.41",
DFID,DFID,17/05/2016,Data Network - land lines ,Business Solutions Division Level ,VODAFONE LIMITED ,200002-185 ,"2,219.22",
DFID,DFID,04/05/2016,Telephone Usage & services ,Business Solutions Division Level ,VODAFONE LIMITED ,200002-185 ,"7,057.78",
DFID,DFID,03/05/2016,Data Network - land lines ,Business Solutions Division Level ,VODAFONE LIMITED ,200002-185 ,"7,026.15",
DFID,DFID,17/05/2016,Telephone Usage & services ,Business Solutions Division Level ,VODAFONE LIMITED ,200002-168 ,"11,781.89",
DFID,DFID,17/05/2016,Telephone Sys -hardware ,Business Solutions Division Level ,VODAFONE LIMITED ,200002-168 ,"6,808.87",
DFID,DFID,03/05/2016,Telephone Usage & services ,Business Solutions Division Level ,VODAFONE LIMITED ,200002-168 ,"11,750.83",
DFID,DFID,03/05/2016,Telephone Sys -hardware ,Business Solutions Division Level ,VODAFONE LIMITED ,200002-168 ,"5,949.88",
DFID,DFID,23/05/2016,Project delivery costs – supplier services ,Conflict  Humanitarian  Security & Stabilisation Division ,MINES ADVISORY GROUP ,203243-123 ,"61,464.00",
DFID,DFID,23/05/2016,Project delivery costs – supplier services ,Conflict  Humanitarian  Security & Stabilisation Division ,MINES ADVISORY GROUP ,203243-120 ,"104,094.00",
DFID,DFID,11/05/2016,Project delivery costs – supplier services ,East and Central Africa ,MAXWELL STAMP PLC ,202347-101 ,"389,560.00",
DFID,DFID,03/05/2016,Project delivery costs – supplier services ,Asia  Caribbean and Overseas Territories ,MAXWELL STAMP PLC ,114175-101 ,"175,438.00",
DFID,DFID,17/05/2016,Aid Programme - Challenge Fund payments ,Asia  Caribbean and Overseas Territories ,MAXWELL STAMP PLC ,107460-107 ,"249,495.86",
DFID,DFID,16/05/2016,Repairs  Maint  Alter - Property & Constrct. Services ,Group Operations ,MITIE Technical Facilities Management Ltd ,100106-101 ,"1,598.38",
DFID,DFID,16/05/2016,Facilities Management payments ,Group Operations ,MITIE Technical Facilities Management Ltd ,100106-101 ,"18,263.77",
DFID,DFID,16/05/2016,Cleaning Costs ,Group Operations ,MITIE Technical Facilities Management Ltd ,100106-101 ,"19,857.48",
DFID,DFID,16/05/2016,Contract Catering Services ,Group Operations ,MITIE Technical Facilities Management Ltd ,100106-101 ,"1,233.82",
DFID,DFID,03/05/2016,Repairs  Maintenance and Alterations – Other Building Costs ,Group Operations ,MITIE Technical Facilities Management Ltd ,203717-101 ,"2,060.98",
DFID,DFID,03/05/2016,Repairs  Maintenance and Alterations – Other Building Costs ,Group Operations ,MITIE Technical Facilities Management Ltd ,203717-101 ,"2,257.20",
DFID,DFID,03/05/2016,Repairs  Maintenance and Alterations – Other Building Costs ,Group Operations ,MITIE Technical Facilities Management Ltd ,203717-101 ,"3,766.84",
DFID,DFID,10/05/2016,Repairs  Maintenance and Alterations – Other Building Costs ,Group Operations ,MITIE Technical Facilities Management Ltd ,203717-101 ,616.00,
DFID,DFID,10/05/2016,Repairs  Maintenance and Alterations – Other Building Costs ,Group Operations ,MITIE Technical Facilities Management Ltd ,203717-101 ,730.40,
DFID,DFID,05/05/2016,Repairs  Maintenance and Alterations – Other Building Costs ,Group Operations ,MITIE Technical Facilities Management Ltd ,203717-101 ,"1,010.06",
DFID,DFID,04/05/2016,Repairs  Maintenance and Alterations – Other Building Costs ,Group Operations ,MITIE Technical Facilities Management Ltd ,203717-101 ,"1,505.96",
DFID,DFID,04/05/2016,Repairs  Maintenance and Alterations – Other Building Costs ,Group Operations ,MITIE Technical Facilities Management Ltd ,203717-101 ,"1,369.73",
DFID,DFID,16/05/2016,Repairs  Maint  Alter - Property & Constrct. Services ,Group Operations ,MITIE Technical Facilities Management Ltd ,203717-101 ,"10,619.68",
DFID,DFID,16/05/2016,Facilities Management payments ,Group Operations ,MITIE Technical Facilities Management Ltd ,203717-101 ,"28,660.56",Systems management and maintenance prevention costs  for DFID London HQ for April 2016
DFID,DFID,16/05/2016,Cleaning Costs ,Group Operations ,MITIE Technical Facilities Management Ltd ,203717-101 ,"23,170.70",
DFID,DFID,16/05/2016,Contract Catering Services ,Group Operations ,MITIE Technical Facilities Management Ltd ,203717-101 ,843.22,
DFID,DFID,13/05/2016,Repairs  Maintenance and Alterations – Other Building Costs ,Group Operations ,MITIE Technical Facilities Management Ltd ,203716-101 ,"74,656.80",
DFID,DFID,25/05/2016,Repairs  Maintenance and Alterations – Other Building Costs ,Group Operations ,MITIE Technical Facilities Management Ltd ,203716-101 ,"14,374.80",
DFID,DFID,11/05/2016,Aid Programme - Partnership Programme Arrangements ,Policy Division ,MALARIA CONSORTIUM ,202700-101 ,"667,567.33",
DFID,DFID,03/05/2016,Project delivery costs – supplier services ,West and Southern Africa ,MALARIA CONSORTIUM ,104223-101 ,"290,000.00",
DFID,DFID,26/05/2016,Project delivery costs – supplier services ,West and Southern Africa ,MALARIA CONSORTIUM ,104223-101 ,"2,489,217.00",
DFID,DFID,26/05/2016,Project delivery costs – supplier services ,West and Southern Africa ,MALARIA CONSORTIUM ,104223-101 ,"286,118.00",
DFID,DFID,16/05/2016,Aid Programme - Accountable Grant Payments ,Regional Directorate ,Supplier Name withheld ,204890-106 ,"1,853,670.50",
DFID,DFID,06/05/2016,Aid Programme - Accountable Grant Payments ,West and Southern Africa ,Supplier Name withheld ,201625-108 ,"205,226.00",
DFID,DFID,03/05/2016,Office Supplies ,Group Operations ,NEOPOST LIMITED ,100106-101 ,601.34,
DFID,DFID,18/05/2016,Project delivery costs – supplier services ,Economic Development Division ,NATURAL RESOURCES INSTITUTE ,203535-104 ,"39,996.00",
DFID,DFID,17/05/2016,Project delivery costs – supplier services ,Economic Development Division ,NATURAL RESOURCES INSTITUTE ,203448-105 ,"76,060.00",
DFID,DFID,24/05/2016,Aid Programme - Accountable Grant Payments ,Conflict  Humanitarian  Security & Stabilisation Division ,OXFAM INSTITUTIONAL INCOME ACCOUNT ,203244-113 ,"57,654.20",
DFID,DFID,18/05/2016,Aid Programme - Refugee Relief Payments ,East and Central Africa ,OXFAM INSTITUTIONAL INCOME ACCOUNT ,205064-104 ,"350,389.01",
DFID,DFID,18/05/2016,Air fares ,Middle East and North Africa Division ,Supplier Name withheld ,204981-101 ,"2,924.28",
DFID,DFID,06/05/2016,Project delivery costs – supplier services ,International Relations Division ,Supplier Name withheld ,100238-101 ,591.07,
DFID,DFID,16/05/2016,Vehicle Petrol & Oil,West and Southern Africa ,Supplier Name withheld ,101622-104 ,943.70,
DFID,DFID,03/05/2016,Project delivery costs – supplier services ,Economic Development Division ,OXFORD POLICY MANAGEMENT ,201394-113 ,"79,425.00",
DFID,DFID,03/05/2016,Project delivery costs – supplier services ,Economic Development Division ,OXFORD POLICY MANAGEMENT ,201394-113 ,"11,693.19",
DFID,DFID,24/05/2016,Project delivery costs – supplier services ,West and Southern Africa ,OXFORD POLICY MANAGEMENT ,200341-101 ,"259,629.65",
DFID,DFID,06/05/2016,Project delivery costs – supplier services ,East and Central Africa ,OXFORD POLICY MANAGEMENT ,202315-110 ,"21,593.23",
DFID,DFID,18/05/2016,Consultancy Services (As defined by central gov),West and Southern Africa ,OXFORD POLICY MANAGEMENT ,101629-101 ,"38,041.31",To support the Government of Sierra Leone develop and implement its education policy following the Ebola outbreak
DFID,DFID,03/05/2016,Project delivery costs – supplier services ,Asia  Caribbean and Overseas Territories ,OXFORD POLICY MANAGEMENT ,114175-108 ,"60,166.00",
DFID,DFID,12/05/2016,Project delivery costs – supplier services ,Research and Evidence Division ,OXFORD POLICY MANAGEMENT ,203193-101 ,"44,713.53",
DFID,DFID,12/05/2016,Project delivery costs – supplier services ,Research and Evidence Division ,OXFORD POLICY MANAGEMENT ,203193-101 ,"20,812.00",
DFID,DFID,31/05/2016,Project delivery costs – supplier services ,Asia  Caribbean and Overseas Territories ,OXFORD POLICY MANAGEMENT ,203186-105 ,"182,294.53",
DFID,DFID,16/05/2016,Project delivery costs – supplier services ,East and Central Africa ,OXFORD POLICY MANAGEMENT ,203363-105 ,"117,505.00",
DFID,DFID,13/05/2016,Project delivery costs – supplier services ,West and Southern Africa ,OXFORD POLICY MANAGEMENT ,203585-102 ,"35,988.00",
DFID,DFID,03/05/2016,Project delivery costs – supplier services ,West and Southern Africa ,OXFORD POLICY MANAGEMENT ,202706-102 ,"68,489.79",
DFID,DFID,16/05/2016,Project delivery costs – supplier services ,Research and Evidence Division ,OXFORD POLICY MANAGEMENT ,203051-101 ,"129,000.00",
DFID,DFID,26/05/2016,Project delivery costs – supplier services ,Research and Evidence Division ,OXFORD POLICY MANAGEMENT ,203051-101 ,"84,173.91",
DFID,DFID,25/05/2016,Project delivery costs – supplier services ,Research and Evidence Division ,OXFORD POLICY MANAGEMENT ,203051-103 ,"154,000.00",
DFID,DFID,12/05/2016,Project delivery costs – supplier services ,West and Southern Africa ,OXFORD POLICY MANAGEMENT ,202978-101 ,"110,000.00",
DFID,DFID,10/05/2016,Project delivery costs – supplier services ,Asia  Caribbean and Overseas Territories ,OXFORD POLICY MANAGEMENT ,202367-103 ,"1,269.23",
DFID,DFID,10/05/2016,Project delivery costs – supplier services ,Asia  Caribbean and Overseas Territories ,OXFORD POLICY MANAGEMENT ,202367-103 ,"49,661.19",
DFID,DFID,05/05/2016,Project delivery costs – supplier services ,East and Central Africa ,OXFORD POLICY MANAGEMENT ,202549-107 ,"58,908.98",
DFID,DFID,26/05/2016,Project delivery costs – supplier services ,West and Southern Africa ,OXFORD POLICY MANAGEMENT ,205186-101 ,"30,129.82",
DFID,DFID,26/05/2016,Project delivery costs – supplier services ,West and Southern Africa ,OXFORD POLICY MANAGEMENT ,205186-101 ,"2,597.85",
DFID,DFID,20/05/2016,Project delivery costs – supplier services ,West and Southern Africa ,OXFORD POLICY MANAGEMENT ,205182-105 ,"13,475.00",
DFID,DFID,18/05/2016,Project delivery costs – supplier services ,West and Southern Africa ,OXFORD POLICY MANAGEMENT ,205189-103 ,"24,296.10",
DFID,DFID,18/05/2016,Project delivery costs – supplier services ,West and Southern Africa ,OXFORD POLICY MANAGEMENT ,205189-103 ,"22,506.10",
DFID,DFID,23/05/2016,Project delivery costs – supplier services ,West and Southern Africa ,OXFORD POLICY MANAGEMENT ,204330-103 ,"160,838.25",
DFID,DFID,12/05/2016,Aid Programme - Accountable Grant Payments ,Policy Division ,OPPORTUNITY INTERNATIONAL UK ,203559-126 ,"292,546.00",
DFID,DFID,06/05/2016,Aid Programme - Accountable Grant Payments ,Policy Division ,OPPORTUNITY INTERNATIONAL UK ,203559-104 ,"68,713.00",
DFID,DFID,06/05/2016,Project delivery costs – supplier services ,Asia  Caribbean and Overseas Territories ,OPTIONS CONSULTANCY SERVICES LIMITED ,203413-103 ,"246,214.00",
DFID,DFID,09/05/2016,Project delivery costs – supplier services ,Asia  Caribbean and Overseas Territories ,OPTIONS CONSULTANCY SERVICES LIMITED ,203413-103 ,"41,400.00",
DFID,DFID,05/05/2016,Project delivery costs – supplier services ,Asia  Caribbean and Overseas Territories ,OPTIONS CONSULTANCY SERVICES LIMITED ,203413-103 ,"26,690.00",
DFID,DFID,05/05/2016,Project delivery costs – supplier services ,Asia  Caribbean and Overseas Territories ,OPTIONS CONSULTANCY SERVICES LIMITED ,203413-103 ,"230,826.00",
DFID,DFID,05/05/2016,Project delivery costs – supplier services ,Asia  Caribbean and Overseas Territories ,OPTIONS CONSULTANCY SERVICES LIMITED ,203413-103 ,"23,995.00",
DFID,DFID,05/05/2016,Project delivery costs – supplier services ,Asia  Caribbean and Overseas Territories ,OPTIONS CONSULTANCY SERVICES LIMITED ,203413-103 ,"48,645.00",
DFID,DFID,23/05/2016,Project delivery costs – supplier services ,Asia  Caribbean and Overseas Territories ,OPTIONS CONSULTANCY SERVICES LIMITED ,203413-103 ,"31,198.00",
DFID,DFID,17/05/2016,Project delivery costs – supplier services ,Asia  Caribbean and Overseas Territories ,OPTIONS CONSULTANCY SERVICES LIMITED ,203413-103 ,"31,198.00",
DFID,DFID,26/05/2016,Project delivery costs – supplier services ,Asia  Caribbean and Overseas Territories ,OPTIONS CONSULTANCY SERVICES LIMITED ,203413-103 ,"86,392.00",
DFID,DFID,26/05/2016,Project delivery costs – supplier services ,Asia  Caribbean and Overseas Territories ,OPTIONS CONSULTANCY SERVICES LIMITED ,203413-103 ,"31,198.00",
DFID,DFID,09/05/2016,Project delivery costs – supplier services ,East and Central Africa ,OPTIONS CONSULTANCY SERVICES LIMITED ,203024-103 ,"23,777.00",
DFID,DFID,12/05/2016,Project delivery costs – supplier services ,West and Southern Africa ,OPTIONS CONSULTANCY SERVICES LIMITED ,202721-104 ,"61,961.15",
DFID,DFID,11/05/2016,Project delivery costs – supplier services ,Asia  Caribbean and Overseas Territories ,OPTIONS CONSULTANCY SERVICES LIMITED ,202871-101 ,"55,208.21",
DFID,DFID,11/05/2016,Project delivery costs – supplier services ,Asia  Caribbean and Overseas Territories ,OPTIONS CONSULTANCY SERVICES LIMITED ,202871-101 ,"143,541.34",
DFID,DFID,04/05/2016,Project delivery costs – supplier services ,Asia  Caribbean and Overseas Territories ,OPTIONS CONSULTANCY SERVICES LIMITED ,202871-101 ,"55,208.21",
DFID,DFID,06/05/2016,Project delivery costs – supplier services ,Asia  Caribbean and Overseas Territories ,OPTIONS CONSULTANCY SERVICES LIMITED ,202871-101 ,"123,367.16",
DFID,DFID,06/05/2016,Project delivery costs – supplier services ,Asia  Caribbean and Overseas Territories ,OPTIONS CONSULTANCY SERVICES LIMITED ,202871-101 ,"82,637.94",
DFID,DFID,06/05/2016,Project delivery costs – supplier services ,Asia  Caribbean and Overseas Territories ,OPTIONS CONSULTANCY SERVICES LIMITED ,202871-101 ,"88,333.13",
DFID,DFID,06/05/2016,Project delivery costs – supplier services ,Asia  Caribbean and Overseas Territories ,OPTIONS CONSULTANCY SERVICES LIMITED ,202871-101 ,"55,208.21",
DFID,DFID,06/05/2016,Project delivery costs – supplier services ,Asia  Caribbean and Overseas Territories ,OPTIONS CONSULTANCY SERVICES LIMITED ,202871-101 ,"105,155.07",
DFID,DFID,06/05/2016,Project delivery costs – supplier services ,Asia  Caribbean and Overseas Territories ,OPTIONS CONSULTANCY SERVICES LIMITED ,202871-101 ,"105,155.07",
DFID,DFID,06/05/2016,Project delivery costs – supplier services ,Asia  Caribbean and Overseas Territories ,OPTIONS CONSULTANCY SERVICES LIMITED ,202871-101 ,"105,155.07",
DFID,DFID,06/05/2016,Project delivery costs – supplier services ,Asia  Caribbean and Overseas Territories ,OPTIONS CONSULTANCY SERVICES LIMITED ,202871-101 ,"6,584.77",
DFID,DFID,06/05/2016,Project delivery costs – supplier services ,Asia  Caribbean and Overseas Territories ,OPTIONS CONSULTANCY SERVICES LIMITED ,202871-101 ,"88,333.13",
DFID,DFID,13/05/2016,Project delivery costs – supplier services ,Asia  Caribbean and Overseas Territories ,OPTIONS CONSULTANCY SERVICES LIMITED ,202871-101 ,"26,240.21",
DFID,DFID,13/05/2016,Project delivery costs – supplier services ,Asia  Caribbean and Overseas Territories ,OPTIONS CONSULTANCY SERVICES LIMITED ,202871-101 ,"3,072.58",
DFID,DFID,11/05/2016,Project delivery costs – supplier services ,Asia  Caribbean and Overseas Territories ,OPTIONS CONSULTANCY SERVICES LIMITED ,202871-101 ,"121,950.79",
DFID,DFID,20/05/2016,Project delivery costs – supplier services ,Asia  Caribbean and Overseas Territories ,OPTIONS CONSULTANCY SERVICES LIMITED ,202871-101 ,"88,333.13",
DFID,DFID,12/05/2016,Project delivery costs – supplier services ,West and Southern Africa ,OPTIONS CONSULTANCY SERVICES LIMITED ,202214-103 ,"562,223.06",
DFID,DFID,12/05/2016,Project delivery costs – supplier services ,Asia  Caribbean and Overseas Territories ,OPTIONS CONSULTANCY SERVICES LIMITED ,201375-103 ,"2,559.00",
DFID,DFID,13/05/2016,Project delivery costs – supplier services ,East and Central Africa ,OPTIONS CONSULTANCY SERVICES LIMITED ,201512-102 ,"60,721.00",
DFID,DFID,13/05/2016,Project delivery costs – supplier services ,East and Central Africa ,OPTIONS CONSULTANCY SERVICES LIMITED ,201512-102 ,"60,721.00",
DFID,DFID,13/05/2016,Project delivery costs – supplier services ,East and Central Africa ,OPTIONS CONSULTANCY SERVICES LIMITED ,201512-102 ,"60,721.00",
DFID,DFID,13/05/2016,Project delivery costs – supplier services ,East and Central Africa ,OPTIONS CONSULTANCY SERVICES LIMITED ,201512-102 ,"60,721.00",
DFID,DFID,13/05/2016,Project delivery costs – supplier services ,East and Central Africa ,OPTIONS CONSULTANCY SERVICES LIMITED ,201512-102 ,"60,721.00",
DFID,DFID,13/05/2016,Project delivery costs – supplier services ,East and Central Africa ,OPTIONS CONSULTANCY SERVICES LIMITED ,201512-102 ,"223,561.00",
DFID,DFID,18/05/2016,Project delivery costs – supplier services ,West and Southern Africa ,OPTIONS CONSULTANCY SERVICES LIMITED ,205182-101 ,"73,989.59",
DFID,DFID,06/05/2016,Oil - Other Utilities ,Group Operations ,Government Procurement Service ,203717-101 ,"21,716.23",
DFID,DFID,06/05/2016,Oil - Other Utilities ,Group Operations ,Government Procurement Service ,203717-101 ,"9,044.10",
DFID,DFID,26/05/2016,Project delivery costs – supplier services ,Policy Division ,CENTRE FOR GLOBAL EDUCATION live ,201469-104 ,"19,144.35",
DFID,DFID,04/05/2016,Aid Programme - Accountable Grant Payments ,Policy Division ,Supplier Name withheld ,203559-142 ,"574,584.61",
DFID,DFID,05/05/2016,Aid Programme - Partnership Programme Arrangements ,Policy Division ,PLAN INTERNATIONAL UK ,202755-101 ,"78,747.00",
DFID,DFID,03/05/2016,Aid Programme - Partnership Programme Arrangements ,Policy Division ,PLAN INTERNATIONAL UK ,202755-101 ,"1,025,263.75",
DFID,DFID,13/05/2016,Aid Programme - Partnership Programme Arrangements ,Policy Division ,PENAL REFORM INTERNATIONAL ,202590-101 ,"270,344.25",
DFID,DFID,09/05/2016,Project delivery costs – supplier services ,Economic Development Division ,PRICEWATERHOUSECOOPERS ,202648-102 ,"13,412.62",
DFID,DFID,03/05/2016,Project delivery costs – supplier services ,Economic Development Division ,PRICEWATERHOUSECOOPERS ,202648-102 ,"20,518.80",
DFID,DFID,09/05/2016,Project delivery costs – supplier services ,Policy Division ,PRICEWATERHOUSECOOPERS ,202372-102 ,"867,987.60",
DFID,DFID,12/05/2016,Project delivery costs – supplier services ,Asia  Caribbean and Overseas Territories ,PRICEWATERHOUSECOOPERS ,202871-103 ,"60,427.00",
DFID,DFID,25/05/2016,Project delivery costs – supplier services ,Economic Development Division ,PRICEWATERHOUSECOOPERS ,202939-113 ,"7,000.00",
DFID,DFID,24/05/2016,Project delivery costs – supplier services ,Economic Development Division ,PRICEWATERHOUSECOOPERS ,202939-103 ,"79,950.90",
DFID,DFID,24/05/2016,Project delivery costs – supplier services ,Economic Development Division ,PRICEWATERHOUSECOOPERS ,202939-103 ,"5,019.37",
DFID,DFID,23/05/2016,Project delivery costs – supplier services ,Economic Development Division ,PRICEWATERHOUSECOOPERS ,203809-107 ,"8,400.00",
DFID,DFID,23/05/2016,Project delivery costs – supplier services ,Asia  Caribbean and Overseas Territories ,PRICEWATERHOUSECOOPERS ,203964-101 ,"109,869.71",
DFID,DFID,23/05/2016,Project delivery costs – supplier services ,West and Southern Africa ,PRICEWATERHOUSECOOPERS ,203161-104 ,"207,084.55",
DFID,DFID,04/05/2016,Project delivery costs – supplier services ,Economic Development Division ,PRICEWATERHOUSECOOPERS ,202259-101 ,"5,100.00",
DFID,DFID,23/05/2016,Project delivery costs – supplier services ,Economic Development Division ,PRICEWATERHOUSECOOPERS ,114178-104 ,"229,333.42",
DFID,DFID,25/05/2016,Project delivery costs – supplier services ,Policy Division ,PRICEWATERHOUSECOOPERS ,114370-104 ,"534,822.35",
DFID,DFID,25/05/2016,Project delivery costs – supplier services ,Policy Division ,PRICEWATERHOUSECOOPERS ,114370-104 ,"87,707.32",
DFID,DFID,25/05/2016,Project delivery costs – supplier services ,Policy Division ,PRICEWATERHOUSECOOPERS ,114370-105 ,"17,018.52",
DFID,DFID,25/05/2016,Project delivery costs – supplier services ,Policy Division ,PRICEWATERHOUSECOOPERS ,114370-105 ,"3,841.24",
DFID,DFID,24/05/2016,Project delivery costs – supplier services ,Policy Division ,PRICEWATERHOUSECOOPERS ,205191-101 ,"74,983.20",
DFID,DFID,24/05/2016,Project delivery costs – supplier services ,Research and Evidence Division ,PRICEWATERHOUSECOOPERS ,204867-104 ,"36,264.00",
DFID,DFID,13/05/2016,Project delivery costs – supplier services ,Asia  Caribbean and Overseas Territories ,PRICEWATERHOUSECOOPERS ,204792-101 ,"286,994.50",
DFID,DFID,06/05/2016,Storage & Distribution costs ,Regional Directorate ,PICKFORDS LTD ,204833-101 ,624.00,
DFID,DFID,03/05/2016,Storage & Distribution costs ,Asia  Caribbean and Overseas Territories ,PICKFORDS LTD ,101624-101 ,548.84,
DFID,DFID,26/05/2016,Storage & Distribution costs ,Asia  Caribbean and Overseas Territories ,PICKFORDS LTD ,101636-101 ,742.31,
DFID,DFID,16/05/2016,Storage & Distribution costs ,Asia  Caribbean and Overseas Territories ,PICKFORDS LTD ,101636-101 ,582.00,
DFID,DFID,26/05/2016,Storage & Distribution costs ,Asia  Caribbean and Overseas Territories ,PICKFORDS LTD ,101604-101 ,"2,233.45",
DFID,DFID,03/05/2016,Relocation costs ,East and Central Africa ,PICKFORDS LTD ,202594-101 ,"2,580.77",
DFID,DFID,24/05/2016,Aid Programme - Partnership Programme Arrangements ,Policy Division ,PEOPLE IN AID LTD ,202875-101 ,"50,000.00",
DFID,DFID,20/05/2016,Postage Costs ,Group Operations ,PITNEY BOWES (RECREDIT FRANKING M/C) ,203717-101 ,"1,000.00",
DFID,DFID,05/05/2016,Aid Programme - Accountable Grant Payments ,East and Central Africa ,POPULATION  SERVICES INTERNATIONAL ,204903-101 ,"1,478,766.00",
DFID,DFID,25/05/2016,Project delivery costs – supplier services ,East and Central Africa ,POPULATION  SERVICES INTERNATIONAL ,204266-103 ,"96,131.00",
DFID,DFID,17/05/2016,Aid Programme - Partnership Programme Arrangements ,Policy Division ,PROGRESSIO ,202503-101 ,"506,253.75",
DFID,DFID,10/05/2016,Aid Programme - Accountable Grant Payments ,East and Central Africa ,THE RAINFOREST FOUNDATION UK ,204956-101 ,"97,626.27",
DFID,DFID,16/05/2016,Training - Course Fees ,East and Central Africa ,RIFT VALLEY INSTITUTE ,203382-112 ,"2,865.56",
DFID,DFID,09/05/2016,Project delivery costs – supplier services ,Research and Evidence Division ,RAND EUROPE ,205043-103 ,"40,899.63",
DFID,DFID,06/05/2016,Water charges ,Group Operations ,BUSINESS STREAM ,100106-101 ,"9,755.96",
DFID,DFID,25/05/2016,Aid Programme - Accountable Grant Payments ,East and Central Africa ,THE SAVE THE CHILDREN FUND ,203462-111 ,"815,879.00",
DFID,DFID,10/05/2016,Aid Programme - Accountable Grant Payments ,Research and Evidence Division ,THE SAVE THE CHILDREN FUND ,203705-115 ,"22,158.00",
DFID,DFID,26/05/2016,Project delivery costs – supplier services ,West and Southern Africa ,THE SAVE THE CHILDREN FUND ,202623-116 ,"100,000.00",
DFID,DFID,09/05/2016,Project delivery costs – supplier services ,East and Central Africa ,THE SAVE THE CHILDREN FUND ,202891-101 ,"648,729.53",
DFID,DFID,06/05/2016,Aid Programme - Accountable Grant Payments ,West and Southern Africa ,THE SAVE THE CHILDREN FUND ,202978-104 ,"1,463,572.09",
DFID,DFID,12/05/2016,Aid Programme - Accountable Grant Payments ,Middle East and North Africa Division ,SAVE THE CHILDREN ,204007-143 ,"442,952.00",
DFID,DFID,12/05/2016,Aid Programme - Accountable Grant Payments ,Middle East and North Africa Division ,SAVE THE CHILDREN ,204007-143 ,"312,233.00",
DFID,DFID,10/05/2016,Aid Programme - Humanitarian Material Relief Assistance and Services ,Conflict  Humanitarian  Security & Stabilisation Division ,SAVE THE CHILDREN ,203044-103 ,"376,235.00",
DFID,DFID,09/05/2016,Project delivery costs – supplier services ,Policy Division ,Social Development Direct Ltd ,203245-106 ,"1,035.00",
DFID,DFID,12/05/2016,Project delivery costs – supplier services ,Policy Division ,Social Development Direct Ltd ,203245-106 ,"1,242.00",
DFID,DFID,23/05/2016,Project delivery costs – supplier services ,West and Southern Africa ,Social Development Direct Ltd ,203823-106 ,"36,466.74",
DFID,DFID,23/05/2016,Project delivery costs – supplier services ,West and Southern Africa ,Social Development Direct Ltd ,203823-106 ,"50,000.00",
DFID,DFID,25/05/2016,Aid Programme - Accountable Grant Payments ,Research and Evidence Division ,SCIDEV.NET ,114034-105 ,"65,000.00",
DFID,DFID,18/05/2016,Aid Programme - Accountable Grant Payments ,Policy Division ,SIGHT SAVERS INTERNATIONAL ,203559-127 ,"412,461.00",
DFID,DFID,24/05/2016,Project delivery costs – supplier services ,Group Operations ,SODEXHO PASS LTD ,204999-104 ,"1,532.60",
DFID,DFID,04/05/2016,Storage & Distribution costs ,Business Solutions Division Level ,TNT Express (UK) Ltd ,200001-101 ,"2,883.05",
DFID,DFID,03/05/2016,Computer software maintenance ,Business Solutions Division Level ,TRUSTMARQUE SOLUTIONS LTD ,200002-151 ,"9,504.00",
DFID,DFID,03/05/2016,Computer Software Licenses ,Business Solutions Division Level ,TRUSTMARQUE SOLUTIONS LTD ,200004-106 ,"106,983.40",
DFID,DFID,03/05/2016,Aid Programme - Voluntary contributions ,Asia  Caribbean and Overseas Territories ,UNICEF ,203274-110 ,"317,500.00",
DFID,DFID,05/05/2016,Aid Programme - Core contributions ,Asia  Caribbean and Overseas Territories ,UNICEF ,205247-101 ,"34,619.00",
DFID,DFID,12/05/2016,Aid Programme - Voluntary contributions ,Policy Division ,UNICEF ,204496-101 ,"1,400,000.00",
DFID,DFID,10/05/2016,Aid Programme - Accountable Grant Payments ,Policy Division ,Supplier Name withheld ,203559-112 ,"241,695.00",
DFID,DFID,12/05/2016,Project delivery costs – supplier services ,Policy Division ,TROPICAL HEALTH AND EDUCATION TRUST ,202208-101 ,"540,629.58",
DFID,DFID,17/05/2016,Project delivery costs – supplier services ,Policy Division ,TROPICAL HEALTH AND EDUCATION TRUST ,202208-101 ,"64,881.94",
DFID,DFID,17/05/2016,Project delivery costs – supplier services ,Policy Division ,TROPICAL HEALTH AND EDUCATION TRUST ,202208-101 ,"71,957.23",
DFID,DFID,17/05/2016,Project delivery costs – supplier services ,Policy Division ,TROPICAL HEALTH AND EDUCATION TRUST ,202208-101 ,"74,463.96",
DFID,DFID,20/05/2016,Training - Course Fees ,Finance and Corporate Performance Division ,THE OPEN UNIVERSITY ,100201-101 ,"1,333.00",
DFID,DFID,17/05/2016,Postage Costs ,Group Operations ,Whistl UK ,100106-101 ,"2,477.15",
DFID,DFID,17/05/2016,Postage Costs ,Group Operations ,Whistl UK ,100106-101 ,"2,777.93",
DFID,DFID,17/05/2016,Postage Costs ,Group Operations ,Whistl UK ,100106-101 ,"9,702.00",
DFID,DFID,06/05/2016,Research and development costs - supplier services ,Research and Evidence Division ,Integrity Action ,204584-113 ,"7,586.00",
DFID,DFID,03/05/2016,Aid Programme - Voluntary contributions ,East and Central Africa ,UNDP CONTRIBUTIONS ACCOUNT ,204936-106 ,"108,000.00",
DFID,DFID,18/05/2016,Aid Programme - Trust Funds contributions ,Asia  Caribbean and Overseas Territories ,UNDP CONTRIBUTIONS ACCOUNT ,201376-101 ,"108,335.00",
DFID,DFID,09/05/2016,Project delivery costs – supplier services ,Research and Evidence Division ,UNIVERSITY COLLEGE LONDON ,203200-103 ,"29,417.40",
DFID,DFID,13/05/2016,Project delivery costs – supplier services ,Research and Evidence Division ,UNIVERSITY COLLEGE LONDON ,202796-101 ,"43,609.93",
DFID,DFID,13/05/2016,Research and development costs - supplier services ,Research and Evidence Division ,UNIVERSITY COLLEGE LONDON ,204806-105 ,"3,630.00",
DFID,DFID,26/05/2016,Research and development costs - supplier services ,Research and Evidence Division ,UNIVERSITY OF  OXFORD ,200425-101 ,"324,324.00",
DFID,DFID,24/05/2016,Aid Programme - Pooled/Basket funding ,East and Central Africa ,Supplier Name withheld ,204788-102 ,"630,000.00",
DFID,DFID,24/05/2016,Aid Programme - Pooled/Basket funding ,East and Central Africa ,Supplier Name withheld ,204788-103 ,"375,000.00",
DFID,DFID,18/05/2016,Aid Programme - Voluntary contributions ,Middle East and North Africa Division ,Supplier Name withheld ,204397-104 ,"300,000.00",
DFID,DFID,24/05/2016,Aid Programme - Pooled/Basket funding ,East and Central Africa ,Supplier Name withheld ,204437-101 ,"1,002,996.00",
DFID,DFID,25/05/2016,Aid Programme - Voluntary contributions ,Middle East and North Africa Division ,Supplier Name withheld ,204515-101 ,"23,000,000.00",
DFID,DFID,23/05/2016,Aid Programme - Voluntary contributions ,East and Central Africa ,Supplier Name withheld ,205116-106 ,"500,000.00",
DFID,DFID,11/05/2016,Aid Programme - Voluntary contributions ,West and Southern Africa ,Supplier Name withheld ,202722-101 ,"804,525.00",
DFID,DFID,10/05/2016,Aid Programme - Humanitarian Material Relief Assistance and Services ,East and Central Africa ,Supplier Name withheld ,203462-105 ,"2,000,000.00",
DFID,DFID,26/05/2016,Telephone Usage & services ,Business Solutions Division Level ,VODAFONE CORPORATE ,200002-170 ,"8,931.52",
DFID,DFID,26/05/2016,Telephone Usage & services ,Business Solutions Division Level ,VODAFONE CORPORATE ,200002-170 ,"29,421.26",UK mobile rental and call charges Non Vatable - April 2016 
DFID,DFID,20/05/2016,Data Network - land lines ,Business Solutions Division Level ,VERIZON UK LIMITED ,200002-126 ,"7,823.03",
DFID,DFID,31/05/2016,Data Network - land lines ,Business Solutions Division Level ,VERIZON UK LIMITED ,200002-126 ,"4,084.86",
DFID,DFID,31/05/2016,Data Network - land lines ,Business Solutions Division Level ,VERIZON UK LIMITED ,200002-126 ,"3,317.88",
DFID,DFID,23/05/2016,Project delivery costs – supplier services ,Policy Division ,IMC Worldwide Ltd ,203798-103 ,"22,075.00",
DFID,DFID,12/05/2016,Aid Programme - Humanitarian Material Relief Assistance and Services ,Conflict  Humanitarian  Security & Stabilisation Division ,WORLD VISION ,203044-101 ,"463,118.94",
DFID,DFID,12/05/2016,Aid Programme - Accountable Grant Payments ,Economic Development Division ,WORLD VISION ,201394-114 ,"31,596.00",
DFID,DFID,31/05/2016,Aid Programme - Accountable Grant Payments ,Economic Development Division ,WORLD VISION ,201394-115 ,"192,560.00",
DFID,DFID,04/05/2016,Project delivery costs – supplier services ,Policy Division ,WORLD VISION ,202035-103 ,"96,676.80",
DFID,DFID,10/05/2016,Repairs  Maint  Alter - Removal & waste disposal services ,Group Operations ,WILLIAM TRACEY LIMITED ,100106-101 ,"1,085.14",
DFID,DFID,20/05/2016,Repairs  Maint  Alter - Removal & waste disposal services ,Group Operations ,WILLIAM TRACEY LIMITED ,100106-101 ,505.63,
DFID,DFID,25/05/2016,Project delivery costs – supplier services ,Asia  Caribbean and Overseas Territories ,BRAC ,201286-101 ,"36,200.00",
DFID,DFID,10/05/2016,Air fares ,Asia  Caribbean and Overseas Territories ,Saimon Overseas Ltd ,101603-101 ,"2,092.08",
DFID,DFID,10/05/2016,Air fares ,Asia  Caribbean and Overseas Territories ,Saimon Overseas Ltd ,101603-101 ,"1,344.10",
DFID,DFID,09/05/2016,Air fares ,West and Southern Africa ,Saimon Overseas Ltd ,101620-101 ,787.53,
DFID,DFID,18/05/2016,Air fares ,West and Southern Africa ,Mukwa Travel and Tours ,101637-102 ,726.63,
DFID,DFID,04/05/2016,Air fares ,West and Southern Africa ,Mukwa Travel and Tours ,203001-105 ,636.63,
DFID,DFID,20/05/2016,Air fares ,Asia  Caribbean and Overseas Territories ,Jaya Travels & Tours Ltd ,101621-101 ,"1,882.89",
DFID,DFID,10/05/2016,Hotels - Accommodation only ,Internal Audit ,Summit Hotel Pvt Ltd ,100121-101 ,850.30,
DFID,DFID,06/05/2016,Hotels - Accommodation only ,Internal Audit ,Summit Hotel Pvt Ltd ,100121-101 ,966.25,
DFID,DFID,06/05/2016,Hotels - Accommodation only ,Internal Audit ,Summit Hotel Pvt Ltd ,100121-101 ,"1,004.90",
DFID,DFID,06/05/2016,Hotels - Accommodation only ,Internal Audit ,Summit Hotel Pvt Ltd ,100121-101 ,773.00,
DFID,DFID,04/05/2016,Air fares ,West and Southern Africa ,Jeffery Travels ,101610-101 ,778.54,
DFID,DFID,04/05/2016,Air fares ,West and Southern Africa ,Jeffery Travels ,101610-101 ,863.98,
DFID,DFID,17/05/2016,Hotels - Accommodation only ,West and Southern Africa ,Accra City Hotel ,101613-101 ,627.31,
DFID,DFID,10/05/2016,Hotels - Accommodation only ,East and Central Africa ,Sheraton Hotel ,101635-101 ,724.74,
DFID,DFID,04/05/2016,Project delivery costs – supplier services ,East and Central Africa ,Sheraton Hotel ,202692-108 ,639.38,
DFID,DFID,12/05/2016,Training - Course Fees ,East and Central Africa ,Uganda Management Institute ,101635-101 ,"1,109.27",
DFID,DFID,26/05/2016,Contract Catering Services ,East and Central Africa ,Serena Hotels ,101616-101 ,"1,202.20",
DFID,DFID,24/05/2016,Auditors Assurance Service ,East and Central Africa ,Deloitte & Touche (Kenya) ,113303-112 ,"16,116.41",
DFID,DFID,19/05/2016,Air fares ,East and Central Africa ,WFP Somalia ,101630-101 ,"1,783.00",
DFID,DFID,06/05/2016,Air fares ,East and Central Africa ,WFP Somalia ,101630-101 ,"1,790.84",
DFID,DFID,06/05/2016,Air fares ,East and Central Africa ,WFP Somalia ,101630-101 ,"2,132.60",
DFID,DFID,06/05/2016,Air fares ,East and Central Africa ,WFP Somalia ,101630-101 ,"1,763.50",
DFID,DFID,05/05/2016,Hotels - Accommodation only ,East and Central Africa ,Fairview Hotel ,101630-101 ,"1,388.27",
DFID,DFID,26/05/2016,Hotels - Accommodation only ,West and Southern Africa ,Hotel Cardoso S A R L ,101620-101 ,866.31,
DFID,DFID,17/05/2016,Repairs  Maint  Alter - Property & Constrct. Services ,West and Southern Africa ,Pekolyn Tech. Services ,101622-108 ,"2,552.48",
DFID,DFID,24/05/2016,Oil - Other Utilities ,West and Southern Africa ,British  High Commission Abuja ,101622-108 ,954.08,
DFID,DFID,24/05/2016,Repairs  Maint  Alter - Removal & waste disposal services ,West and Southern Africa ,Fracham Company ,101622-108 ,554.18,
DFID,DFID,10/05/2016,Repairs  Maint  Alter - Removal & waste disposal services ,West and Southern Africa ,Fracham Company ,101622-108 ,584.40,
DFID,DFID,10/05/2016,Repairs  Maint  Alter - Removal & waste disposal services ,West and Southern Africa ,Fracham Company ,101622-108 ,535.70,
DFID,DFID,18/05/2016,Hotels - Accommodation only ,West and Southern Africa ,Supplier Name withheld ,101622-108 ,"1,165.03",
DFID,DFID,05/05/2016,Cleaning Costs ,West and Southern Africa ,Laurmann & Company Ltd ,101622-108 ,"1,066.45",
DFID,DFID,10/05/2016,Telephone Usage & services ,West and Southern Africa ,MTN Nigeria Communications Ltd ,101622-107 ,"2,829.59",
DFID,DFID,18/05/2016,Hotels - Accommodation only ,West and Southern Africa ,Supplier Name withheld ,101622-108 ,"1,546.37",
DFID,DFID,18/05/2016,Hotels - Accommodation only ,West and Southern Africa ,Supplier Name withheld ,101622-108 ,"1,537.70",
DFID,DFID,24/05/2016,Repairs  Maint  Alter - Removal & waste disposal services ,West and Southern Africa ,Abuja Environmental Protection Board ,101622-108 ,"2,509.81",
DFID,DFID,24/05/2016,Repairs  Maint  Alter - Removal & waste disposal services ,West and Southern Africa ,Abuja Environmental Protection Board ,100152-117 ,"1,025.14",
DFID,DFID,18/05/2016,Hotels - Accommodation only ,West and Southern Africa ,Supplier Name withheld ,101622-108 ,966.34,
DFID,DFID,17/05/2016,Cleaning Costs ,West and Southern Africa ,Sparklean Services Nig Ltd ,101622-108 ,"4,575.62",
DFID,DFID,17/05/2016,Cleaning Costs ,West and Southern Africa ,Sparklean Services Nig Ltd ,101622-108 ,"4,575.62",
DFID,DFID,17/05/2016,Water charges,West and Southern Africa ,Sparklean Services Nig Ltd ,101622-108 ,"1,735.30",
DFID,DFID,17/05/2016,Cleaning Costs ,West and Southern Africa ,Sparklean Services Nig Ltd ,100152-117 ,"1,284.50",
DFID,DFID,17/05/2016,Cleaning Costs ,West and Southern Africa ,Sparklean Services Nig Ltd ,100152-117 ,"1,284.50",
DFID,DFID,18/05/2016,Aid Programme - Accountable Grant Payments ,West and Southern Africa ,Health Reform Foundation of Nigeria ,203654-101 ,"103,196.84",
DFID,DFID,10/05/2016,Property rates ,West and Southern Africa ,Abuja Municipal Council ,101622-108 ,626.14,
DFID,DFID,24/05/2016,Project delivery costs – supplier services ,West and Southern Africa ,PKF Professional Services ,104189-106 ,"13,854.40",
DFID,DFID,24/05/2016,Project delivery costs – supplier services ,West and Southern Africa ,PKF Professional Services ,104189-106 ,"19,297.15",
DFID,DFID,26/05/2016,Training - Course Fees,Research and Evidence Division ,COMPASS GROUP ,202331-101 ,"5,670.00",
DFID,DFID,26/05/2016,Training - Course Fees,Research and Evidence Division ,COMPASS GROUP ,202331-101 ,"5,250.00",
DFID,DFID,03/05/2016,Aid Programme - Accountable Grant Payments ,Asia  Caribbean and Overseas Territories ,Overseas Development Institute ,202123-108 ,"32,344.00",
DFID,DFID,19/05/2016,Training - Course Fees ,East and Central Africa ,Supplier Name withheld ,101616-102 ,"1,500.00",
DFID,DFID,05/05/2016,Aid Programme - Accountable Grant Payments ,Conflict  Humanitarian  Security & Stabilisation Division ,Supplier Name withheld ,203978-102 ,"23,342.41",
DFID,DFID,05/05/2016,Project delivery costs – supplier services ,Research and Evidence Division ,Supplier Name withheld ,203199-109 ,"95,264.02",
DFID,DFID,12/05/2016,Project delivery costs – supplier services ,Policy Division ,Supplier Name withheld ,202921-103 ,"73,740.00",
DFID,DFID,05/05/2016,Aid Programme - Accountable Grant Payments ,International Relations Division ,Supplier Name withheld ,204566-101 ,"158,297.79",
DFID,DFID,12/05/2016,Aid Programme - Accountable Grant Payments ,Asia  Caribbean and Overseas Territories ,THE ASIA FOUNDATION ,203996-107 ,"49,901.12",
DFID,DFID,10/05/2016,Aid Programme - Accountable Grant Payments ,Asia  Caribbean and Overseas Territories ,MAF UK ,205028-101 ,"482,793.00",
DFID,DFID,17/05/2016,Aid Programme - Core contributions ,Global Funds ,THE WORLD BANK (IBRD ACCOUNT) ,200735-101 ,"26,334,565.23",
DFID,DFID,13/05/2016,Aid Programme - Core contributions ,Global Funds ,THE WORLD BANK (IBRD ACCOUNT) ,200735-102 ,"306,201.84",
DFID,DFID,09/05/2016,Aid Programme - Core contributions ,Economic Development Division ,FAO ,203159-101 ,"1,266,667.00",
DFID,DFID,10/05/2016,Research and development costs - supplier services ,Research and Evidence Division ,FAO ,204584-112 ,"10,000.00",
DFID,DFID,05/05/2016,Aid Programme - Humanitarian Material Relief Assistance and Services ,West and Southern Africa ,Supplier Name withheld ,205161-103 ,"300,000.00",
DFID,DFID,26/05/2016,Aid Programme - Voluntary contributions ,East and Central Africa ,Supplier Name withheld ,205116-105 ,"1,600,000.00",
DFID,DFID,31/05/2016,Aid Programme - Trust Funds contributions ,Asia  Caribbean and Overseas Territories ,Supplier Name withheld ,203385-102 ,"93,704.69",
DFID,DFID,11/05/2016,Aid Programme - Humanitarian Material Relief Assistance and Services ,East and Central Africa ,Supplier Name withheld ,203462-107 ,"1,000,000.00",
DFID,DFID,26/05/2016,Aid Programme - Voluntary contributions ,East and Central Africa ,Supplier Name withheld ,203462-102 ,"1,000,000.00",
DFID,DFID,20/05/2016,Aid Programme - Voluntary contributions ,Asia  Caribbean and Overseas Territories ,Supplier Name withheld ,202972-104 ,"300,000.00",
DFID,DFID,25/05/2016,Research and development costs - supplier services ,Research and Evidence Division ,International Food PolicyResearch Institute (IFRI ,201448-101 ,"736,550.00",
DFID,DFID,09/05/2016,Data Network - land lines ,Business Solutions Division Level ,KUBE NETWORKS LTD ,200002-130 ,"1,069.44",
DFID,DFID,05/05/2016,DFID Purchased Relief Supplies ,Policy Division ,IPA-International Procurement Agency (BV) ,201724-144 ,"8,079.73",
DFID,DFID,05/05/2016,Project delivery costs – supplier services ,Policy Division ,IPA-International Procurement Agency (BV) ,201724-144 ,664.41,
DFID,DFID,16/05/2016,DFID Purchased Relief Supplies ,Policy Division ,IPA-International Procurement Agency (BV) ,203148-102 ,"11,848.80",
DFID,DFID,18/05/2016,Project delivery costs – supplier services ,East and Central Africa ,IPA-International Procurement Agency (BV) ,204012-106 ,"83,602.72",
DFID,DFID,18/05/2016,Project delivery costs – supplier services ,East and Central Africa ,IPA-International Procurement Agency (BV) ,204012-106 ,"4,180.14",
DFID,DFID,16/05/2016,DFID Purchased Relief Supplies ,East and Central Africa ,IPA-International Procurement Agency (BV) ,204861-101 ,"148,476.83",
DFID,DFID,04/05/2016,DFID Purchased Relief Supplies ,East and Central Africa ,IPA-International Procurement Agency (BV) ,204861-101 ,"12,219.01",
DFID,DFID,16/05/2016,Aid Programme - Humanitarian Material Relief Assistance and Services ,Regional Directorate ,IPA-International Procurement Agency (BV) ,204917-102 ,"141,502.15",
DFID,DFID,31/05/2016,Project delivery costs – supplier services ,West and Southern Africa ,IPA-International Procurement Agency (BV) ,205182-104 ,"548,027.21",
DFID,DFID,09/05/2016,Project delivery costs – supplier services ,Asia  Caribbean and Overseas Territories ,Dr Selim Raihan ,204468-108 ,"7,483.00",
DFID,DFID,20/05/2016,Aid Programme - Accountable Grant Payments ,Research and Evidence Division ,AATF ,204988-102 ,"120,000.00",
DFID,DFID,10/05/2016,Project delivery costs – supplier services ,Research and Evidence Division ,FINANCIAL TIMES LTD ,100039-111 ,"1,200.00",
DFID,DFID,04/05/2016,Project delivery costs – supplier services ,Asia  Caribbean and Overseas Territories ,Sustainable Development Associates ,113287-102 ,"1,248.58",
DFID,DFID,25/05/2016,Aid Programme - Accountable Grant Payments ,Asia  Caribbean and Overseas Territories ,Population Services Internation (usa) ,202759-101 ,"755,095.20",
DFID,DFID,04/05/2016,Aid Programme - Accountable Grant Payments ,East and Central Africa ,INTERPEACE ,203383-116 ,"92,068.00",
DFID,DFID,04/05/2016,Aid Programme - Accountable Grant Payments ,East and Central Africa ,INTERPEACE ,203383-106 ,"67,309.00",
DFID,DFID,16/05/2016,Project delivery costs – supplier services ,West and Southern Africa ,ABT ASSOCIATES INC ,104229-101 ,"891,100.91",
DFID,DFID,12/05/2016,Aid Programme - Accountable Grant Payments ,Asia  Caribbean and Overseas Territories ,Save the Children Fund UK ,204131-101 ,"484,345.00",
DFID,DFID,12/05/2016,Aid Programme - Accountable Grant Payments ,Asia  Caribbean and Overseas Territories ,Save the Children Fund UK ,204131-102 ,"250,000.00",
DFID,DFID,13/05/2016,Fund monies to be managed and dispersed by the supplier ,East and Central Africa ,KPMG EAST AFRICA LTD ,200498-101 ,"30,029.65",
DFID,DFID,13/05/2016,Project delivery costs – supplier services ,East and Central Africa ,KPMG EAST AFRICA LTD ,200498-101 ,"77,740.91",
DFID,DFID,13/05/2016,Fund monies to be managed and dispersed by the supplier ,East and Central Africa ,KPMG EAST AFRICA LTD ,200498-105 ,"12,505.26",
DFID,DFID,13/05/2016,Project delivery costs – supplier services ,East and Central Africa ,KPMG EAST AFRICA LTD ,200498-105 ,"32,373.69",
DFID,DFID,26/05/2016,Research and development costs - supplier services ,Research and Evidence Division ,LONDON SCHOOL OF ECONOMICS AND POLITICAL SCIENCE ,201006-101 ,"310,893.55",
DFID,DFID,04/05/2016,Project delivery costs – supplier services ,Economic Development Division ,LONDON SCHOOL OF ECONOMICS AND POLITICAL SCIENCE ,203286-101 ,"3,405,445.79",
DFID,DFID,23/05/2016,Project delivery costs – supplier services ,Research and Evidence Division ,LONDON SCHOOL OF ECONOMICS AND POLITICAL SCIENCE ,203286-103 ,"1,001,771.99",
DFID,DFID,23/05/2016,Aid Programme - Accountable Grant Payments ,East and Central Africa ,LONDON SCHOOL OF ECONOMICS AND POLITICAL SCIENCE ,204803-103 ,"8,393.38",
DFID,DFID,24/05/2016,Oil - Other Utilities ,West and Southern Africa ,Total Nigeria PLC ,100152-117 ,"1,828.78",
DFID,DFID,24/05/2016,Oil - Other Utilities ,West and Southern Africa ,Total Nigeria PLC ,101622-108 ,"16,459.02",
DFID,DFID,05/05/2016,FCO shared service charges ,West and Southern Africa ,British High Commission ,100214-101 ,"6,364.75",
DFID,DFID,05/05/2016,FCO shared service charges ,West and Southern Africa ,British High Commission ,101629-101 ,"57,282.74",DFID contribution to office rent in Sierra Leone for the period  January  to March 2016 for the Ebola surge team.
DFID,DFID,13/05/2016,Aid Programme - Accountable Grant Payments ,Policy Division ,UNITED NATIONS FOUNDATION ,204202-101 ,"1,400,000.00",
DFID,DFID,11/05/2016,Aid Programme - Accountable Grant Payments ,Policy Division ,UNITED NATIONS FOUNDATION ,204333-102 ,"277,759.76",
DFID,DFID,20/05/2016,Air fares ,West and Southern Africa ,Premier Travel ,101638-101 ,"1,268.97",
DFID,DFID,23/05/2016,Air fares ,West and Southern Africa ,Premier Travel ,101638-101 ,592.41,
DFID,DFID,23/05/2016,Air fares ,West and Southern Africa ,Premier Travel ,101638-101 ,560.00,
DFID,DFID,18/05/2016,Aid Programme - Voluntary contributions ,West and Southern Africa ,Supplier Name withheld ,202721-102 ,"688,870.00",
DFID,DFID,05/05/2016,Aid Programme - Joint programme contribution ,West and Southern Africa ,Supplier Name withheld ,204228-101 ,"3,614,436.00",
DFID,DFID,17/05/2016,Aid Programme - Voluntary contributions ,Middle East and North Africa Division ,Supplier Name withheld ,205073-101 ,"3,050,000.00",
DFID,DFID,19/05/2016,Aid Programme - Voluntary contributions ,Middle East and North Africa Division ,Supplier Name withheld ,205073-101 ,"3,050,000.00",
DFID,DFID,17/05/2016,Project delivery costs – supplier services ,Policy Division ,KPMG LLP ,205208-101 ,"96,050.00",
DFID,DFID,17/05/2016,Project delivery costs – supplier services ,Policy Division ,KPMG LLP ,205208-101 ,"13,172.41",
DFID,DFID,20/05/2016,Project delivery costs – supplier services ,Economic Development Division ,KPMG LLP ,204255-101 ,"317,460.93",
DFID,DFID,03/05/2016,Project delivery costs – supplier services ,Economic Development Division ,KPMG LLP ,204252-113 ,"82,962.00",
DFID,DFID,18/05/2016,Project delivery costs – supplier services ,Economic Development Division ,KPMG LLP ,202647-101 ,"68,299.20",
DFID,DFID,13/05/2016,Aid Programme - Voluntary contributions ,West and Southern Africa ,Supplier Name withheld ,202722-104 ,"216,975.00",
DFID,DFID,31/05/2016,Aid Programme - Voluntary contributions ,Regional Directorate ,Supplier Name withheld ,204929-104 ,"5,000,000.00",
DFID,DFID,16/05/2016,other information and communication technologies ,West and Southern Africa ,Osmat Network Solutions Ventures ,100152-117 ,927.82,
DFID,DFID,16/05/2016,other information and communication technologies ,West and Southern Africa ,Osmat Network Solutions Ventures ,101622-108 ,"3,711.30",
DFID,DFID,09/05/2016,Subscriptions ,Communications Division ,THE PRESS ASSOCIATION ,100197-101 ,607.92,
DFID,DFID,17/05/2016,Facilities Management payments ,West and Southern Africa ,Abdullahi Tukur Zango ,101622-103 ,524.79,
DFID,DFID,23/05/2016,Project delivery costs – supplier services ,Middle East and North Africa Division ,CHEMONICS ,205048-104 ,"1,244,467.47",
DFID,DFID,10/05/2016,Project delivery costs – supplier services ,Asia  Caribbean and Overseas Territories ,BMB MOTT  MACDONALD ,107480-101 ,"70,880.59",
DFID,DFID,05/05/2016,Project delivery costs – supplier services ,Asia  Caribbean and Overseas Territories ,BMB MOTT  MACDONALD ,107480-101 ,"138,802.47",
DFID,DFID,03/05/2016,Project delivery costs – supplier services ,Asia  Caribbean and Overseas Territories ,IPE Global Pvt. Ltd. ,114040-101 ,"151,224.73",
DFID,DFID,31/05/2016,Project delivery costs – supplier services ,Asia  Caribbean and Overseas Territories ,IPE Global Pvt. Ltd. ,203217-101 ,"61,238.96",
DFID,DFID,26/05/2016,Project delivery costs – supplier services ,Asia  Caribbean and Overseas Territories ,IPE Global Pvt. Ltd. ,203217-101 ,"51,677.86",
DFID,DFID,26/05/2016,Project delivery costs – supplier services ,Asia  Caribbean and Overseas Territories ,IPE Global Pvt. Ltd. ,203217-101 ,"88,407.74",
DFID,DFID,26/05/2016,Project delivery costs – supplier services ,Asia  Caribbean and Overseas Territories ,IPE Global Pvt. Ltd. ,203217-101 ,"88,407.74",
DFID,DFID,26/05/2016,Project delivery costs – supplier services ,Asia  Caribbean and Overseas Territories ,IPE Global Pvt. Ltd. ,203217-101 ,"51,677.86",
DFID,DFID,26/05/2016,Project delivery costs – supplier services ,Asia  Caribbean and Overseas Territories ,IPE Global Pvt. Ltd. ,203217-101 ,"88,407.74",
DFID,DFID,25/05/2016,Project delivery costs – supplier services ,Asia  Caribbean and Overseas Territories ,IPE Global Pvt. Ltd. ,203217-101 ,"88,407.74",
DFID,DFID,16/05/2016,Project delivery costs – supplier services ,Asia  Caribbean and Overseas Territories ,IPE Global Pvt. Ltd. ,203217-101 ,"49,346.40",
DFID,DFID,25/05/2016,Repairs  Maint  Alter - Removal & waste disposal services ,Group Operations ,BYWATERS ,203717-101 ,"5,224.27",
DFID,DFID,04/05/2016,Repairs  Maint  Alter - Removal & waste disposal services ,Group Operations ,BYWATERS ,203717-101 ,"4,768.28",
DFID,DFID,09/05/2016,Aid Programme - Core contributions ,West and Southern Africa ,USAID/NIGERIA ,203851-104 ,"1,359,238.00",
DFID,DFID,03/05/2016,Aid Programme - Partnership Programme Arrangements ,Policy Division ,TRANSPARENCY INTERNAT ,202505-101 ,"843,586.00",
DFID,DFID,04/05/2016,Project delivery costs – supplier services ,East and Central Africa ,Delphic Consultancy Ltd (Kenya) ,202988-106 ,"23,751.00",
DFID,DFID,04/05/2016,Hotels - Accommodation only ,East and Central Africa ,Sea Cliff Hotel (USD) ,202844-101 ,"3,078.13",
DFID,DFID,19/05/2016,Project delivery costs – supplier services ,East and Central Africa ,EISA ,113401-105 ,"19,000.00",
DFID,DFID,16/05/2016,Aid Programme - Accountable Grant Payments ,West and Southern Africa ,The Carter Center ,204889-102 ,"184,432.00",
DFID,DFID,18/05/2016,Aid Programme - Accountable Grant Payments ,Conflict  Humanitarian  Security & Stabilisation Division ,Supplier Name withheld ,204060-101 ,"824,228.00",
DFID,DFID,03/05/2016,Aid Programme - Accountable Grant Payments ,Middle East and North Africa Division ,Supplier Name withheld ,204520-101 ,"1,658,598.00",
DFID,DFID,12/05/2016,Aid Programme - Accountable Grant Payments ,Middle East and North Africa Division ,Supplier Name withheld ,204520-103 ,"1,238,252.00",
DFID,DFID,04/05/2016,Research and development costs - supplier services ,Research and Evidence Division ,Supplier Name withheld ,203709-114 ,"313,083.00",
DFID,DFID,18/05/2016,Project delivery costs – supplier services ,Asia  Caribbean and Overseas Territories ,Crown Agents Bank ,203274-101 ,"5,080.00",
DFID,DFID,05/05/2016,Project delivery costs – supplier services ,Asia  Caribbean and Overseas Territories ,Crown Agents Bank ,203274-101 ,"3,158.06",
DFID,DFID,05/05/2016,Project delivery costs – supplier services ,Asia  Caribbean and Overseas Territories ,Crown Agents Bank ,203274-101 ,635.00,
DFID,DFID,19/05/2016,Project delivery costs – supplier services ,Asia  Caribbean and Overseas Territories ,Crown Agents Bank ,201645-105 ,"367,528.56",
DFID,DFID,05/05/2016,Project delivery costs – supplier services ,Policy Division ,Crown Agents Bank ,201724-128 ,"7,362.00",
DFID,DFID,31/05/2016,Project delivery costs – supplier services ,Policy Division ,Crown Agents Bank ,201724-129 ,"338,003.84",
DFID,DFID,18/05/2016,Project delivery costs – supplier services ,Middle East and North Africa Division ,Crown Agents Bank ,201828-101 ,"43,000.00",
DFID,DFID,05/05/2016,Project delivery costs – supplier services ,Middle East and North Africa Division ,Crown Agents Bank ,204061-101 ,"542,522.33",
DFID,DFID,23/05/2016,Project delivery costs – supplier services ,Middle East and North Africa Division ,Crown Agents Bank ,204061-101 ,"534,468.81",
DFID,DFID,18/05/2016,Training - Course Fees ,Middle East and North Africa Division ,EUROPEAN UNIVERSITY INSTITUTE ,204982-101 ,"1,718.57",
DFID,DFID,19/05/2016,Project delivery costs – supplier services ,Research and Evidence Division ,ECORYS UK Ltd. ,203778-109 ,"141,125.77",
DFID,DFID,25/05/2016,Aid Programme - Accountable Grant Payments ,Economic Development Division ,Consumer Unity & Trust Society ,203299-101 ,"79,683.00",
DFID,DFID,06/05/2016,Hotels - Accommodation only ,East and Central Africa ,Southern Sun Hotels(T) Ltd (USD) ,101635-101 ,613.51,
DFID,DFID,11/05/2016,Aid Programme - Accountable Grant Payments ,Economic Development Division ,WORLD RESOURCES INSTITUTE ,204250-108 ,"93,545.00",
DFID,DFID,11/05/2016,Project delivery costs – supplier services ,East and Central Africa ,BMB  MOTT  MACDONALD ,202511-102 ,"158,543.90",
DFID,DFID,03/05/2016,Project delivery costs – supplier services ,East and Central Africa ,BMB  MOTT  MACDONALD ,202511-102 ,"698,616.25",
DFID,DFID,04/05/2016,Aid Programme - Voluntary contributions ,Policy Division ,IUCN - THE WORLD CONSERVATION UNION ,203034-112 ,"960,500.00",
DFID,DFID,24/05/2016,Storage & Distribution costs ,West and Southern Africa ,Conote Services Ltd ,101622-108 ,"1,558.62",
DFID,DFID,13/05/2016,Aid Programme - Accountable Grant Payments ,Asia  Caribbean and Overseas Territories ,Manusher Jonno Foundation (mother account) ,202958-101 ,"2,000,000.00",
DFID,DFID,13/05/2016,Aid Programme - Accountable Grant Payments ,Policy Division ,THE TIDES CENTER ,204178-101 ,"65,000.00",
DFID,DFID,03/05/2016,Air fares ,Asia  Caribbean and Overseas Territories ,Jaya Travels & Tours Pvt Ltd. (US$) ,101621-101 ,"1,440.89",
DFID,DFID,09/05/2016,Project delivery costs – supplier services ,West and Southern Africa ,CARDNO EMERGING MARKETS (UK) LTD ,201791-111 ,"38,700.00",
DFID,DFID,09/05/2016,Project delivery costs – supplier services ,West and Southern Africa ,CARDNO EMERGING MARKETS (UK) LTD ,201791-112 ,"38,700.00",
DFID,DFID,12/05/2016,Project delivery costs – supplier services ,East and Central Africa ,CARDNO EMERGING MARKETS (UK) LTD ,202551-102 ,"296,955.14",
DFID,DFID,12/05/2016,Project delivery costs – supplier services ,Economic Development Division ,CARDNO EMERGING MARKETS (UK) LTD ,203535-102 ,"41,502.00",
DFID,DFID,12/05/2016,Subscriptions ,Communications Division ,NEWSPAPER LICENSING AGENCY ,100197-101 ,"9,195.66",
DFID,DFID,24/05/2016,Aid Programme - Joint programme contribution ,Asia  Caribbean and Overseas Territories , USAID ,203390-102 ,"3,500,000.00",
DFID,DFID,20/05/2016,Aid Programme - Joint programme contribution ,East and Central Africa , USAID ,204375-101 ,"1,000,000.00",
DFID,DFID,26/05/2016,Aid Programme - Joint programme contribution ,West and Southern Africa , USAID ,204911-101 ,"403,440.00",
DFID,DFID,25/05/2016,Aid Programme - Accountable Grant Payments ,East and Central Africa ,International Initiative for Impact Evaluation(3ie) ,203308-109 ,"113,560.00",
DFID,DFID,26/05/2016,Aid Programme - Accountable Grant Payments ,Research and Evidence Division ,International Initiative for Impact Evaluation(3ie) ,203705-126 ,"1,117.00",
DFID,DFID,26/05/2016,Aid Programme - Accountable Grant Payments ,Research and Evidence Division ,International Initiative for Impact Evaluation(3ie) ,203705-109 ,"370,992.00",
DFID,DFID,31/05/2016,Aid Programme - Accountable Grant Payments ,Research and Evidence Division ,International Initiative for Impact Evaluation(3ie) ,203650-101 ,"142,057.00",
DFID,DFID,31/05/2016,Aid Programme - Emergency Food Aid ,East and Central Africa ,Supplier Name withheld ,203462-102 ,"1,000,000.00",
DFID,DFID,26/05/2016,Aid Programme - Voluntary contributions ,Asia  Caribbean and Overseas Territories ,UNOPS - support for Access Cell unit ,203274-109 ,"600,000.00",
DFID,DFID,26/05/2016,Aid Programme - Voluntary contributions ,Asia  Caribbean and Overseas Territories ,UNOPS - support for Access Cell unit ,203274-106 ,"2,400,000.00",
DFID,DFID,03/05/2016,Aid Programme - Voluntary contributions ,Middle East and North Africa Division ,UNOPS - support for Access Cell unit ,204797-103 ,"900,000.00",
DFID,DFID,31/05/2016,Aid Programme - Core contributions ,East and Central Africa ,UNOPS - support for Access Cell unit ,204276-101 ,"2,405,400.00",
DFID,DFID,31/05/2016,Aid Programme - Core contributions ,Asia  Caribbean and Overseas Territories ,UNOPS - support for Access Cell unit ,300072-101 ,"3,200,000.00",
DFID,DFID,11/05/2016,Project delivery costs – supplier services ,Asia  Caribbean and Overseas Territories ,RURAL RECONSTRUCTION NEPAL ,203764-104 ,"221,526.00",
DFID,DFID,17/05/2016,Training - Travel & Subsistence ,Asia  Caribbean and Overseas Territories ,BONDS TRAVEL BUREAU ,100185-101 ,636.02,
DFID,DFID,05/05/2016,Data Network - land lines ,Business Solutions Division Level ,NAYATEL (PVT) LTD ,200002-121 ,616.39,
DFID,DFID,05/05/2016,Data Network - land lines ,Business Solutions Division Level ,NAYATEL (PVT) LTD ,203329-102 ,616.39,
DFID,DFID,17/05/2016,Hotels - Accommodation only ,Asia  Caribbean and Overseas Territories ,Supplier Name withheld ,101624-101 ,648.26,
DFID,DFID,12/05/2016,Aid Programme - Challenge Fund payments ,Asia  Caribbean and Overseas Territories ,Supplier Name withheld ,113779-103 ,"199,016.18",
DFID,DFID,13/05/2016,Project delivery costs – supplier services ,Middle East and North Africa Division ,UN- HABITAT ,202564-103 ,"11,529.00",
DFID,DFID,13/05/2016,Aid Programme - Accountable Grant Payments ,International Relations Division ,IFPRI ,203707-101 ,"110,000.00",
DFID,DFID,24/05/2016,Aid Programme - Humanitarian Material Relief Assistance and Services ,Asia  Caribbean and Overseas Territories ,Supplier Name withheld ,204603-104 ,"555,593.20",
DFID,DFID,24/05/2016,Aid Programme - Humanitarian Material Relief Assistance and Services ,Asia  Caribbean and Overseas Territories ,Supplier Name withheld ,204603-115 ,"2,222,372.80",
DFID,DFID,25/05/2016,Aid Programme - Core contributions ,Economic Development Division ,World Economic Forum ,204249-101 ,"646,729.11",
DFID,DFID,18/05/2016,Aid Programme - Voluntary contributions ,West and Southern Africa ,UNICEF NY ,202722-108 ,"79,299.85",
DFID,DFID,18/05/2016,Aid Programme - Voluntary contributions ,West and Southern Africa ,UNICEF NY ,202722-108 ,"822,741.80",
DFID,DFID,25/05/2016,Aid Programme - Core contributions ,Research and Evidence Division ,The Global Alliance for TB Drug Development ,204086-103 ,"1,000,000.00",
DFID,DFID,05/05/2016,Training - Course Fees ,Research and Evidence Division ,NatCen Learning ,100088-119 ,"6,580.00",
DFID,DFID,16/05/2016,Aid Programme - Voluntary contributions ,West and Southern Africa ,Southern African Development Community Secretariat ,202541-103 ,"79,832.00",
DFID,DFID,18/05/2016,Project delivery costs – supplier services ,West and Southern Africa ,Futures Group Europe ,202819-102 ,"435,225.62",
DFID,DFID,23/05/2016,Aid Programme - Voluntary contributions ,Research and Evidence Division ,International Monetary Fund (GBP) ,202960-103 ,"1,471,418.00",
DFID,DFID,12/05/2016,Aid Programme - Joint programme contribution ,East and Central Africa ,International Monetary Fund (GBP) ,204803-105 ,"424,882.00",
DFID,DFID,09/05/2016,Aid Programme - Voluntary contributions ,Economic Development Division ,The World Bank (EFO) ,203808-110 ,"60,625.00",
DFID,DFID,03/05/2016,Project delivery costs – supplier services ,East and Central Africa ,Montrose International ,201512-103 ,"86,927.54",
DFID,DFID,05/05/2016,Project delivery costs – supplier services ,East and Central Africa ,Perspectives GmbH ,202597-104 ,"31,108.10",
DFID,DFID,26/05/2016,Hotels - Accommodation only ,Asia  Caribbean and Overseas Territories ,Supplier Name withheld ,101624-101 ,685.03,
DFID,DFID,23/05/2016,Aid Programme - Accountable Grant Payments ,Policy Division ,IIED  ,202834-101 ,"435,148.00",
DFID,DFID,24/05/2016,Project delivery costs – supplier services ,Conflict  Humanitarian  Security & Stabilisation Division ,IIED  ,204273-102 ,"391,305.11",
DFID,DFID,06/05/2016,Postage Costs ,Group Operations ,Royal Mail Group Ltd ,203717-101 ,944.40,
DFID,DFID,05/05/2016,Aid Programme - Joint programme contribution ,Asia  Caribbean and Overseas Territories ,DFID-GIZ Risk Management Office  Kathmandu ,204293-101 ,"91,614.00",
DFID,DFID,20/05/2016,Air fares ,West and Southern Africa ,Bon Voyage Travel Centre Ltd(USD) ,101618-101 ,529.25,
DFID,DFID,12/05/2016,Project delivery costs – supplier services ,East and Central Africa ,Bon Voyage Travel Centre Ltd(USD) ,113401-105 ,579.35,
DFID,DFID,12/05/2016,Project delivery costs – supplier services ,East and Central Africa ,Bon Voyage Travel Centre Ltd(USD) ,113401-105 ,"1,134.44",
DFID,DFID,12/05/2016,Project delivery costs – supplier services ,East and Central Africa ,Bon Voyage Travel Centre Ltd(USD) ,113401-105 ,"1,067.22",
DFID,DFID,17/05/2016,Air fares ,East and Central Africa ,Bon Voyage Travel Centre Ltd(USD) ,101634-101 ,793.87,
DFID,DFID,04/05/2016,Air fares ,East and Central Africa ,Bon Voyage Travel Centre Ltd(USD) ,101625-102 ,803.14,
DFID,DFID,05/05/2016,Research and development costs - supplier services ,Research and Evidence Division ,Tim Leyland ,204823-102 ,"1,529.55",
DFID,DFID,26/05/2016,Project delivery costs – supplier services ,Communications Division ,The Profile Group Ltd ,100177-101 ,"1,800.00",
DFID,DFID,11/05/2016,Aid Programme - Core contributions ,Economic Development Division ,SG HAMBROS BANK & TRUST LTD (USD) ,203232-101 ,"3,425,394.00",
DFID,DFID,17/05/2016,Hotels - Accommodation only ,West and Southern Africa ,Supplier Name withheld ,101622-108 ,618.20,
DFID,DFID,12/05/2016,Project delivery costs – supplier services ,Human Resources ,BIRCHES GROUP LLC ,100269-135 ,"2,200.95",
DFID,DFID,12/05/2016,Encashment of Promissory Notes ,Policy Division ,Deutsche Gesellschaft fuer Internationale Zusammenarbeit(GIZ) GmbH ,202957-102 ,"755,673.27",
DFID,DFID,12/05/2016,Encashment of Promissory Notes ,Policy Division ,Deutsche Gesellschaft fuer Internationale Zusammenarbeit(GIZ) GmbH ,202957-104 ,"39,423.35",
DFID,DFID,12/05/2016,Encashment of Promissory Notes ,Policy Division ,Deutsche Gesellschaft fuer Internationale Zusammenarbeit(GIZ) GmbH ,202957-104 ,"142,647.11",
DFID,DFID,12/05/2016,Encashment of Promissory Notes ,Policy Division ,Deutsche Gesellschaft fuer Internationale Zusammenarbeit(GIZ) GmbH ,202957-105 ,"1,162,220.04",
DFID,DFID,12/05/2016,Encashment of Promissory Notes ,Policy Division ,Deutsche Gesellschaft fuer Internationale Zusammenarbeit(GIZ) GmbH ,202957-106 ,"348,267.35",
DFID,DFID,12/05/2016,Encashment of Promissory Notes ,Policy Division ,Deutsche Gesellschaft fuer Internationale Zusammenarbeit(GIZ) GmbH ,202957-106 ,"335,029.38",
DFID,DFID,18/05/2016,Aid Programme - Accountable Grant Payments ,Conflict  Humanitarian  Security & Stabilisation Division ,Supplier Name withheld ,203419-105 ,"15,918.48",
DFID,DFID,05/05/2016,Aid Programme - Accountable Grant Payments ,Conflict  Humanitarian  Security & Stabilisation Division ,Supplier Name withheld ,203419-105 ,"97,214.46",
DFID,DFID,06/05/2016,Aid Programme - Accountable Grant Payments ,East and Central Africa ,Supplier Name withheld ,204019-107 ,"25,000.00",
DFID,DFID,03/05/2016,Project delivery costs – supplier services ,East and Central Africa ,Supplier Name withheld ,204852-109 ,"8,861.45",
DFID,DFID,03/05/2016,Project delivery costs – supplier services ,East and Central Africa ,Supplier Name withheld ,204852-109 ,"16,145.91",
DFID,DFID,19/05/2016,Project delivery costs – supplier services ,Asia  Caribbean and Overseas Territories ,SIDBI MUMBAI ,114293-103 ,"103,793.01",
DFID,DFID,09/05/2016,Aid Programme - Pooled/Basket funding ,East and Central Africa ,TRADEMARK EAST AFRICA ,203357-104 ,"2,950,000.00",
DFID,DFID,09/05/2016,Aid Programme - Pooled/Basket funding ,East and Central Africa ,TRADEMARK EAST AFRICA ,203357-105 ,"550,000.00",
DFID,DFID,09/05/2016,Aid Programme - Pooled/Basket funding ,East and Central Africa ,TRADEMARK EAST AFRICA ,203357-113 ,"3,000,000.00",
DFID,DFID,18/05/2016,Aid Programme - Accountable Grant Payments ,West and Southern Africa ,Clinton Health Access Initiative ,203543-104 ,"257,088.65",
DFID,DFID,31/05/2016,Aid Programme - Accountable Grant Payments ,Policy Division ,Clinton Health Access Initiative ,202575-102 ,"3,067,521.00",
DFID,DFID,26/05/2016,Aid Programme - Accountable Grant Payments ,Policy Division ,Clinton Health Access Initiative ,204457-101 ,"840,550.00",
DFID,DFID,09/05/2016,Project delivery costs – supplier services ,Policy Division ,NATIONAL INSTITUTE FOR HEALTH  AND CLINICAL EXCELLENCE ,202918-103 ,"75,046.69",
DFID,DFID,13/05/2016,Aid Programme - Accountable Grant Payments ,Asia  Caribbean and Overseas Territories ,The Asia Foundation (GBP) ,200593-109 ,"143,764.32",
DFID,DFID,31/05/2016,Aid Programme - Accountable Grant Payments ,Asia  Caribbean and Overseas Territories ,The Asia Foundation (GBP) ,204623-101 ,"310,670.00",
DFID,DFID,12/05/2016,Project delivery costs – supplier services ,Asia  Caribbean and Overseas Territories ,Pricewaterhousecoopers Pvt. Ltd. ,203484-101 ,"8,979.78",
DFID,DFID,04/05/2016,Aid Programme - Accountable Grant Payments ,East and Central Africa ,INTERNATIONAL ALERT ,205072-101 ,"134,094.00",
DFID,DFID,05/05/2016,Aid Programme - Accountable Grant Payments ,East and Central Africa ,INTERNATIONAL ALERT ,205072-102 ,"82,978.71",
DFID,DFID,20/05/2016,Aid Programme - Accountable Grant Payments ,Asia  Caribbean and Overseas Territories ,OBSERVER RESEARCH FOUNDATION ,202765-105 ,"32,075.45",
DFID,DFID,03/05/2016,Aid Programme - Accountable Grant Payments ,West and Southern Africa ,Paralegal Advisory Service Institute ,202559-102 ,"59,764.67",
DFID,DFID,03/05/2016,Aid Programme - Accountable Grant Payments ,West and Southern Africa ,Paralegal Advisory Service Institute ,202559-102 ,"168,386.42",
DFID,DFID,11/05/2016,Aid Programme - Accountable Grant Payments ,Middle East and North Africa Division ,Supplier Name withheld ,202443-101 ,"609,368.91",
DFID,DFID,16/05/2016,Aid Programme - Accountable Grant Payments ,West and Southern Africa ,Supplier Name withheld ,202909-112 ,"79,118.00",
DFID,DFID,12/05/2016,Aid Programme - Accountable Grant Payments ,Conflict  Humanitarian  Security & Stabilisation Division ,Supplier Name withheld ,203419-105 ,"59,759.00",
DFID,DFID,19/05/2016,Aid Programme - Accountable Grant Payments ,Conflict  Humanitarian  Security & Stabilisation Division ,Supplier Name withheld ,203419-105 ,"13,526.15",
DFID,DFID,11/05/2016,Aid Programme - Humanitarian Material Relief Assistance and Services ,Regional Directorate ,Supplier Name withheld ,204838-101 ,"7,360.10",
DFID,DFID,13/05/2016,Aid Programme - Humanitarian Material Relief Assistance and Services ,Middle East and North Africa Division ,Supplier Name withheld ,204968-103 ,"20,863.00",
DFID,DFID,13/05/2016,Aid Programme - Humanitarian Material Relief Assistance and Services ,Conflict  Humanitarian  Security & Stabilisation Division ,Supplier Name withheld ,204610-102 ,"96,346.00",
DFID,DFID,13/05/2016,Aid Programme - Humanitarian Material Relief Assistance and Services ,East and Central Africa ,Supplier Name withheld ,204400-101 ,"35,000.00",
DFID,DFID,13/05/2016,Aid Programme - Humanitarian Material Relief Assistance and Services ,Middle East and North Africa Division ,Supplier Name withheld ,204516-103 ,"9,971.29",
DFID,DFID,04/05/2016,Project delivery costs � supplier services,East and Central Africa ,Tegen Guest Accommodation Hotel plc ,204803-107 ,"2,448.23",
DFID,DFID,09/05/2016,Aid Programme - Accountable Grant Payments ,Research and Evidence Division ,University of Edinburgh - Research Into Results Ltd ,203665-101 ,"125,550.00",
DFID,DFID,09/05/2016,Aid Programme - Accountable Grant Payments ,Research and Evidence Division ,University of Edinburgh - Research Into Results Ltd ,203665-102 ,"7,805.46",
DFID,DFID,12/05/2016,Training - Travel & Subsistence ,Asia  Caribbean and Overseas Territories ,Gerry's Travel Agency Private Limited ,202495-112 ,853.69,
DFID,DFID,17/05/2016,Training - Travel & Subsistence ,Asia  Caribbean and Overseas Territories ,Gerry's Travel Agency Private Limited ,101624-101 ,735.14,
DFID,DFID,17/05/2016,Training - Travel & Subsistence ,Asia  Caribbean and Overseas Territories ,Gerry's Travel Agency Private Limited ,101624-101 ,742.47,
DFID,DFID,17/05/2016,Training - Travel & Subsistence ,Asia  Caribbean and Overseas Territories ,Gerry's Travel Agency Private Limited ,101624-101 ,804.97,
DFID,DFID,17/05/2016,Air fares ,Asia  Caribbean and Overseas Territories ,Gerry's Travel Agency Private Limited ,101624-101 ,628.16,
DFID,DFID,12/05/2016,Air fares ,Asia  Caribbean and Overseas Territories ,Gerry's Travel Agency Private Limited ,101624-101 ,537.25,
DFID,DFID,12/05/2016,Training - Travel & Subsistence ,Asia  Caribbean and Overseas Territories ,Gerry's Travel Agency Private Limited ,101624-101 ,808.15,
DFID,DFID,12/05/2016,Training - Travel & Subsistence ,Asia  Caribbean and Overseas Territories ,Gerry's Travel Agency Private Limited ,101624-101 ,808.15,
DFID,DFID,25/05/2016,Aid Programme - Accountable Grant Payments ,East and Central Africa ,Supplier Name withheld ,203928-103 ,"61,878.36",
DFID,DFID,26/05/2016,Aid Programme - Core contributions ,East and Central Africa , ACCESS TO FINANCE RWANDA ,204471-101 ,"258,604.00",
DFID,DFID,26/05/2016,Aid Programme - Core contributions ,East and Central Africa , ACCESS TO FINANCE RWANDA ,204471-103 ,"86,201.00",
DFID,DFID,12/05/2016,Project delivery costs – supplier services ,West and Southern Africa ,IMC Worldwide Ltd. ,204643-104 ,"91,440.00",
DFID,DFID,25/05/2016,Project delivery costs – supplier services ,Research and Evidence Division ,IMC Worldwide Ltd. ,203199-109 ,"155,840.94",
DFID,DFID,26/05/2016,Project delivery costs – supplier services ,Asia  Caribbean and Overseas Territories ,IMC Worldwide Ltd. ,203186-110 ,"287,420.00",
DFID,DFID,26/05/2016,Project delivery costs – supplier services ,Asia  Caribbean and Overseas Territories ,IMC Worldwide Ltd. ,203186-110 ,"275,918.00",
DFID,DFID,26/05/2016,Project delivery costs – supplier services ,Asia  Caribbean and Overseas Territories ,IMC Worldwide Ltd. ,203186-110 ,"282,793.00",
DFID,DFID,26/05/2016,Project delivery costs – supplier services ,Asia  Caribbean and Overseas Territories ,IMC Worldwide Ltd. ,203186-103 ,"67,131.63",
DFID,DFID,26/05/2016,Project delivery costs – supplier services ,Asia  Caribbean and Overseas Territories ,IMC Worldwide Ltd. ,203186-103 ,"67,131.63",
DFID,DFID,26/05/2016,Project delivery costs – supplier services ,Asia  Caribbean and Overseas Territories ,IMC Worldwide Ltd. ,203186-103 ,"141,935.44",
DFID,DFID,25/05/2016,Project delivery costs – supplier services ,Asia  Caribbean and Overseas Territories ,IMC Worldwide Ltd. ,202927-110 ,"120,148.00",
DFID,DFID,06/05/2016,Project delivery costs – supplier services ,Asia  Caribbean and Overseas Territories ,IMC Worldwide Ltd. ,202697-104 ,"1,008,190.73",
DFID,DFID,30/05/2016,Project delivery costs – supplier services ,Asia  Caribbean and Overseas Territories ,IMC Worldwide Ltd. ,202697-111 ,"369,416.30",
DFID,DFID,30/05/2016,Project delivery costs – supplier services ,Asia  Caribbean and Overseas Territories ,IMC Worldwide Ltd. ,202328-107 ,"317,275.00",
DFID,DFID,17/05/2016,Fund monies to be managed and dispersed by the supplier ,Middle East and North Africa Division ,DAI Europe ,201828-101 ,"203,763.94",
DFID,DFID,12/05/2016,Fund monies to be managed and dispersed by the supplier ,West and Southern Africa ,DAI Europe ,201958-102 ,"32,617.57",
DFID,DFID,25/05/2016,Fund monies to be managed and dispersed by the supplier ,West and Southern Africa ,DAI Europe ,201958-102 ,"24,409.79",
DFID,DFID,09/05/2016,Project delivery costs – supplier services ,West and Southern Africa ,DAI Europe ,201980-102 ,"79,462.89",
DFID,DFID,09/05/2016,Project delivery costs – supplier services ,West and Southern Africa ,DAI Europe ,201857-102 ,"58,123.56",
DFID,DFID,09/05/2016,Project delivery costs – supplier services ,West and Southern Africa ,DAI Europe ,201857-102 ,"297,509.34",
DFID,DFID,25/05/2016,Project delivery costs – supplier services ,West and Southern Africa ,DAI Europe ,201018-102 ,"215,456.40",
DFID,DFID,18/05/2016,Project delivery costs – supplier services ,Asia  Caribbean and Overseas Territories ,DAI Europe ,114433-102 ,"601,139.65",
DFID,DFID,11/05/2016,Project delivery costs – supplier services ,Asia  Caribbean and Overseas Territories ,DAI Europe ,114433-102 ,"725,589.12",
DFID,DFID,24/05/2016,Project delivery costs – supplier services ,East and Central Africa ,DAI Europe ,202596-105 ,"83,592.00",
DFID,DFID,25/05/2016,Project delivery costs – supplier services ,East and Central Africa ,DAI Europe ,202596-105 ,"98,436.94",
DFID,DFID,03/05/2016,Project delivery costs – supplier services ,East and Central Africa ,DAI Europe ,202596-105 ,"104,718.39",
DFID,DFID,03/05/2016,Project delivery costs – supplier services ,East and Central Africa ,DAI Europe ,202596-105 ,"195,068.15",
DFID,DFID,26/05/2016,Project delivery costs – supplier services ,East and Central Africa ,DAI Europe ,202580-102 ,"374,222.18",
DFID,DFID,25/05/2016,Project delivery costs – supplier services ,West and Southern Africa ,DAI Europe ,202585-102 ,"456,792.18",
DFID,DFID,25/05/2016,Project delivery costs – supplier services ,West and Southern Africa ,DAI Europe ,202585-102 ,"342,697.62",
DFID,DFID,05/05/2016,Project delivery costs – supplier services ,West and Southern Africa ,DAI Europe ,202585-102 ,"49,049.04",
DFID,DFID,05/05/2016,Project delivery costs – supplier services ,West and Southern Africa ,DAI Europe ,202476-103 ,"112,930.34",
DFID,DFID,19/05/2016,Project delivery costs – supplier services ,Asia  Caribbean and Overseas Territories ,DAI Europe ,203186-104 ,"80,471.88",
DFID,DFID,19/05/2016,Project delivery costs – supplier services ,West and Southern Africa ,DAI Europe ,203317-102 ,"88,221.99",
DFID,DFID,23/05/2016,Project delivery costs – supplier services ,West and Southern Africa ,DAI Europe ,203317-102 ,"297,252.65",
DFID,DFID,23/05/2016,Project delivery costs – supplier services ,West and Southern Africa ,DAI Europe ,203922-101 ,"132,546.30",
DFID,DFID,18/05/2016,Project delivery costs – supplier services ,East and Central Africa ,DAI Europe ,203986-102 ,"165,893.60",
DFID,DFID,09/05/2016,Project delivery costs – supplier services ,Middle East and North Africa Division ,DAI Europe ,204325-102 ,"15,976.71",
DFID,DFID,20/05/2016,Project delivery costs – supplier services ,East and Central Africa ,DAI Europe ,204157-102 ,"177,966.81",
DFID,DFID,20/05/2016,Project delivery costs – supplier services ,East and Central Africa ,DAI Europe ,204157-105 ,"652,120.90",
DFID,DFID,05/05/2016,Project delivery costs – supplier services ,Asia  Caribbean and Overseas Territories ,DAI Europe ,204977-103 ,"129,707.28",
DFID,DFID,24/05/2016,Aid Programme - Accountable Grant Payments ,East and Central Africa ,Supplier Name withheld ,203387-103 ,"4,095,865.00",
DFID,DFID,17/05/2016,Hotels - Accommodation only ,Asia  Caribbean and Overseas Territories ,Ramada Multan ,101624-101 ,"1,157.61",
DFID,DFID,31/05/2016,Hotels - Accommodation only ,Asia  Caribbean and Overseas Territories ,Ramada Multan ,101624-101 ,"1,131.04",
DFID,DFID,20/05/2016,Project delivery costs – supplier services ,Policy Division ,Sightsavers ,203145-101 ,"689,324.00",
DFID,DFID,09/05/2016,Aid Programme - Accountable Grant Payments ,Policy Division ,Sightsavers ,203145-102 ,"525,027.00",
DFID,DFID,23/05/2016,Project delivery costs – supplier services ,Policy Division ,Sightsavers ,203146-103 ,"395,000.00",
DFID,DFID,18/05/2016,Project delivery costs – supplier services ,Policy Division ,Sightsavers ,203146-103 ,"200,000.00",
DFID,DFID,20/05/2016,Project delivery costs – supplier services ,Economic Development Division ,Ernst and Young LLP  ,202259-101 ,"6,936.00",
DFID,DFID,03/05/2016,Research and development costs - supplier services ,Research and Evidence Division ,Abt Associates ,203052-102 ,"225,525.00",
DFID,DFID,24/05/2016,Project delivery costs – supplier services ,Asia  Caribbean and Overseas Territories ,MSI ,202413-104 ,"85,366.00",
DFID,DFID,31/05/2016,Project delivery costs – supplier services ,West and Southern Africa ,MSI ,202656-101 ,"1,220,937.00",
DFID,DFID,23/05/2016,Project delivery costs – supplier services ,East and Central Africa ,MSI ,202549-105 ,"463,384.00",
DFID,DFID,17/05/2016,Project delivery costs – supplier services ,East and Central Africa ,MSI ,202549-105 ,"154,309.00",
DFID,DFID,09/05/2016,Fund monies to be managed and dispersed by the supplier ,East and Central Africa ,MSI ,202549-105 ,"254,458.00",
DFID,DFID,25/05/2016,Aid Programme - Accountable Grant Payments ,Asia  Caribbean and Overseas Territories ,MSI ,203390-103 ,"787,831.19",
DFID,DFID,24/05/2016,Project delivery costs – supplier services ,East and Central Africa ,MSI ,201518-102 ,"868,725.00",
DFID,DFID,24/05/2016,Project delivery costs – supplier services ,Asia  Caribbean and Overseas Territories ,MSI ,201518-103 ,"614,623.00",
DFID,DFID,24/05/2016,Project delivery costs – supplier services ,West and Southern Africa ,MSI ,201518-107 ,"201,600.00",
DFID,DFID,13/05/2016,Project delivery costs – supplier services ,Policy Division ,PATH ,202674-101 ,"14,280.50",
DFID,DFID,17/05/2016,Project delivery costs – supplier services ,Policy Division ,PATH ,202674-101 ,"1,577.40",
DFID,DFID,26/05/2016,Aid Programme - Accountable Grant Payments ,Asia  Caribbean and Overseas Territories ,DKT International ,202413-106 ,"612,182.77",
DFID,DFID,12/05/2016,Project delivery costs – supplier services ,Policy Division ,LTS International Ltd. ,201724-135 ,"38,169.97",
DFID,DFID,26/05/2016,Project delivery costs – supplier services ,Policy Division ,LTS International Ltd. ,201724-135 ,"50,431.26",
DFID,DFID,03/05/2016,Project delivery costs – supplier services ,Policy Division ,Mannion Daniels Limited ,202035-101 ,"15,995.07",
DFID,DFID,03/05/2016,Project delivery costs – supplier services ,Policy Division ,Mannion Daniels Limited ,202035-102 ,"6,855.03",
DFID,DFID,17/05/2016,Project delivery costs – supplier services ,East and Central Africa ,Pathfinder International - US ,202893-103 ,"245,589.76",
DFID,DFID,06/05/2016,Aid Programme - Accountable Grant Payments ,Research and Evidence Division ,MIT/J-PAL ,202247-102 ,"235,314.00",
DFID,DFID,26/05/2016,Project delivery costs – supplier services ,East and Central Africa ,TRANSTEC ,203462-101 ,"24,783.66",
DFID,DFID,10/05/2016,Contract Catering Services,Middle East and North Africa Division ,MITIE Catering Services Ltd ,204084-101 ,838.62,
DFID,DFID,13/05/2016,Project delivery costs – supplier services ,Asia  Caribbean and Overseas Territories ,PricewaterhouseCoopers Pvt.Ltd ,204135-101 ,"163,669.00",
DFID,DFID,23/05/2016,Project delivery costs – supplier services ,Asia  Caribbean and Overseas Territories ,PricewaterhouseCoopers Pvt.Ltd ,203908-101 ,"91,139.00",
DFID,DFID,17/05/2016,Project delivery costs – supplier services ,Asia  Caribbean and Overseas Territories ,PricewaterhouseCoopers Pvt.Ltd ,200599-101 ,"17,175.00",
DFID,DFID,17/05/2016,Project delivery costs – supplier services ,Asia  Caribbean and Overseas Territories ,PricewaterhouseCoopers Pvt.Ltd ,200599-101 ,"51,525.00",
DFID,DFID,17/05/2016,Project delivery costs – supplier services ,Asia  Caribbean and Overseas Territories ,PricewaterhouseCoopers Pvt.Ltd ,200599-101 ,"80,150.00",
DFID,DFID,25/05/2016,Facilities Management payments ,West and Southern Africa ,Lilleker Bros (Nigeria) Ltd ,101622-108 ,"3,448.63",
DFID,DFID,25/05/2016,Facilities Management payments ,West and Southern Africa ,Lilleker Bros (Nigeria) Ltd ,100152-117 ,"1,408.59",
DFID,DFID,04/05/2016,Taxi costs ,Business Solutions Division Level ,d&m taxis ,200001-101 ,660.00,
DFID,DFID,13/05/2016,Recruitment costs,Human Resources ,Recipient name withheld ,100269-128 ,"1,179.98",
DFID,DFID,04/05/2016,Research and development costs - supplier services ,Research and Evidence Division ,JHU Bloomberg School of Public Health ,201888-101 ,"275,877.00",
DFID,DFID,04/05/2016,Research and development costs - supplier services ,Research and Evidence Division ,JHU Bloomberg School of Public Health ,201888-103 ,"56,132.00",
DFID,DFID,12/05/2016,Aid Programme - Accountable Grant Payments ,Policy Division ,JHU Bloomberg School of Public Health ,203326-101 ,"5,995.00",
DFID,DFID,18/05/2016,Aid Programme - Accountable Grant Payments ,Policy Division ,JHU Bloomberg School of Public Health ,203326-101 ,"18,338.00",
DFID,DFID,10/05/2016,Subscriptions ,Communications Division ,Durrants lTD ,100197-101 ,"1,710.26",
DFID,DFID,13/05/2016,Aid Programme - Voluntary contributions ,Asia  Caribbean and Overseas Territories ,CDB ,205157-101 ,"200,000.00",
DFID,DFID,05/05/2016,Project delivery costs – supplier services ,Policy Division ,Pearson ,201469-103 ,"231,809.00",
DFID,DFID,10/05/2016,Printer Consumables ,West and Southern Africa ,Formats Projects Services Limited ,100152-117 ,"3,355.06",
DFID,DFID,10/05/2016,Printer Consumables ,West and Southern Africa ,Formats Projects Services Limited ,101622-108 ,"13,420.25",
DFID,DFID,04/05/2016,Project delivery costs – supplier services ,East and Central Africa ,IMA World Health ,203631-102 ,"1,315,817.61",
DFID,DFID,03/05/2016,Hostile Environment Training ,Top Management Group ,KBR ,100232-102 ,979.20,
DFID,DFID,31/05/2016,Computer Software Licenses ,Group Operations ,MidlandHR ,204999-105 ,"13,671.36",
DFID,DFID,13/05/2016,Aid Programme - Joint programme contribution ,Policy Division ,Deutsche Gesellschaft fuer Internationale Zusammenarbeit (GIZ) GmbH ,202957-103 ,"34,062.61",
DFID,DFID,16/05/2016,Aid Programme - Accountable Grant Payments ,West and Southern Africa ,Emory University ,202340-102 ,"187,721.00",
DFID,DFID,17/05/2016,Project delivery costs – supplier services ,Asia  Caribbean and Overseas Territories ,Ernst & Young Ford Rhodes Sidat  Hyder ,202495-112 ,"2,622.08",
DFID,DFID,25/05/2016,Project delivery costs – supplier services ,East and Central Africa ,dan whitaker ltd ,204266-104 ,502.86,
DFID,DFID,16/05/2016,Project delivery costs – supplier services ,East and Central Africa ,dan whitaker ltd ,204266-104 ,"10,752.00",
DFID,DFID,16/05/2016,Project delivery costs – supplier services ,East and Central Africa ,dan whitaker ltd ,204266-104 ,"8,960.00",
DFID,DFID,18/05/2016,Aid Programme - Pooled/Basket funding ,Research and Evidence Division ,Biotechnology & Biological Sciences Research Council ,202749-102 ,"36,637.17",
DFID,DFID,05/05/2016,Aid Programme - Accountable Grant Payments ,West and Southern Africa ,TechnoServe  Incorporated ,202351-107 ,"204,087.00",
DFID,DFID,10/05/2016,furniture and fittings,West and Southern Africa ,Mr Eze Samson ,101622-108 ,862.68,
DFID,DFID,10/05/2016,furniture and fittings,West and Southern Africa ,Mr Eze Samson ,101622-108 ,738.84,
DFID,DFID,26/05/2016,Aid Programme - Accountable Grant Payments ,East and Central Africa ,Gatsby Charitable Foundation UK ,202844-107 ,"329,654.75",
DFID,DFID,16/05/2016,Legal costs ,Asia  Caribbean and Overseas Territories ,Amarchand & Mangaldas & Suresh A Shroff & Co. ,202869-101 ,"8,006.05",
DFID,DFID,10/05/2016,Project delivery costs – supplier services ,East and Central Africa ,M&C Saatchi World Services  ,204957-103 ,"11,100.00",
DFID,DFID,18/05/2016,Aid Programme - Accountable Grant Payments ,West and Southern Africa ,Revenue Watch Institute ,204330-105 ,"38,879.30",
DFID,DFID,20/05/2016,Aid Programme - Accountable Grant Payments ,Asia  Caribbean and Overseas Territories ,Revenue Watch Institute ,203601-111 ,"26,326.21",
DFID,DFID,19/05/2016,Hotels - Accommodation only ,West and Southern Africa ,Harvey World Travel Centurion ,101631-101 ,709.53,
DFID,DFID,09/05/2016,Air fares ,West and Southern Africa ,Harvey World Travel Centurion ,101631-101 ,"3,783.06",
DFID,DFID,09/05/2016,Training - Travel & Subsistence ,West and Southern Africa ,Harvey World Travel Centurion ,101631-101 ,"1,114.17",
DFID,DFID,09/05/2016,Air fares ,West and Southern Africa ,Harvey World Travel Centurion ,101631-101 ,511.61,
DFID,DFID,09/05/2016,Air fares ,West and Southern Africa ,Harvey World Travel Centurion ,101631-101 ,"1,735.09",
DFID,DFID,03/05/2016,Air fares ,West and Southern Africa ,Harvey World Travel Centurion ,101631-101 ,516.92,
DFID,DFID,26/05/2016,Aid Programme - Accountable Grant Payments ,Asia  Caribbean and Overseas Territories ,Campaign for Popular Education (CAMPE) ,202123-107 ,"278,896.00",
DFID,DFID,12/05/2016,Aid Programme - Accountable Grant Payments ,Policy Division ,Guttmacher Institute ,203177-101 ,"192,522.00",
DFID,DFID,26/05/2016,Postage Costs ,Group Operations ,Royal Mail Courier Services Ltd ,203717-101 ,712.50,
DFID,DFID,06/05/2016,Postage Costs ,Group Operations ,Royal Mail Courier Services Ltd ,201157-101 ,862.50,
DFID,DFID,05/05/2016,Aid Programme - Accountable Grant Payments ,Asia  Caribbean and Overseas Territories ,James P Grant School of Public Health  BRAC University ,201645-110 ,"488,532.62",
DFID,DFID,24/05/2016,Legal costs ,Research and Evidence Division ,Marriott Davies Yapp LLP ,203638-104 ,"2,550.24",
DFID,DFID,16/05/2016,Legal costs ,West and Southern Africa ,Marriott Davies Yapp LLP ,203161-105 ,"8,600.00",
DFID,DFID,25/05/2016,Legal costs ,West and Southern Africa ,Marriott Davies Yapp LLP ,203161-105 ,"2,024.00",
DFID,DFID,23/05/2016,Aid Programme - Other Financial Aid to Government ,Asia  Caribbean and Overseas Territories ,INDECOM Jamaica ,204232-103 ,"218,750.00",
DFID,DFID,06/05/2016,Aid Programme - Poverty Reduction Budget Support ,Asia  Caribbean and Overseas Territories ,Government of Nepal Health Sector Programme 2 ,203413-102 ,"3,933,051.00",
DFID,DFID,06/05/2016,Aid Programme - Poverty Reduction Budget Support ,Asia  Caribbean and Overseas Territories ,Government of Nepal Health Sector Programme 2 ,203100-104 ,"68,412.00",
DFID,DFID,25/05/2016,Aid Programme - Other Financial Aid to Government ,East and Central Africa ,Government of Rwanda NSDS1 in Rwanda ,201690-101 ,"1,101,065.00",
DFID,DFID,04/05/2016,Contract & Agency Staff ,Group Operations ,Anderson Knight Ltd ,100270-105 ,564.11,
DFID,DFID,25/05/2016,Contract & Agency Staff ,Group Operations ,Anderson Knight Ltd ,204664-101 ,719.72,
DFID,DFID,24/05/2016,Contract & Agency Staff ,Group Operations ,Anderson Knight Ltd ,204664-101 ,719.72,
DFID,DFID,10/05/2016,Contract & Agency Staff ,Group Operations ,Anderson Knight Ltd ,204664-101 ,719.72,
DFID,DFID,03/05/2016,Contract & Agency Staff ,Group Operations ,Anderson Knight Ltd ,204664-101 ,719.72,
DFID,DFID,03/05/2016,Contract & Agency Staff ,Group Operations ,Anderson Knight Ltd ,204664-101 ,719.72,
DFID,DFID,26/05/2016,Aid Programme - Other Financial Aid to Government ,Asia  Caribbean and Overseas Territories ,Government of Montserrat - Montserrat Budget Support Grant ,204238-101 ,"6,256,572.80",
DFID,DFID,26/05/2016,Aid Programme - Other Financial Aid to Government ,Asia  Caribbean and Overseas Territories ,Government of Montserrat - Montserrat Budget Support Grant ,204238-102 ,"447,889.66",
DFID,DFID,26/05/2016,Aid Programme - Other Financial Aid to Government ,Asia  Caribbean and Overseas Territories ,Government of Montserrat - Montserrat Budget Support Grant ,204238-103 ,"439,565.89",
DFID,DFID,10/05/2016,Aid Programme - Other Financial Aid to Government ,East and Central Africa ,SEBDM 2 Uganda Bureau of Statistics ,200795-104 ,"133,377.00",
DFID,DFID,06/05/2016,Vehicle Repairs & Maintenance ,West and Southern Africa ,Aniagboso Chukwuma Nig. Enter. ,101622-108 ,823.99,
DFID,DFID,12/05/2016,Aid Programme - Other Financial Aid to Government ,Asia  Caribbean and Overseas Territories ,Pitcairn Islands Office ,204709-101 ,"1,000,000.00",
DFID,DFID,26/05/2016,Aid Programme - Accountable Grant Payments ,West and Southern Africa ,SHMPA ,202524-109 ,"60,054.95",
DFID,DFID,13/05/2016,Project delivery costs – supplier services ,East and Central Africa ,Sara Seims ,201518-104 ,"1,190.00",
DFID,DFID,18/05/2016,Fund monies to be managed and dispersed by the supplier ,Policy Division ,PWC GEC Client Account ,202372-103 ,"3,000.00",
DFID,DFID,18/05/2016,Fund monies to be managed and dispersed by the supplier ,Policy Division ,PWC GEC Client Account ,202372-103 ,"2,691,701.00",
DFID,DFID,16/05/2016,Fund monies to be managed and dispersed by the supplier ,Policy Division ,PWC GEC Client Account ,202372-103 ,"2,691,701.00",
DFID,DFID,04/05/2016,Aid Programme - Voluntary contributions ,Economic Development Division ,CDC Group plc ,202939-112 ,"250,000.00",
DFID,DFID,24/05/2016,Aid Programme - Accountable Grant Payments ,East and Central Africa ,HelpAge International UK ,204258-103 ,"288,680.87",
DFID,DFID,12/05/2016,Training - Course Fees ,West and Southern Africa ,Language Services Direct Ltd ,101610-101 ,"3,537.59",
DFID,DFID,10/05/2016,Training - Course Fees ,West and Southern Africa ,Language Services Direct Ltd ,101610-101 ,"1,622.92",
DFID,DFID,06/05/2016,Aid Programme - Accountable Grant Payments ,Policy Division ,Vital Voices Global Partnership ,202882-103 ,"97,648.77",
DFID,DFID,18/05/2016,Research and development costs - supplier services ,Research and Evidence Division ,Global Public Policy Institute (GPPi) ,204584-129 ,"59,205.40",
DFID,DFID,13/05/2016,Aid Programme - Strategic Grant Arrangement payments ,Research and Evidence Division ,Partnership for African Social & Governance Research Inc. ,113957-102 ,"451,941.00",
DFID,DFID,04/05/2016,Research and development costs - supplier services ,Research and Evidence Division ,University of Johannesburg ,203778-107 ,"101,000.00",
DFID,DFID,18/05/2016,Project delivery costs – supplier services ,Asia  Caribbean and Overseas Territories ,Supplier Name withheld ,202112-103 ,"57,875.95",
DFID,DFID,09/05/2016,Project delivery costs – supplier services ,West and Southern Africa ,IMA World Health - ASSP ,202732-102 ,"5,209,123.00",
DFID,DFID,09/05/2016,Project delivery costs – supplier services ,West and Southern Africa ,IMA World Health - ASSP ,202732-104 ,"22,513.00",
DFID,DFID,31/05/2016,Aid Programme - Poverty Reduction Budget Support ,West and Southern Africa ,Ministry of Gender  Children and Social Protection  Ghana ,201629-108 ,"2,024,534.39",
DFID,DFID,12/05/2016,Telephone Usage & services ,Business Solutions Division Level ,Level 3 ,200002-169 ,"30,355.20","UK HQ's telephony service, usage and rental charges for June 2016"
DFID,DFID,10/05/2016,Aid Programme - Joint programme contribution ,Asia  Caribbean and Overseas Territories ,Asian Development Bank (DFID Grant) ,203274-107 ,"250,000.00",
DFID,DFID,11/05/2016,Aid Programme - Other Financial Aid to Government ,Asia  Caribbean and Overseas Territories ,Maternal Newborn and Child Health Programme  Pakistan ,202488-103 ,"1,100,000.00",
DFID,DFID,03/05/2016,Aid Programme - Other Financial Aid to Government ,East and Central Africa ,MINISTRY OF HEALTH  RWANDA ,203639-101 ,"700,000.00",
DFID,DFID,23/05/2016,Aid Programme - Trust Funds contributions ,East and Central Africa ,African Legal Support Facility ,203974-101 ,"2,264,375.00",
DFID,DFID,20/05/2016,Aid Programme - Humanitarian Material Relief Assistance and Services ,Conflict  Humanitarian  Security & Stabilisation Division ,CFOA National Resilience Ltd ,205012-101 ,"63,723.17",
DFID,DFID,13/05/2016,Aid Programme - Voluntary contributions ,West and Southern Africa ,COOPI Cooperazione Internazionale ,203771-105 ,"9,143.79",
DFID,DFID,13/05/2016,Repairs  Maintenance and Alterations – Other Building Costs ,Group Operations ,Markon Ltd ,100106-101 ,962.52,
DFID,DFID,12/05/2016,other information and communication technologies ,West and Southern Africa ,Vodacom Business Nigeria USD ,101622-108 ,"2,267.48",
DFID,DFID,18/05/2016,Data Network - land lines ,Business Solutions Division Level ,Vodacom Business Nigeria USD ,200002-121 ,995.47,
DFID,DFID,18/05/2016,Data Network - land lines ,Business Solutions Division Level ,Vodacom Business Nigeria USD ,200002-121 ,"2,455.92",
DFID,DFID,18/05/2016,Data Network - land lines ,Business Solutions Division Level ,Vodacom Business Nigeria USD ,200002-121 ,"1,779.18",
DFID,DFID,18/05/2016,Data Network - land lines ,Business Solutions Division Level ,Vodacom Business Nigeria USD ,203329-102 ,"2,455.92",
DFID,DFID,18/05/2016,Data Network - land lines ,Business Solutions Division Level ,Vodacom Business Nigeria USD ,203329-102 ,995.47,
DFID,DFID,18/05/2016,Data Network - land lines ,Business Solutions Division Level ,Vodacom Business Nigeria USD ,203329-102 ,"1,779.18",
DFID,DFID,06/05/2016,Project delivery costs – supplier services ,Asia  Caribbean and Overseas Territories ,Ivan Scott ,203186-106 ,"11,054.45",
DFID,DFID,03/05/2016,Aid Programme - Accountable Grant Payments ,Asia  Caribbean and Overseas Territories ,Aurat Foundation ,203029-107 ,"251,389.00",
DFID,DFID,26/05/2016,Aid Programme - Accountable Grant Payments ,Asia  Caribbean and Overseas Territories ,Aurat Foundation ,203029-107 ,"65,304.00",
DFID,DFID,24/05/2016,other information and communication technologies ,West and Southern Africa ,Kezumotu Technologies Ltd ,101622-107 ,"2,680.83",
DFID,DFID,05/05/2016,Project delivery costs – supplier services ,Asia  Caribbean and Overseas Territories ,Center for Project Supervision and Management  Ministry of Health ,202708-103 ,"102,301.53",
DFID,DFID,20/05/2016,Aid Programme - Other Financial Aid to Government ,Asia  Caribbean and Overseas Territories ,Government of Pakistan  Punjab Economic Opportunities Programme- PCU ,113484-102 ,"1,915,212.00",
DFID,DFID,16/05/2016,Air fares ,Business Solutions Division Level ,dnata International Private Ltd. ,200001-101 ,"1,307.18",
DFID,DFID,13/05/2016,Air fares ,East and Central Africa ,dnata International Private Ltd. ,202692-108 ,637.01,
DFID,DFID,11/05/2016,Air fares ,Asia  Caribbean and Overseas Territories ,dnata International Private Ltd. ,204053-101 ,535.54,
DFID,DFID,25/05/2016,Aid Programme - Accountable Grant Payments ,East and Central Africa ,WFT Africa ,202844-105 ,"1,810,924.00",
DFID,DFID,05/05/2016,Aid Programme - Trust Funds contributions ,Middle East and North Africa Division ,UNDP Multi-Partner Trust Fund Office ,204797-101 ,"1,300,000.00",
DFID,DFID,13/05/2016,Aid Programme - Accountable Grant Payments ,Policy Division ,IDEO.org ,203798-102 ,"512,298.59",
DFID,DFID,31/05/2016,Project delivery costs – supplier services ,West and Southern Africa ,Imperial Health Sciences ,202214-108 ,"68,653.80",
DFID,DFID,03/05/2016,Project delivery costs – supplier services ,West and Southern Africa ,Imperial Health Sciences ,202214-108 ,"68,268.80",
DFID,DFID,03/05/2016,Project delivery costs – supplier services ,West and Southern Africa ,Imperial Health Sciences ,202214-108 ,"14,136.90",
DFID,DFID,03/05/2016,Computer software maintenance ,Business Solutions Division Level ,CGI IT UK Limited ,200001-101 ,"15,250.00",
DFID,DFID,23/05/2016,Project delivery costs – supplier services ,Economic Development Division ,Konung International Ltd. ,202647-101 ,"14,364.00",
DFID,DFID,23/05/2016,Project delivery costs – supplier services ,Economic Development Division ,Konung International Ltd. ,202647-101 ,701.97,
DFID,DFID,04/05/2016,Project delivery costs – supplier services ,Economic Development Division ,Blavatnik School of Government ,100120-101 ,"5,000.00",
DFID,DFID,17/05/2016,Project delivery costs – supplier services ,Conflict  Humanitarian  Security & Stabilisation Division ,Wilton Park Executive Agency ,300013-101 ,"42,351.00",
DFID,DFID,19/05/2016,Project delivery costs – supplier services ,West and Southern Africa ,ICC Moçambique  Lda ,204179-107 ,"1,580.74",
DFID,DFID,26/05/2016,Fund monies to be managed and dispersed by the supplier ,East and Central Africa ,BMB Mott MacDonald BV ,202946-105 ,"161,130.63",
DFID,DFID,26/05/2016,Fund monies to be managed and dispersed by the supplier ,East and Central Africa ,BMB Mott MacDonald BV ,202946-108 ,"64,546.13",
DFID,DFID,10/05/2016,Project delivery costs – supplier services ,East and Central Africa ,Idiaa Limited ,204736-107 ,"18,384.00",
DFID,DFID,10/05/2016,Aid Programme - Accountable Grant Payments ,West and Southern Africa ,CANADEM ,205036-102 ,"5,506.00",
DFID,DFID,24/05/2016,Project delivery costs – supplier services ,East and Central Africa ,CANADEM ,204852-109 ,"15,853.97",
DFID,DFID,10/05/2016,Project delivery costs – supplier services ,Asia  Caribbean and Overseas Territories ,CANADEM ,204973-104 ,"17,094.22",
DFID,DFID,26/05/2016,Aid Programme - Accountable Grant Payments ,East and Central Africa ,CANADEM ,203961-114 ,"23,222.00",
DFID,DFID,26/05/2016,Aid Programme - Humanitarian Material Relief Assistance and Services ,Middle East and North Africa Division ,CANADEM ,204016-101 ,"6,279.11",
DFID,DFID,25/05/2016,Aid Programme - Accountable Grant Payments ,Conflict  Humanitarian  Security & Stabilisation Division ,CANADEM ,203419-105 ,"18,429.00",
DFID,DFID,25/05/2016,Aid Programme - Accountable Grant Payments ,Conflict  Humanitarian  Security & Stabilisation Division ,CANADEM ,203419-105 ,"17,504.00",
DFID,DFID,25/05/2016,Aid Programme - Accountable Grant Payments ,Conflict  Humanitarian  Security & Stabilisation Division ,CANADEM ,203419-105 ,"11,827.00",
DFID,DFID,25/05/2016,Aid Programme - Accountable Grant Payments ,Conflict  Humanitarian  Security & Stabilisation Division ,CANADEM ,203419-105 ,"12,925.00",
DFID,DFID,25/05/2016,Aid Programme - Accountable Grant Payments ,Conflict  Humanitarian  Security & Stabilisation Division ,CANADEM ,203419-105 ,"22,158.00",
DFID,DFID,23/05/2016,Aid Programme - Accountable Grant Payments ,Conflict  Humanitarian  Security & Stabilisation Division ,CANADEM ,203419-105 ,"9,961.00",
DFID,DFID,23/05/2016,Aid Programme - Accountable Grant Payments ,Conflict  Humanitarian  Security & Stabilisation Division ,CANADEM ,203419-105 ,"8,421.00",
DFID,DFID,23/05/2016,Aid Programme - Accountable Grant Payments ,Conflict  Humanitarian  Security & Stabilisation Division ,CANADEM ,203419-105 ,"20,991.00",
DFID,DFID,23/05/2016,Aid Programme - Accountable Grant Payments ,Conflict  Humanitarian  Security & Stabilisation Division ,CANADEM ,203419-105 ,"12,336.00",
DFID,DFID,20/05/2016,Aid Programme - Accountable Grant Payments ,Conflict  Humanitarian  Security & Stabilisation Division ,CANADEM ,203419-105 ,"20,887.00",
DFID,DFID,20/05/2016,Aid Programme - Accountable Grant Payments ,Conflict  Humanitarian  Security & Stabilisation Division ,CANADEM ,203419-105 ,"22,208.00",
DFID,DFID,20/05/2016,Aid Programme - Accountable Grant Payments ,Conflict  Humanitarian  Security & Stabilisation Division ,CANADEM ,203419-105 ,"25,630.00",
DFID,DFID,20/05/2016,Aid Programme - Accountable Grant Payments ,Conflict  Humanitarian  Security & Stabilisation Division ,CANADEM ,203419-105 ,"28,077.00",
DFID,DFID,10/05/2016,Water charges ,West and Southern Africa ,Venida Water Limited ,101622-108 ,519.02,
DFID,DFID,31/05/2016,Aid Programme - Other Financial Aid to Government ,East and Central Africa ,Ministry of Finance and Economic Cooperation -Ethiopia ,204290-104 ,"21,000,000.00",
DFID,DFID,12/05/2016,Training - Course Fees ,West and Southern Africa ,University of Hertfordshire Higher Education Corporation ,100254-101 ,"3,180.00",
DFID,DFID,17/05/2016,Data Network - land lines ,Business Solutions Division Level ,(Vodafone)Cable & Wireless Global Networks Ltd ,200002-185 ,"6,311.72",
DFID,DFID,03/05/2016,Data Network - land lines ,Business Solutions Division Level ,(Vodafone)Cable & Wireless Global Networks Ltd ,200002-185 ,"5,912.99",
DFID,DFID,03/05/2016,Data Network - land lines ,Business Solutions Division Level ,(Vodafone)Cable & Wireless Global Networks Ltd ,203329-103 ,"5,912.98",
DFID,DFID,17/05/2016,Data Network - land lines ,Business Solutions Division Level ,(Vodafone)Cable & Wireless Global Networks Ltd ,203329-103 ,"6,311.74",
DFID,DFID,13/05/2016,Aid Programme - Accountable Grant Payments ,East and Central Africa ,International NGO Safety Organisation ,204788-105 ,"27,761.00",
DFID,DFID,26/05/2016,Aid Programme - Other Financial Aid to Government ,East and Central Africa ,RWANDA NATURAL RESOURCES AUTHORITY ,200284-108 ,"500,000.00",
DFID,DFID,26/05/2016,Project delivery costs – supplier services ,Policy Division ,Climate Policy Initiative ,201733-115 ,"39,326.00",
DFID,DFID,26/05/2016,Data Network - land lines ,Business Solutions Division Level ,Keltec Ltd ,200002-124 ,"1,125.00",
DFID,DFID,16/05/2016,Project delivery costs – supplier services ,West and Southern Africa ,Girl Hub ,204438-101 ,"1,588.00",
DFID,DFID,10/05/2016,Telephone Usage & services ,West and Southern Africa ,Emerging Markets Telecommunications Services Ltd ,101622-107 ,"3,071.69",
DFID,DFID,06/05/2016,Project delivery costs – supplier services ,Research and Evidence Division ,JBS International  Inc. ,203339-105 ,"11,496.52",
DFID,DFID,04/05/2016,Project delivery costs – supplier services ,West and Southern Africa ,Gabasawa Women & Children Empowerment Initiative ,204438-107 ,"20,978.14",
DFID,DFID,24/05/2016,Aid Programme - Voluntary contributions ,Regional Directorate ,Public Health England ,204904-103 ,"521,111.00",
DFID,DFID,12/05/2016,Project delivery costs – supplier services ,West and Southern Africa ,Public Health England ,205182-101 ,"267,874.45",
DFID,DFID,10/05/2016,Aid Programme - Joint programme contribution ,Asia  Caribbean and Overseas Territories ,Supplier Name withheld ,204443-101 ,"267,314.49",
DFID,DFID,05/05/2016,Air fares ,West and Southern Africa ,Travel Places Ltd ,101613-101 ,887.36,
DFID,DFID,16/05/2016,Project delivery costs � supplier services,East and Central Africa ,Kuriftu Resort and Spa ,203961-115 ,"7,699.38",
DFID,DFID,10/05/2016,Electricity ,West and Southern Africa ,Abuja Electricity Distribution Company ,101622-108 ,986.72,
DFID,DFID,10/05/2016,Electricity ,West and Southern Africa ,Abuja Electricity Distribution Company ,101622-108 ,898.95,
DFID,DFID,10/05/2016,Electricity ,West and Southern Africa ,Abuja Electricity Distribution Company ,101622-108 ,991.06,
DFID,DFID,19/05/2016,Aid Programme - Other Financial Aid to Government ,West and Southern Africa ,Office of the President Ghana ,204483-102 ,"136,410.30",
DFID,DFID,23/05/2016,Aid Programme - Accountable Grant Payments ,West and Southern Africa ,Africa Centre for Energy ,204330-104 ,"25,407.41",
DFID,DFID,04/05/2016,Aid Programme - Accountable Grant Payments ,Research and Evidence Division ,Zvitambo Institute for Maternal & Child Health Research ,201854-104 ,"26,700.87",
DFID,DFID,23/05/2016,Aid Programme - Accountable Grant Payments ,West and Southern Africa ,Policy & Legal Advocacy Centre ,203851-107 ,"93,564.16",
DFID,DFID,24/05/2016,Aid Programme - Voluntary contributions ,East and Central Africa ,MSB Swedish Civil Contingencies Agency ,203462-101 ,"51,269.00",
DFID,DFID,13/05/2016,Office Equipment - Purchases,Group Operations ,THISTLE STORAGE EQUIPMENT LTD ,100106-101 ,"4,416.77",
DFID,DFID,23/05/2016,Vehicle Hire Charges,East and Central Africa ,Karibu Holidays Ltd ,202844-101 ,768.97,
DFID,DFID,17/05/2016,Facilities Management payments ,West and Southern Africa ,Majas General Enterprises (Nig) PLC ,101622-103 ,"1,049.57",
DFID,DFID,03/05/2016,Interview expenses ,Human Resources ,Recipient name withheld ,100269-128 ,"1,463.48",
DFID,DFID,06/05/2016,Project delivery costs – supplier services ,Research and Evidence Division ,Vertiver ,202125-118 ,875.05,
DFID,DFID,06/05/2016,Project delivery costs – supplier services ,Research and Evidence Division ,Vertiver ,202125-118 ,"5,823.04",
DFID,DFID,10/05/2016,other information and communication technologies ,West and Southern Africa ,IS Internet Solutions Ltd ,101622-108 ,"3,008.72",
DFID,DFID,31/05/2016,Aid Programme - Other Financial Aid to Government ,Asia  Caribbean and Overseas Territories ,Ministry of Federal Affairs and Local Development ,203764-106 ,"500,000.00",
DFID,DFID,31/05/2016,Aid Programme - Other Financial Aid to Government ,Asia  Caribbean and Overseas Territories ,Ministry of Federal Affairs and Local Development ,203764-112 ,"2,000,000.00",
DFID,DFID,12/05/2016,Project delivery costs – supplier services ,Asia  Caribbean and Overseas Territories ,Krishna Devkota ,108538-107 ,"2,414.14",
DFID,DFID,20/05/2016,Hotels - Accommodation only ,East and Central Africa ,HRG Kenya (KES) ,101616-101 ,529.97,
DFID,DFID,06/05/2016,Air fares ,East and Central Africa ,HRG Kenya (USD) ,101616-101 ,"1,126.64",
DFID,DFID,04/05/2016,Air fares ,East and Central Africa ,HRG Kenya (USD) ,101616-101 ,"3,799.24",
DFID,DFID,04/05/2016,Hotels - Accommodation only ,East and Central Africa ,HRG Kenya (USD) ,101616-101 ,585.19,
DFID,DFID,26/05/2016,Air fares ,East and Central Africa ,HRG Kenya (USD) ,101616-101 ,"1,804.02",
DFID,DFID,26/05/2016,Air fares ,East and Central Africa ,HRG Kenya (USD) ,101616-101 ,817.82,
DFID,DFID,26/05/2016,Air fares ,East and Central Africa ,HRG Kenya (USD) ,101616-101 ,907.85,
DFID,DFID,24/05/2016,Air fares ,East and Central Africa ,HRG Kenya (USD) ,101616-101 ,704.43,
DFID,DFID,26/05/2016,Air fares ,East and Central Africa ,HRG Kenya (USD) ,101616-101 ,"1,811.92",
DFID,DFID,04/05/2016,Air fares ,West and Southern Africa ,HRG Kenya (USD) ,101613-101 ,697.38,
DFID,DFID,06/05/2016,Air fares ,East and Central Africa ,HRG Kenya (USD) ,101630-101 ,838.59,
DFID,DFID,24/05/2016,Air fares ,East and Central Africa ,HRG Kenya (USD) ,101630-101 ,"1,487.20",
DFID,DFID,04/05/2016,Air fares ,East and Central Africa ,HRG Kenya (USD) ,101630-101 ,"7,923.70",
DFID,DFID,04/05/2016,Air fares ,East and Central Africa ,HRG Kenya (USD) ,101630-102 ,609.43,
DFID,DFID,26/05/2016,Air fares ,Communications Division ,HRG Kenya (USD) ,100154-101 ,648.76,
DFID,DFID,06/05/2016,Air fares ,East and Central Africa ,HRG Kenya (USD) ,202594-101 ,"1,312.45",
DFID,DFID,26/05/2016,Air fares ,Research and Evidence Division ,HRG Kenya (USD) ,202392-101 ,735.35,
DFID,DFID,06/05/2016,Project delivery costs – supplier services ,West and Southern Africa ,Denis Mutabazi ,203851-113 ,"3,600.00",
DFID,DFID,20/05/2016,Aid Programme - Other Financial Aid to Government ,East and Central Africa ,Federal Ministry of Health ,202893-105 ,"3,942,132.92",
DFID,DFID,09/05/2016,Aid Programme - Accountable Grant Payments ,Policy Division ,Children in Crisis ,203559-123 ,"18,851.15",
DFID,DFID,05/05/2016,Aid Programme - Voluntary contributions ,Asia  Caribbean and Overseas Territories ,United Nations Development Programme - Brazil ,203688-109 ,"112,000.00",
DFID,DFID,24/05/2016,Hotels - Accommodation only ,Asia  Caribbean and Overseas Territories ,Ascott Palace Ltd ,100025-101 ,"2,271.08",
DFID,DFID,17/05/2016,Hotels - Accommodation only ,Business Solutions Division Level ,Ascott Palace Ltd ,200001-101 ,"1,040.39",
DFID,DFID,26/05/2016,Aid Programme - Other Financial Aid to Government ,East and Central Africa ,Ministry of Finance and Economic Development-Land Investment for Transformation ,202900-106 ,"1,618,898.00",
DFID,DFID,17/05/2016,Project delivery costs – supplier services ,Asia  Caribbean and Overseas Territories ,ICRA Management Consulting ,203908-101 ,"21,069.90",
DFID,DFID,17/05/2016,Project delivery costs – supplier services ,Asia  Caribbean and Overseas Territories ,ICRA Management Consulting ,203908-101 ,"5,951.95",
DFID,DFID,20/05/2016,Project delivery costs – supplier services ,West and Southern Africa ,PFI Partnerships ,203824-101 ,"12,910.66",
DFID,DFID,06/05/2016,Aid Programme - Accountable Grant Payments ,Asia  Caribbean and Overseas Territories ,Afghanaid UK ,203904-107 ,"855,697.00",
DFID,DFID,04/05/2016,Project delivery costs – supplier services ,East and Central Africa ,ITAB CONSULT PLC AA ,203986-101 ,"15,866.36",
DFID,DFID,23/05/2016,Aid Programme - Accountable Grant Payments ,East and Central Africa ,Terra Incognita ,203383-114 ,"130,135.28",
DFID,DFID,18/05/2016,Project delivery costs – supplier services ,East and Central Africa ,Universal Printers Company Ltd ,203466-103 ,"1,402.92",
DFID,DFID,13/05/2016,Aid Programme - Accountable Grant Payments ,Policy Division ,EMMS International ,203559-137 ,"62,644.00",
DFID,DFID,16/05/2016,Project delivery costs – supplier services ,West and Southern Africa ,Anastasie mfikila Lumba ,100068-101 ,"1,044.57",
DFID,DFID,16/05/2016,Project delivery costs – supplier services ,West and Southern Africa ,Neuville Lubaki Mvuala ,100068-101 ,"1,044.57",
DFID,DFID,25/05/2016,Aid Programme - Strategic Grant Arrangement payments ,East and Central Africa ,Financial Sector Deepening Uganda Ltd ,202692-111 ,"800,000.00",
DFID,DFID,05/05/2016,Training - Course Fees ,West and Southern Africa ,ALLIANCE FRANCAISE BORDEAUX AQUITAINE ,101610-101 ,"3,787.28",
DFID,DFID,17/05/2016,Air fares ,East and Central Africa ,Recipient name withheld ,202594-101 ,"1,085.76",
DFID,DFID,17/05/2016,Aid Programme - Joint programme contribution ,West and Southern Africa ,NCA (FUNDING ONLY) ,204048-101 ,"770,000.00",
DFID,DFID,18/05/2016,Aid Programme - Accountable Grant Payments ,Asia  Caribbean and Overseas Territories ,Proximity Designs ,203601-117 ,"157,474.70",
DFID,DFID,26/05/2016,Project delivery costs – supplier services ,East and Central Africa ,DESIGN THINKING LIMITED ,202619-106 ,"2,588.29",
DFID,DFID,11/05/2016,Aid Programme - Joint programme contribution ,Asia  Caribbean and Overseas Territories ,Asian Development Bank - PECP ,204358-103 ,"16,200,000.00",
DFID,DFID,10/05/2016,Aid Programme - Accountable Grant Payments ,Policy Division ,SAMARITAN'S PURSE INTERNATIONAL ,203559-143 ,"233,672.13",
DFID,DFID,05/05/2016,Project delivery costs – supplier services ,Asia  Caribbean and Overseas Territories ,Pandora Hardtman ,201645-110 ,"7,678.49",
DFID,DFID,24/05/2016,Aid Programme - Other Financial Aid to Government ,Asia  Caribbean and Overseas Territories ,Major Organised Crime & Anti-Corruption Agency ,204232-101 ,"300,000.00",
DFID,DFID,13/05/2016,Project delivery costs – supplier services ,East and Central Africa ,Universal Hydro Engineers and Contractors ,204736-109 ,"58,761.93",
DFID,DFID,20/05/2016,Aid Programme - Accountable Grant Payments ,Asia  Caribbean and Overseas Territories ,Paung Ku ,202393-109 ,"58,935.00",
DFID,DFID,20/05/2016,Project delivery costs – supplier services ,East and Central Africa ,KfW Uganda ,203624-103 ,"500,000.00",
